Ref No,Fund Type,Dept,Cost Centre Description    ,Description    ,Creditor Name    ,GL Code Net Amount,Payment date        
2,Revenue,CAHD,Central - Commissioned Services,Permanent Residential,1 St Georges House,13333.52, 23-Aug-2022
3,Revenue,CAHD,Central - Commissioned Services,Fees & Charges Income - General,1 St Georges House,-438.80, 23-Aug-2022
4,Revenue,CAHD,Early Years High Needs Support,Other Private Contractors,100 Acre Wood Day Nursery,910.07, 19-Aug-2022
5,Revenue,CAHD,CSC - LAC Housing Support Grants,Grants to Voluntary Bodies,1625 Independent People,3343.00, 09-Aug-2022
6,Revenue,CAHD,CSC - UASC Housing Support,Grants to Voluntary Bodies,1625 Independent People,9174.25, 09-Aug-2022
7,Revenue,CAHD,CSC - LAC Housing Support Grants,Grants to Voluntary Bodies,1625 Independent People,12082.50, 09-Aug-2022
8,Revenue,CAHD,CSC - LAC Housing Support Grants,Grants to Voluntary Bodies,1625 Independent People,3343.00, 22-Aug-2022
9,Revenue,CAHD,Supporting People Programme,Grants to Voluntary Bodies,1625 Independent People,15622.00, 01-Aug-2022
10,Revenue,CAHD,Supporting People Programme,Grants to Voluntary Bodies,1625 Independent People,15629.08, 01-Aug-2022
11,Revenue,CAHD,CSC - Asylum Seekers - Unaccompanied,Independent Living,16Pluscare Support Solutions,18883.34, 18-Aug-2022
12,Revenue,CAHD,CSC - Care Leavers Independent Living,Independent Living,16Pluscare Support Solutions,10327.34, 18-Aug-2022
13,Revenue,CAHD,South - Commissioned Services,Permanent Residential,2Nd Floor Building,5630.76, 23-Aug-2022
14,Revenue,CAHD,South - Commissioned Services,Fees & Charges Income - General,2Nd Floor Building,-438.80, 23-Aug-2022
15,Revenue,CAHD,North - Community based support,Permanent Residential,2Nd Floor Building,4938.12, 23-Aug-2022
16,Revenue,CAHD,North - Community based support,Fees & Charges Income - General,2Nd Floor Building,-438.80, 23-Aug-2022
17,Revenue,CAHD,Central - Commissioned Services,Other Small Contracts,3 Trees Community Support Limited,1256.64, 24-Aug-2022
18,Revenue,CAHD,Central - Commissioned Services,Other Small Contracts,3 Trees Community Support Limited,31359.89, 24-Aug-2022
19,Revenue,CAHD,Central - Commissioned Services,Supported Living,3 Trees Community Support Limited,60698.79, 24-Aug-2022
20,Revenue,CAHD,Central - Commissioned Services,Supported Living,3 Trees Community Support Limited,72549.42, 24-Aug-2022
21,Revenue,CAHD,Central - Commissioned Services,Supported Living,3 Trees Community Support Limited,61202.75, 24-Aug-2022
22,Revenue,CAHD,South - Commissioned Services,Supported Living,3 Trees Community Support Limited,49140.28, 24-Aug-2022
23,Revenue,CAHD,Central - Commissioned Services,Other Small Contracts,3 Trees Community Support Ltd,8051.01, 09-Aug-2022
24,Revenue,CAHD,Central - Commissioned Services,Supported Living,3 Trees Community Support Ltd,3188.66, 09-Aug-2022
25,Revenue,CAHD,Central - Commissioned Services,Other Small Contracts,3 Trees Community Support Ltd,8051.01, 09-Aug-2022
26,Revenue,CAHD,Central - Commissioned Services,Supported Living,3 Trees Community Support Ltd,3188.66, 09-Aug-2022
27,Revenue,CAHD,South - Commissioned Services,Permanent Residential,5Th Floor Harlech Court,12291.40, 23-Aug-2022
28,Revenue,CAHD,South - Commissioned Services,Permanent Residential,5Th Floor Harlech Court,17913.24, 23-Aug-2022
29,Revenue,CAHD,South - Commissioned Services,Permanent Residential,5Th Floor Harlech Court,18839.56, 23-Aug-2022
30,Revenue,CAHD,South - Commissioned Services,Fees & Charges Income - General,5Th Floor Harlech Court,-582.88, 23-Aug-2022
31,Revenue,CAHD,South - Commissioned Services,Fees & Charges Income - General,5Th Floor Harlech Court,-438.80, 23-Aug-2022
32,Revenue,CAHD,South - Commissioned Services,Fees & Charges Income - General,5Th Floor Harlech Court,-418.80, 23-Aug-2022
33,Revenue,CAHD,S28A cases,Permanent Residential,5Th Floor Harlech Court,11719.96, 23-Aug-2022
34,Revenue,CAHD,S28A cases,Fees & Charges Income - General,5Th Floor Harlech Court,-399.80, 23-Aug-2022
35,Revenue,CAHD,North - Community based support,Permanent Residential,5Th Floor Harlech Court,12498.56, 23-Aug-2022
36,Revenue,CAHD,North - Community based support,Fees & Charges Income - General,5Th Floor Harlech Court,-450.80, 23-Aug-2022
37,Revenue,CAHD,Central - Commissioned Services,Permanent Residential,5Th Floor Harlech Court,14891.36, 23-Aug-2022
38,Revenue,CAHD,Central - Commissioned Services,Fees & Charges Income - General,5Th Floor Harlech Court,-438.80, 23-Aug-2022
39,Revenue,CAHD,North - Community based support,Permanent Residential,5Th Floor Harlech Court,9071.12, 23-Aug-2022
40,Revenue,CAHD,North - Community based support,Permanent Residential,5Th Floor Harlech Court,10537.24, 23-Aug-2022
41,Revenue,CAHD,North - Community based support,Fees & Charges Income - General,5Th Floor Harlech Court,-438.80, 23-Aug-2022
42,Revenue,CAHD,Community Support - North,Preventative Assistance,A Taxis,495.00, 19-Aug-2022
43,Revenue,CAHD,CSC - Section 17 0-25,Preventative Assistance,A+bility Ltd,750.00, 15-Aug-2022
44,Revenue,CAHD,Central - Commissioned Services,Non Residential Care Income,A4E Management Ltd,-112.74, 05-Aug-2022
45,Revenue,CAHD,Central - Commissioned Services,Non Residential Care Income,A4E Management Ltd,-112.74, 19-Aug-2022
46,Revenue,CAHD,CSC - Asylum Seekers - Unaccompanied,Independent Living,Ability Supported Living Limited,6700.42, 05-Aug-2022
47,Revenue,CAHD,CSC - Asylum Seekers - Unaccompanied,Independent Living,Ability Supported Living Limited,6484.28, 05-Aug-2022
48,Revenue,CAHD,CSC - Asylum Seekers - Unaccompanied,Independent Living,Ability Supported Living Limited,6700.42, 05-Aug-2022
49,Revenue,CAHD,Central - Commissioned Services,Other Small Contracts,About Me Care and Support Limited,275.04, 17-Aug-2022
50,Revenue,CAHD,South - Commissioned Services,Other Small Contracts,About Me Care and Support Limited,1191.84, 17-Aug-2022
51,Revenue,CAHD,South - Commissioned Services,Other Small Contracts,About Me Care and Support Limited,1317.90, 09-Aug-2022
52,Revenue,CAHD,South - Commissioned Services,Permanent Nursing,Acacia House,3085.88, 23-Aug-2022
53,Revenue,CAHD,South - Commissioned Services,Fees & Charges Income - General,Acacia House,-1074.60, 23-Aug-2022
54,Revenue,CAHD,Central - Commissioned Services,Permanent Nursing,Acacia House,3777.92, 23-Aug-2022
55,Revenue,CAHD,Home Care Monitoring (CM2000),Other Supplies & Services,Access UK Limited,13652.66, 11-Aug-2022
56,Revenue,CAHD,Home Care Monitoring (CM2000),Other Supplies & Services,Access UK Limited,13683.16, 11-Aug-2022
57,Revenue,CAHD,Home Care Monitoring (CM2000),Other Supplies & Services,Access UK Limited,13492.23, 30-Aug-2022
58,Revenue,CAHD,Central - Commissioned Services,Permanent Residential,Acer House Care Home.,3800.00, 23-Aug-2022
59,Revenue,CAHD,Central - Commissioned Services,Fees & Charges Income - General,Acer House Care Home.,-1093.68, 23-Aug-2022
60,Revenue,CAHD,Psychology Traded,Training Expenses,Achieving for Children,1100.00, 25-Aug-2022
61,Revenue,CAHD,MH Purchasing - Younger,Permanent Residential,Acorn Care Providers,6920.56, 23-Aug-2022
62,Revenue,CAHD,MH Purchasing - Younger,Permanent Residential,Acorn Care Providers,6795.68, 23-Aug-2022
63,Revenue,CAHD,North - S117,Permanent Residential,Acorn Care Providers,4311.40, 23-Aug-2022
64,Revenue,CAHD,Section 117 Placements MH Younger,Permanent Residential,Acorn Care Providers,5941.40, 23-Aug-2022
65,Revenue,CAHD,Jointly Funded H&SC Packages,Permanent Residential,Acorn Care Providers,3515.52, 23-Aug-2022
66,Revenue,CAHD,Jointly Funded H&SC Packages,Permanent Residential,Acorn Care Providers,2366.36, 23-Aug-2022
67,Revenue,CAHD,Jointly Funded H&SC Packages,Permanent Residential,Acorn Care Providers,2193.40, 23-Aug-2022
68,Revenue,CAHD,CSC - Fostering Carer Support,Training Expenses,Acorn Health & Safety Limited,479.00, 05-Aug-2022
69,Revenue,CAHD,CSC - Agency Fostering,Foster Parent Allowances,Action for Children,3897.01, 30-Aug-2022
70,Revenue,CAHD,CSC - Residential Placements,Permanent Residential,Action for Children,56245.00, 18-Aug-2022
71,Revenue,CAHD,CSC - Asylum Seekers - Unaccompanied,Independent Living,Adolescent Support Home Services Ltd,6689.18, 31-Aug-2022
72,Revenue,CAHD,CSC - Asylum Seekers - Unaccompanied,Independent Living,Adolescent Support Home Services Ltd,6473.40, 05-Aug-2022
73,Revenue,CAHD,South - Commissioned Services,Other Small Contracts,Advantedge Commercial Finance Limited,1242.06, 24-Aug-2022
74,Revenue,CAHD,South - Commissioned Services,Other Small Contracts,Advantedge Commercial Finance Limited,6183.98, 23-Aug-2022
75,Revenue,CAHD,South - Commissioned Services,Other Small Contracts,Advantedge Commercial Finance Limited,7372.66, 23-Aug-2022
76,Revenue,CAHD,South - Commissioned Services,Other Small Contracts,Advantedge Commercial Finance Limited,2088.70, 23-Aug-2022
77,Revenue,CAHD,South - Commissioned Services,Other Small Contracts,Advantedge Commercial Finance Limited,158.10, 23-Aug-2022
78,Revenue,CAHD,South - Commissioned Services,Other Small Contracts,Advantedge Commercial Finance Limited,1465.06, 23-Aug-2022
79,Revenue,CAHD,South - Commissioned Services,Other Small Contracts,Advantedge Commercial Finance Limited,969.68, 23-Aug-2022
80,Revenue,CAHD,South - Commissioned Services,Other Small Contracts,Advantedge Commercial Finance Limited,2645.54, 23-Aug-2022
81,Revenue,CAHD,South - Commissioned Services,Other Small Contracts,Advantedge Commercial Finance Limited,295.12, 17-Aug-2022
82,Revenue,CAHD,South - Commissioned Services,Other Small Contracts,Advantedge Commercial Finance Limited,737.80, 17-Aug-2022
83,Revenue,CAHD,South - Commissioned Services,Other Small Contracts,Advantedge Commercial Finance Limited,737.80, 17-Aug-2022
84,Revenue,CAHD,South - Commissioned Services,Other Small Contracts,Advantedge Commercial Finance Limited,980.22, 17-Aug-2022
85,Revenue,CAHD,South - Commissioned Services,Other Small Contracts,Advantedge Commercial Finance Limited,2635.00, 17-Aug-2022
86,Revenue,CAHD,South - Commissioned Services,Other Small Contracts,Advantedge Commercial Finance Limited,579.70, 17-Aug-2022
87,Revenue,CAHD,CSC - Vinney Green Secure Unit,Refuse Collection Charges,Affordable Skip Hire Bristol Ltd,565.00, 16-Aug-2022
88,Revenue,CAHD,Central - Commissioned Services,Other Small Contracts,Afya Care Ltd,5000.94, 23-Aug-2022
89,Revenue,CAHD,Central - Commissioned Services,Other Small Contracts,Afya Care Ltd,510.30, 23-Aug-2022
90,Revenue,CAHD,Central - Commissioned Services,Other Small Contracts,Afya Care Ltd,1122.66, 09-Aug-2022
91,Revenue,CAHD,Central - Commissioned Services,Day Care / Social Activities,Age Concern,340.80, 23-Aug-2022
92,Revenue,CAHD,Central - Commissioned Services,Day Care / Social Activities,Age Concern,324.32, 23-Aug-2022
93,Revenue,CAHD,South - Commissioned Services,Day Care / Social Activities,Age Concern,288.08, 23-Aug-2022
94,Revenue,CAHD,North - Community based support,Day Care / Social Activities,Age Concern,340.80, 23-Aug-2022
95,Revenue,CAHD,North - Community based support,Day Care / Social Activities,Age Concern,288.08, 23-Aug-2022
96,Revenue,CAHD,Central - Commissioned Services,Day Care / Social Activities,Age UK - Grace Court,288.08, 23-Aug-2022
97,Revenue,CAHD,South - Commissioned Services,Day Care / Social Activities,Age UK - Grace Court,226.48, 23-Aug-2022
98,Revenue,CAHD,South - Commissioned Services,Day Care / Social Activities,Age UK - Grace Court,288.08, 23-Aug-2022
99,Revenue,CAHD,South - Commissioned Services,Day Care / Social Activities,Age UK - Grace Court,288.08, 23-Aug-2022
100,Revenue,CAHD,South - Commissioned Services,Day Care / Social Activities,Age UK - Grace Court,288.08, 23-Aug-2022
101,Revenue,CAHD,South - Commissioned Services,Day Care / Social Activities,Age UK - Grace Court,226.48, 23-Aug-2022
102,Revenue,CAHD,South - Commissioned Services,Day Care / Social Activities,Age UK - Grace Court,288.08, 23-Aug-2022
103,Revenue,CAHD,North - Community based support,Day Care / Social Activities,Age UK - Grace Court,288.08, 23-Aug-2022
104,Revenue,CAHD,North - Community based support,Day Care / Social Activities,Age UK South Gloucestershire,1935.50, 11-Aug-2022
105,Revenue,CAHD,Central - Commissioned Services,Day Care / Social Activities,Age UK South Gloucestershire,889.12, 11-Aug-2022
106,Revenue,CAHD,North - Community based support,Day Care / Social Activities,Age UK South Gloucestershire,2239.65, 26-Aug-2022
107,Revenue,CAHD,Extra Care Housing,Private & Voluntary Home Care,Agincare UK Limited,25937.78, 01-Aug-2022
108,Revenue,CAHD,Extra Care Housing,Private & Voluntary Home Care,Agincare UK Limited,12479.78, 01-Aug-2022
109,Revenue,CAHD,Extra Care Housing,Private & Voluntary Home Care,Agincare UK Limited,30860.93, 04-Aug-2022
110,Revenue,CAHD,Extra Care Housing,Private & Voluntary Home Care,Agincare UK Limited,5458.37, 01-Aug-2022
111,Revenue,CAHD,Extra Care Housing,Private & Voluntary Home Care,Agincare UK Limited,5458.37, 08-Aug-2022
112,Revenue,CAHD,Extra Care Housing,Private & Voluntary Home Care,Agincare UK Limited,5458.37, 15-Aug-2022
113,Revenue,CAHD,Extra Care Housing,Private & Voluntary Home Care,Agincare UK Limited,5458.37, 22-Aug-2022
114,Revenue,CAHD,Extra Care Housing,Private & Voluntary Home Care,Agincare UK Limited,5458.37, 26-Aug-2022
115,Revenue,CAHD,South - Commissioned Services,Day Care / Social Activities,Agincare UK Limited,543.28, 09-Aug-2022
116,Revenue,CAHD,South - Commissioned Services,Day Care / Social Activities,Agincare UK Limited,543.28, 09-Aug-2022
117,Revenue,CAHD,Extra Care Housing,Private & Voluntary Home Care,Agincare UK Limited,2051.63, 11-Aug-2022
118,Revenue,CAHD,Prison Assessments & Costs,Other Supplies & Services,Agincare UK Limited,4400.00, 09-Aug-2022
119,Revenue,CAHD,Prison Assessments & Costs,Other Supplies & Services,Agincare UK Limited,4664.00, 23-Aug-2022
120,Revenue,CAHD,South - Commissioned Services,Other Small Contracts,Agincare UK Limited,138.32, 30-Aug-2022
121,Revenue,CAHD,South - Commissioned Services,Other Small Contracts,Agincare UK Limited,163.02, 30-Aug-2022
122,Revenue,CAHD,South - Commissioned Services,Other Small Contracts,Agincare UK Limited,103.74, 30-Aug-2022
123,Revenue,CAHD,South - Commissioned Services,Other Small Contracts,Agincare UK Limited,49.40, 30-Aug-2022
124,Revenue,CAHD,South - Commissioned Services,Other Small Contracts,Agincare UK Limited,59.28, 30-Aug-2022
125,Revenue,CAHD,Statemented Support Payments to OLAs,Other L.A.s - General,Air Balloon Hill Primary School,801.92, 19-Aug-2022
126,Revenue,CAHD,South - Commissioned Services,Other Small Contracts,AliMo Care Ltd,676.95, 09-Aug-2022
127,Revenue,CAHD,South - Commissioned Services,Other Small Contracts,AliMo Care Ltd,676.95, 09-Aug-2022
128,Revenue,CAHD,Reset and Recovery,Other Supplies & Services,Alison Comley,500.00, 05-Aug-2022
129,Revenue,CAHD,CSC - Age Related Allowances,Foster Parent Allowances,Individual,363.00, 05-Aug-2022
130,Revenue,CAHD,CSC - Professional Fees Foster Carers,Band 3 Foster Care,Individual,486.00, 05-Aug-2022
131,Revenue,CAHD,CSC - Age Related Allowances,Foster Parent Allowances,Individual,363.00, 12-Aug-2022
132,Revenue,CAHD,CSC - Professional Fees Foster Carers,Band 3 Foster Care,Individual,486.00, 12-Aug-2022
133,Revenue,CAHD,CSC - Age Related Allowances,Foster Parent Allowances,Individual,363.00, 19-Aug-2022
134,Revenue,CAHD,CSC - Professional Fees Foster Carers,Band 3 Foster Care,Individual,486.00, 19-Aug-2022
135,Revenue,CAHD,CSC - Age Related Allowances,Foster Parent Allowances,Individual,363.00, 26-Aug-2022
136,Revenue,CAHD,CSC - Professional Fees Foster Carers,Band 3 Foster Care,Individual,486.00, 26-Aug-2022
137,Revenue,CAHD,South - Commissioned Services,Permanent Nursing,Allambie Court,2734.44, 23-Aug-2022
138,Revenue,CAHD,South - Commissioned Services,Fees & Charges Income - General,Allambie Court,-823.52, 23-Aug-2022
139,Revenue,CAHD,CSC - Residential Placements,Permanent Residential,Amberleigh Care Ltd,16771.00, 31-Aug-2022
140,Revenue,CAHD,CSC - Residential Placements,Permanent Residential,Ambito Care and Education,19920.87, 03-Aug-2022
141,Revenue,CAHD,CSC - Residential Placements,Permanent Residential,Ambito Care and Education,19930.88, 02-Aug-2022
142,Revenue,CAHD,CSC - Agency Fostering,Foster Parent Allowances,Amicus Foster Care Ltd,4879.00, 26-Aug-2022
143,Revenue,CAHD,CSC - Agency Fostering,Foster Parent Allowances,Amicus Foster Care Ltd,4037.13, 05-Aug-2022
144,Revenue,CAHD,CSC - Agency Fostering,Foster Parent Allowances,Amicus Foster Care Ltd,4796.44, 04-Aug-2022
145,Revenue,CAHD,Preparing for Adulthood Team,Interpreting & Translation,Individual,500.00, 08-Aug-2022
146,Revenue,CAHD,Supporting People Programme,Grants to Voluntary Bodies,Anchor Hanover Group,1070.50, 01-Aug-2022
147,Revenue,CAHD,Supporting People Programme,Grants to Voluntary Bodies,Anchor Hanover Group,873.08, 01-Aug-2022
148,Revenue,CAHD,CSC - Special Guardianship Orders,Special Payments,Individual,500.30, 05-Aug-2022
149,Revenue,CAHD,CSC - Special Guardianship Orders,Special Payments,Individual,500.30, 12-Aug-2022
150,Revenue,CAHD,CSC - Special Guardianship Orders,Special Payments,Individual,500.30, 19-Aug-2022
151,Revenue,CAHD,CSC - Special Guardianship Orders,Special Payments,Individual,500.30, 26-Aug-2022
152,Revenue,CAHD,Schools Specific Grant Income,Other Public Bodies,Anthem Schools Trust  Oxford Spires,500.00, 01-Aug-2022
153,Revenue,CAHD,Schools Specific Grant Income,Other Public Bodies,Anthem Schools Trust  Oxford Spires,1000.00, 01-Aug-2022
154,Revenue,CAHD,Social Lettings Agency,Rent,Individual,822.73, 19-Aug-2022
155,Revenue,CAHD,Social Lettings Agency,Fees & Charges Income - General,Individual,-65.82, 19-Aug-2022
156,Revenue,CAHD,Social Lettings Agency,Rent,Individual,822.73, 02-Aug-2022
157,Revenue,CAHD,Social Lettings Agency,Fees & Charges Income - General,Individual,-65.82, 02-Aug-2022
158,Revenue,CAHD,CSC - Residential Placements,Permanent Residential,ARC HD Services Ltd,22667.33, 18-Aug-2022
159,Revenue,CAHD,Schools Specific Grant Income,Other Public Bodies,Archbishop McGrath Catholic High School,500.00, 01-Aug-2022
160,Revenue,CAHD,Schools Specific Grant Income,Other Public Bodies,Archbishop McGrath Catholic High School,500.00, 01-Aug-2022
161,Revenue,CAHD,South - S117,Supported Living,Archcare Rehab Limited,2062.52, 23-Aug-2022
162,Revenue,CAHD,Younger MH non-res purchasing,Respite Care,Archcare Rehab Limited,0.00, 23-Aug-2022
163,Revenue,CAHD,South - Commissioned Services,Permanent Residential,Ash Lea House,7300.80, 23-Aug-2022
164,Revenue,CAHD,South - Commissioned Services,Fees & Charges Income - General,Ash Lea House,-438.80, 23-Aug-2022
165,Revenue,CAHD,North - Community based support,Permanent Residential,Ash View House,7525.48, 23-Aug-2022
166,Revenue,CAHD,North - Community based support,Permanent Residential,Ash View House,7547.20, 23-Aug-2022
167,Revenue,CAHD,North - Community based support,Fees & Charges Income - General,Ash View House,-438.80, 23-Aug-2022
168,Revenue,CAHD,North - Community based support,Fees & Charges Income - General,Ash View House,-438.80, 23-Aug-2022
169,Revenue,CAHD,South - Commissioned Services,Permanent Residential,Ash View House,7317.24, 23-Aug-2022
170,Revenue,CAHD,South - Commissioned Services,Permanent Residential,Ash View House,5994.80, 23-Aug-2022
171,Revenue,CAHD,South - Commissioned Services,Fees & Charges Income - General,Ash View House,-438.80, 23-Aug-2022
172,Revenue,CAHD,South - Commissioned Services,Fees & Charges Income - General,Ash View House,-387.80, 23-Aug-2022
173,Revenue,CAHD,South - S117,Permanent Residential,Ash View House,7402.64, 23-Aug-2022
174,Revenue,CAHD,Section 117 Placements MH Younger,Permanent Residential,Ash View House,5444.12, 23-Aug-2022
175,Revenue,CAHD,Jointly Funded H&SC Packages,Permanent Residential,Ash View House,1160.84, 23-Aug-2022
176,Revenue,CAHD,Jointly Funded H&SC Packages,Permanent Residential,Ash View House,2204.28, 23-Aug-2022
177,Revenue,CAHD,S117 Placements PCT,Permanent Residential,Ash View House,8357.80, 23-Aug-2022
178,Revenue,CAHD,CSC - Legal Fees,Legal Fees,Individual,700.00, 26-Aug-2022
179,Revenue,CAHD,Supporting People Programme,Grants to Voluntary Bodies,Aspects and Milestones Trust,3544.83, 01-Aug-2022
180,Revenue,CAHD,Supporting People Programme,Grants to Voluntary Bodies,Aspects and Milestones Trust,1777.17, 01-Aug-2022
181,Revenue,CAHD,North - Community based support,Other Small Contracts,Aspirations,3651.11, 09-Aug-2022
182,Revenue,CAHD,South - Commissioned Services,Other Small Contracts,Aspirations,1566.38, 09-Aug-2022
183,Revenue,CAHD,South - Commissioned Services,Supported Living,Aspirations,15205.36, 09-Aug-2022
184,Revenue,CAHD,Central - Commissioned Services,Other Small Contracts,Aspirations,3263.78, 09-Aug-2022
185,Revenue,CAHD,18-25 Year Olds,Other Small Contracts,Aspirations,4294.62, 09-Aug-2022
186,Revenue,CAHD,North - Community based support,Other Small Contracts,Aspirations,3651.11, 09-Aug-2022
187,Revenue,CAHD,South - Commissioned Services,Other Small Contracts,Aspirations,1566.38, 09-Aug-2022
188,Revenue,CAHD,South - Commissioned Services,Supported Living,Aspirations,15205.36, 09-Aug-2022
189,Revenue,CAHD,Central - Commissioned Services,Other Small Contracts,Aspirations,3263.78, 09-Aug-2022
190,Revenue,CAHD,18-25 Year Olds,Other Small Contracts,Aspirations,4294.62, 09-Aug-2022
191,Revenue,CAHD,CSC - Care Leavers Independent Living,Adults - Family Support,Aspirations Support Bristol Limited,15419.68, 02-Aug-2022
192,Revenue,CAHD,CSC - Vinney Green Secure Unit,Service Contracts (Premises),Assa Abloy Limited,1748.46, 24-Aug-2022
193,Revenue,CAHD,South - Commissioned Services,Adults - Family Support,Ategi Limited,761.34, 01-Aug-2022
194,Revenue,CAHD,South - Commissioned Services,Adults - Family Support,Ategi Limited,352.95, 01-Aug-2022
195,Revenue,CAHD,South - Commissioned Services,Adults - Family Support,Ategi Limited,2776.25, 01-Aug-2022
196,Revenue,CAHD,South - Commissioned Services,Adults - Family Support,Ategi Limited,149.76, 01-Aug-2022
197,Revenue,CAHD,North - Community based support,Adults - Family Support,Ategi Limited,170.89, 01-Aug-2022
198,Revenue,CAHD,North - Community based support,Adults - Family Support,Ategi Limited,341.78, 01-Aug-2022
199,Revenue,CAHD,18-25 Year Olds,Adults - Family Support,Ategi Limited,2806.24, 23-Aug-2022
200,Revenue,CAHD,18-25 Year Olds,Adults - Family Support,Ategi Limited,1496.00, 23-Aug-2022
201,Revenue,CAHD,18-25 Year Olds,Adults - Family Support,Ategi Limited,1695.36, 23-Aug-2022
202,Revenue,CAHD,18-25 Year Olds,Respite Care,Ategi Limited,0.00, 23-Aug-2022
203,Revenue,CAHD,18-25 Year Olds,Respite Care,Ategi Limited,0.00, 23-Aug-2022
204,Revenue,CAHD,18-25 Year Olds,Respite Care,Ategi Limited,0.00, 23-Aug-2022
205,Revenue,CAHD,Central - Commissioned Services,Adults - Family Support,Ategi Limited,528.00, 23-Aug-2022
206,Revenue,CAHD,South - Commissioned Services,Adults - Family Support,Ategi Limited,1695.36, 23-Aug-2022
207,Revenue,CAHD,South - Commissioned Services,Adults - Family Support,Ategi Limited,2424.64, 23-Aug-2022
208,Revenue,CAHD,South - Commissioned Services,Adults - Family Support,Ategi Limited,1056.00, 23-Aug-2022
209,Revenue,CAHD,South - Commissioned Services,Adults - Family Support,Ategi Limited,2424.64, 23-Aug-2022
210,Revenue,CAHD,South - Commissioned Services,Adults - Family Support,Ategi Limited,1695.36, 23-Aug-2022
211,Revenue,CAHD,South - Commissioned Services,Adults - Family Support,Ategi Limited,1232.00, 23-Aug-2022
212,Revenue,CAHD,South - Commissioned Services,Respite Care,Ategi Limited,0.00, 23-Aug-2022
213,Revenue,CAHD,South - Commissioned Services,Respite Care,Ategi Limited,0.00, 23-Aug-2022
214,Revenue,CAHD,South - Commissioned Services,Respite Care,Ategi Limited,0.00, 23-Aug-2022
215,Revenue,CAHD,North - Community based support,Adults - Family Support,Ategi Limited,1695.36, 23-Aug-2022
216,Revenue,CAHD,North - Community based support,Adults - Family Support,Ategi Limited,1695.36, 23-Aug-2022
217,Revenue,CAHD,North - Community based support,Respite Care,Ategi Limited,0.00, 23-Aug-2022
218,Revenue,CAHD,North - Community based support,Respite Care,Ategi Limited,0.00, 23-Aug-2022
219,Revenue,CAHD,Homes For Ukraine School Support,Other Public Bodies,Athelstan Trust,1850.00, 30-Aug-2022
220,Revenue,CAHD,Statemented Support Academies,Other Public Bodies,Athelstan Trust,718.08, 22-Aug-2022
221,Revenue,CAHD,Statemented Support Academies,Other Public Bodies,Athelstan Trust,526.83, 22-Aug-2022
222,Revenue,CAHD,Academy Resource Base Funding,Other Public Bodies,Athelstan Trust,3835.00, 03-Aug-2022
223,Revenue,CAHD,Statemented Support Academies,Other Public Bodies,Athelstan Trust,722.42, 22-Aug-2022
224,Revenue,CAHD,Statemented Support Academies,Other Public Bodies,Athelstan Trust,1342.25, 22-Aug-2022
225,Revenue,CAHD,Statemented Support Academies,Other Public Bodies,Athelstan Trust,1367.64, 22-Aug-2022
226,Revenue,CAHD,Statemented Support Academies,Other Public Bodies,Athelstan Trust,771.42, 22-Aug-2022
227,Revenue,CAHD,Statemented Support Academies,Other Public Bodies,Athelstan Trust,1436.25, 22-Aug-2022
228,Revenue,CAHD,Statemented Support Academies,Other Public Bodies,Athelstan Trust,588.75, 22-Aug-2022
229,Revenue,CAHD,Statemented Support Academies,Other Public Bodies,Athelstan Trust,3514.12, 22-Aug-2022
230,Revenue,CAHD,CSC - CLA Placements,Supported Living,Athelstan Trust,934.13, 22-Aug-2022
231,Revenue,CAHD,Statemented Support Academies,Other Public Bodies,Athelstan Trust,926.58, 22-Aug-2022
232,Revenue,CAHD,Statemented Support Academies,Other Public Bodies,Athelstan Trust,1066.65, 22-Aug-2022
233,Revenue,CAHD,Academy Resource Base Funding,Other Public Bodies,Athelstan Trust,2513.88, 19-Aug-2022
234,Revenue,CAHD,Academy Resource Base Funding,Other Public Bodies,Athelstan Trust,2513.88, 19-Aug-2022
235,Revenue,CAHD,Academy Resource Base Funding,Other Public Bodies,Athelstan Trust,2513.88, 19-Aug-2022
236,Revenue,CAHD,Academy Resource Base Funding,Other Public Bodies,Athelstan Trust,2513.88, 19-Aug-2022
237,Revenue,CAHD,Academy Resource Base Funding,Other Public Bodies,Athelstan Trust,2513.88, 19-Aug-2022
238,Revenue,CAHD,Academy Resource Base Funding,Other Public Bodies,Athelstan Trust,2513.88, 19-Aug-2022
239,Revenue,CAHD,Academy Resource Base Funding,Other Public Bodies,Athelstan Trust,2513.88, 19-Aug-2022
240,Revenue,CAHD,Academy Resource Base Funding,Other Public Bodies,Athelstan Trust,2513.88, 19-Aug-2022
241,Revenue,CAHD,Academy Resource Base Funding,Other Public Bodies,Athelstan Trust,2513.88, 19-Aug-2022
242,Revenue,CAHD,Academy Resource Base Funding,Other Public Bodies,Athelstan Trust,2513.88, 19-Aug-2022
243,Revenue,CAHD,Academy Resource Base Funding,Other Public Bodies,Athelstan Trust,2513.88, 19-Aug-2022
244,Revenue,CAHD,Academy Resource Base Funding,Other Public Bodies,Athelstan Trust,2513.88, 19-Aug-2022
245,Revenue,CAHD,Academy Resource Base Funding,Other Public Bodies,Athelstan Trust,1698.64, 19-Aug-2022
246,Revenue,CAHD,Independent Special Placements - Pre 16,Other Private Contractors,Aurora Hedgeway School,25064.28, 19-Aug-2022
247,Revenue,CAHD,Independent Special Placements - Post 16,Other Private Contractors,Aurora Hedgeway School,16081.90, 19-Aug-2022
248,Revenue,CAHD,Independent Special Placements - Pre 16,Other Private Contractors,Aurora Hedgeway School,30916.67, 19-Aug-2022
249,Revenue,CAHD,Independent Special Placements - Pre 16,Other Private Contractors,Aurora Hedgeway School,27178.00, 19-Aug-2022
250,Revenue,CAHD,Independent Special Placements - Post 16,Other Private Contractors,Aurora Hedgeway School,16081.90, 19-Aug-2022
251,Revenue,CAHD,Independent Special Placements - Pre 16,Other Private Contractors,Aurora Hedgeway School,17830.45, 18-Aug-2022
252,Revenue,CAHD,Independent Special Placements - Pre 16,Other Private Contractors,Aurora Hedgeway School,26317.00, 18-Aug-2022
253,Revenue,CAHD,Independent Special Placements - Pre 16,Other Private Contractors,Aurora Hedgeway School,19469.76, 18-Aug-2022
254,Revenue,CAHD,Independent Special Placements - Pre 16,Other Private Contractors,Aurora Hedgeway School,19469.76, 18-Aug-2022
255,Revenue,CAHD,Independent Special Placements - Pre 16,Other Private Contractors,Aurora Hedgeway School,26843.34, 18-Aug-2022
256,Revenue,CAHD,Independent Special Placements - Pre 16,Other Private Contractors,Aurora Hedgeway School,21946.32, 18-Aug-2022
257,Revenue,CAHD,Independent Special Placements - Pre 16,Other Private Contractors,Aurora Hedgeway School,17830.45, 18-Aug-2022
258,Revenue,CAHD,Independent Special Placements - Pre 16,Other Private Contractors,Aurora Hedgeway School,17830.45, 18-Aug-2022
259,Revenue,CAHD,Independent Special Placements - Pre 16,Other Private Contractors,Aurora Hedgeway School,28199.94, 18-Aug-2022
260,Revenue,CAHD,Independent Special Placements - Pre 16,Other Private Contractors,Aurora Hedgeway School,17830.45, 18-Aug-2022
261,Revenue,CAHD,Independent Special Placements - Pre 16,Other Private Contractors,Aurora Hedgeway School,16989.12, 16-Aug-2022
262,Revenue,CAHD,Independent Special Placements - Post 16,Other Private Contractors,Aurora Severnside School,16989.12, 19-Aug-2022
263,Revenue,CAHD,Independent Special Placements - Pre 16,Other Private Contractors,Aurora Severnside School,25473.00, 19-Aug-2022
264,Revenue,CAHD,Independent Special Placements - Pre 16,Other Private Contractors,Aurora Severnside School,17322.00, 23-Aug-2022
265,Revenue,CAHD,South - Commissioned Services,Permanent Residential,Autism Specialised Care Homes,6506.88, 23-Aug-2022
266,Revenue,CAHD,South - Commissioned Services,Fees & Charges Income - General,Autism Specialised Care Homes,-438.80, 23-Aug-2022
267,Revenue,CAHD,Younger Adult Mental Health,Health Services (Third Party Payments),Avon & Wiltshire Mental Health,14583.00, 16-Aug-2022
268,Revenue,CAHD,Younger Adult Mental Health,Health Services (Third Party Payments),Avon & Wiltshire Mental Health,15223.00, 12-Aug-2022
269,Revenue,CAHD,Younger Adult Mental Health,Health Services (Third Party Payments),Avon & Wiltshire Mental Health,4174.00, 16-Aug-2022
270,Revenue,CAHD,Younger Adult Mental Health,Health Services (Third Party Payments),Avon & Wiltshire Mental Health,1733.35, 22-Aug-2022
271,Revenue,CAHD,South Glos Users in South Glos Homes,Permanent Nursing,Avon Lodge Care Centre,836.76, 23-Aug-2022
272,Revenue,CAHD,South Glos Users in South Glos Homes,Permanent Nursing,Avon Lodge Care Centre,836.76, 23-Aug-2022
273,Revenue,CAHD,South Glos Users in South Glos Homes,Permanent Nursing,Avon Lodge Care Centre,836.76, 23-Aug-2022
274,Revenue,CAHD,South Glos Users in South Glos Homes,Permanent Nursing,Avon Lodge Care Centre,836.76, 23-Aug-2022
275,Revenue,CAHD,South Glos Users in South Glos Homes,Permanent Nursing,Avon Lodge Care Centre,-1374.68, 23-Aug-2022
276,Revenue,CAHD,South Glos Users in South Glos Homes,Permanent Nursing,Avon Lodge Care Centre,836.76, 23-Aug-2022
277,Revenue,CAHD,South Glos Users in South Glos Homes,Permanent Nursing,Avon Lodge Care Centre,836.76, 23-Aug-2022
278,Revenue,CAHD,South Glos Users in South Glos Homes,Permanent Nursing,Avon Lodge Care Centre,836.76, 23-Aug-2022
279,Revenue,CAHD,South Glos Users in South Glos Homes,Permanent Nursing,Avon Lodge Care Centre,836.76, 23-Aug-2022
280,Revenue,CAHD,South Glos Users in South Glos Homes,Permanent Nursing,Avon Lodge Care Centre,9.25, 23-Aug-2022
281,Revenue,CAHD,South Glos Users in South Glos Homes,Permanent Nursing,Avon Lodge Care Centre,836.76, 23-Aug-2022
282,Revenue,CAHD,South Glos Users in South Glos Homes,Permanent Nursing,Avon Lodge Care Centre,836.76, 23-Aug-2022
283,Revenue,CAHD,South Glos Users in South Glos Homes,Permanent Nursing,Avon Lodge Care Centre,836.76, 23-Aug-2022
284,Revenue,CAHD,South Glos Users in South Glos Homes,Permanent Nursing,Avon Lodge Care Centre,836.76, 23-Aug-2022
285,Revenue,CAHD,South Glos Users in South Glos Homes,Permanent Nursing,Avon Lodge Care Centre,836.76, 23-Aug-2022
286,Revenue,CAHD,South Glos Users in South Glos Homes,Permanent Nursing,Avon Lodge Care Centre,836.76, 23-Aug-2022
287,Revenue,CAHD,South Glos Users in South Glos Homes,Permanent Nursing,Avon Lodge Care Centre,836.76, 23-Aug-2022
288,Revenue,CAHD,South Glos Users in South Glos Homes,Permanent Nursing,Avon Lodge Care Centre,836.76, 23-Aug-2022
289,Revenue,CAHD,South Glos Users in South Glos Homes,Permanent Nursing,Avon Lodge Care Centre,836.76, 23-Aug-2022
290,Revenue,CAHD,South Glos Users in South Glos Homes,Permanent Nursing,Avon Lodge Care Centre,836.76, 23-Aug-2022
291,Revenue,CAHD,South Glos Users in South Glos Homes,Permanent Nursing,Avon Lodge Care Centre,836.76, 23-Aug-2022
292,Revenue,CAHD,South Glos Users in South Glos Homes,Permanent Nursing,Avon Lodge Care Centre,836.76, 23-Aug-2022
293,Revenue,CAHD,South Glos Users in South Glos Homes,Permanent Nursing,Avon Lodge Care Centre,836.76, 23-Aug-2022
294,Revenue,CAHD,South Glos Users in South Glos Homes,Permanent Nursing,Avon Lodge Care Centre,836.76, 23-Aug-2022
295,Revenue,CAHD,South Glos Users in South Glos Homes,Permanent Nursing,Avon Lodge Care Centre,836.76, 23-Aug-2022
296,Revenue,CAHD,South Glos Users in South Glos Homes,Permanent Nursing,Avon Lodge Care Centre,836.76, 23-Aug-2022
297,Revenue,CAHD,South Glos Users in South Glos Homes,Permanent Nursing,Avon Lodge Care Centre,836.76, 23-Aug-2022
298,Revenue,CAHD,South Glos Users in South Glos Homes,Permanent Nursing,Avon Lodge Care Centre,9.25, 23-Aug-2022
299,Revenue,CAHD,South Glos Users in South Glos Homes,Permanent Nursing,Avon Lodge Care Centre,836.76, 23-Aug-2022
300,Revenue,CAHD,South Glos Users in South Glos Homes,Permanent Nursing,Avon Lodge Care Centre,9.25, 23-Aug-2022
301,Revenue,CAHD,South Glos Users in South Glos Homes,Permanent Nursing,Avon Lodge Care Centre,836.76, 23-Aug-2022
302,Revenue,CAHD,South Glos Users in South Glos Homes,Permanent Nursing,Avon Lodge Care Centre,836.76, 23-Aug-2022
303,Revenue,CAHD,South Glos Users in South Glos Homes,Permanent Nursing,Avon Lodge Care Centre,836.76, 23-Aug-2022
304,Revenue,CAHD,South Glos Users in South Glos Homes,Permanent Nursing,Avon Lodge Care Centre,836.76, 23-Aug-2022
305,Revenue,CAHD,South Glos Users in South Glos Homes,Permanent Nursing,Avon Lodge Care Centre,836.76, 23-Aug-2022
306,Revenue,CAHD,Central - Commissioned Services,Respite Planned - Residential,Avon Lodge Care Centre,920.67, 23-Aug-2022
307,Revenue,CAHD,Central - Commissioned Services,Permanent Nursing,Avon Lodge Care Centre,4296.48, 23-Aug-2022
308,Revenue,CAHD,Central - Commissioned Services,Permanent Nursing,Avon Lodge Care Centre,4120.64, 23-Aug-2022
309,Revenue,CAHD,Central - Commissioned Services,Respite Planned - Nursing,Avon Lodge Care Centre,613.79, 23-Aug-2022
310,Revenue,CAHD,Central - Commissioned Services,Respite Planned - Nursing,Avon Lodge Care Centre,8743.29, 23-Aug-2022
311,Revenue,CAHD,Central - Commissioned Services,Fees & Charges Income - General,Avon Lodge Care Centre,-1210.72, 23-Aug-2022
312,Revenue,CAHD,Central - Commissioned Services,Fees & Charges Income - General,Avon Lodge Care Centre,-956.96, 23-Aug-2022
313,Revenue,CAHD,South - Commissioned Services,Permanent Residential,Avon Lodge Care Centre,3318.24, 23-Aug-2022
314,Revenue,CAHD,South - Commissioned Services,Permanent Residential,Avon Lodge Care Centre,3816.00, 23-Aug-2022
315,Revenue,CAHD,South - Commissioned Services,Permanent Residential,Avon Lodge Care Centre,4028.00, 23-Aug-2022
316,Revenue,CAHD,South - Commissioned Services,Permanent Residential,Avon Lodge Care Centre,4296.00, 23-Aug-2022
317,Revenue,CAHD,South - Commissioned Services,Permanent Residential,Avon Lodge Care Centre,4296.48, 23-Aug-2022
318,Revenue,CAHD,South - Commissioned Services,Permanent Residential,Avon Lodge Care Centre,3667.60, 23-Aug-2022
319,Revenue,CAHD,South - Commissioned Services,Permanent Nursing,Avon Lodge Care Centre,4028.00, 23-Aug-2022
320,Revenue,CAHD,South - Commissioned Services,Permanent Nursing,Avon Lodge Care Centre,4296.48, 23-Aug-2022
321,Revenue,CAHD,South - Commissioned Services,Permanent Nursing,Avon Lodge Care Centre,5349.68, 23-Aug-2022
322,Revenue,CAHD,South - Commissioned Services,Permanent Nursing,Avon Lodge Care Centre,3539.44, 23-Aug-2022
323,Revenue,CAHD,South - Commissioned Services,Permanent Nursing,Avon Lodge Care Centre,3751.96, 23-Aug-2022
324,Revenue,CAHD,South - Commissioned Services,Permanent Nursing,Avon Lodge Care Centre,9021.69, 23-Aug-2022
325,Revenue,CAHD,South - Commissioned Services,Permanent Nursing,Avon Lodge Care Centre,4714.76, 23-Aug-2022
326,Revenue,CAHD,South - Commissioned Services,Permanent Nursing,Avon Lodge Care Centre,4775.44, 23-Aug-2022
327,Revenue,CAHD,South - Commissioned Services,Permanent Nursing,Avon Lodge Care Centre,4674.92, 23-Aug-2022
328,Revenue,CAHD,South - Commissioned Services,Permanent Nursing,Avon Lodge Care Centre,4664.00, 23-Aug-2022
329,Revenue,CAHD,South - Commissioned Services,Permanent Nursing,Avon Lodge Care Centre,4120.64, 23-Aug-2022
330,Revenue,CAHD,South - Commissioned Services,Permanent Nursing,Avon Lodge Care Centre,-3578.36, 23-Aug-2022
331,Revenue,CAHD,South - Commissioned Services,Permanent Nursing,Avon Lodge Care Centre,4554.28, 23-Aug-2022
332,Revenue,CAHD,South - Commissioned Services,Permanent Nursing,Avon Lodge Care Centre,460.34, 23-Aug-2022
333,Revenue,CAHD,South - Commissioned Services,Permanent Nursing,Avon Lodge Care Centre,12427.71, 23-Aug-2022
334,Revenue,CAHD,South - Commissioned Services,Fees & Charges Income - General,Avon Lodge Care Centre,-679.80, 23-Aug-2022
335,Revenue,CAHD,South - Commissioned Services,Fees & Charges Income - General,Avon Lodge Care Centre,-725.24, 23-Aug-2022
336,Revenue,CAHD,South - Commissioned Services,Fees & Charges Income - General,Avon Lodge Care Centre,-1066.12, 23-Aug-2022
337,Revenue,CAHD,South - Commissioned Services,Fees & Charges Income - General,Avon Lodge Care Centre,-1393.76, 23-Aug-2022
338,Revenue,CAHD,South - Commissioned Services,Fees & Charges Income - General,Avon Lodge Care Centre,-1525.00, 23-Aug-2022
339,Revenue,CAHD,South - Commissioned Services,Fees & Charges Income - General,Avon Lodge Care Centre,-438.80, 23-Aug-2022
340,Revenue,CAHD,South - Commissioned Services,Fees & Charges Income - General,Avon Lodge Care Centre,-1280.20, 23-Aug-2022
341,Revenue,CAHD,South - Commissioned Services,Fees & Charges Income - General,Avon Lodge Care Centre,-1017.44, 23-Aug-2022
342,Revenue,CAHD,South - Commissioned Services,Fees & Charges Income - General,Avon Lodge Care Centre,-852.32, 23-Aug-2022
343,Revenue,CAHD,South - Commissioned Services,Fees & Charges Income - General,Avon Lodge Care Centre,-1056.84, 23-Aug-2022
344,Revenue,CAHD,South - Commissioned Services,Fees & Charges Income - General,Avon Lodge Care Centre,-1889.12, 23-Aug-2022
345,Revenue,CAHD,South - Commissioned Services,Fees & Charges Income - General,Avon Lodge Care Centre,-2319.64, 23-Aug-2022
346,Revenue,CAHD,South - Commissioned Services,Fees & Charges Income - General,Avon Lodge Care Centre,-3303.47, 23-Aug-2022
347,Revenue,CAHD,South - Commissioned Services,Fees & Charges Income - General,Avon Lodge Care Centre,-635.48, 23-Aug-2022
348,Revenue,CAHD,South - Commissioned Services,Fees & Charges Income - General,Avon Lodge Care Centre,-627.80, 23-Aug-2022
349,Revenue,CAHD,South - Commissioned Services,Fees & Charges Income - General,Avon Lodge Care Centre,-650.48, 23-Aug-2022
350,Revenue,CAHD,South - Commissioned Services,Fees & Charges Income - General,Avon Lodge Care Centre,-1032.28, 23-Aug-2022
351,Revenue,CAHD,South - Commissioned Services,Fees & Charges Income - General,Avon Lodge Care Centre,-627.80, 23-Aug-2022
352,Revenue,CAHD,North - Community based support,Permanent Residential,Avon Lodge Care Centre,3751.96, 23-Aug-2022
353,Revenue,CAHD,North - Community based support,Permanent Nursing,Avon Lodge Care Centre,4553.76, 23-Aug-2022
354,Revenue,CAHD,North - Community based support,Permanent Nursing,Avon Lodge Care Centre,4296.00, 23-Aug-2022
355,Revenue,CAHD,North - Community based support,Permanent Nursing,Avon Lodge Care Centre,4120.64, 23-Aug-2022
356,Revenue,CAHD,North - Community based support,Fees & Charges Income - General,Avon Lodge Care Centre,-627.80, 23-Aug-2022
357,Revenue,CAHD,North - Community based support,Fees & Charges Income - General,Avon Lodge Care Centre,-1349.29, 23-Aug-2022
358,Revenue,CAHD,North - Community based support,Fees & Charges Income - General,Avon Lodge Care Centre,-1493.16, 23-Aug-2022
359,Revenue,CAHD,North - Community based support,Fees & Charges Income - General,Avon Lodge Care Centre,-794.36, 23-Aug-2022
360,Revenue,CAHD,South - S117,Permanent Nursing,Avon Lodge Care Centre,4213.32, 23-Aug-2022
361,Revenue,CAHD,Central - Commissioned Services,Permanent Residential,Avon Valley Care Home,-9759.42, 23-Aug-2022
362,Revenue,CAHD,Central - Commissioned Services,Fees & Charges Income - General,Avon Valley Care Home,1449.45, 23-Aug-2022
363,Revenue,CAHD,South - Commissioned Services,Permanent Residential,Avon Valley Care Home,4337.52, 23-Aug-2022
364,Revenue,CAHD,South - Commissioned Services,Permanent Residential,Avon Valley Care Home,-7759.20, 23-Aug-2022
365,Revenue,CAHD,South - Commissioned Services,Permanent Residential,Avon Valley Care Home,4526.20, 23-Aug-2022
366,Revenue,CAHD,South - Commissioned Services,Permanent Residential,Avon Valley Care Home,4294.16, 23-Aug-2022
367,Revenue,CAHD,South - Commissioned Services,Permanent Residential,Avon Valley Care Home,4483.80, 23-Aug-2022
368,Revenue,CAHD,South - Commissioned Services,Permanent Residential,Avon Valley Care Home,4294.16, 23-Aug-2022
369,Revenue,CAHD,South - Commissioned Services,Permanent Residential,Avon Valley Care Home,4526.20, 23-Aug-2022
370,Revenue,CAHD,South - Commissioned Services,Permanent Residential,Avon Valley Care Home,3214.08, 23-Aug-2022
371,Revenue,CAHD,South - Commissioned Services,Permanent Residential,Avon Valley Care Home,4483.80, 23-Aug-2022
372,Revenue,CAHD,South - Commissioned Services,Permanent Residential,Avon Valley Care Home,4570.00, 23-Aug-2022
373,Revenue,CAHD,South - Commissioned Services,Permanent Residential,Avon Valley Care Home,4728.28, 23-Aug-2022
374,Revenue,CAHD,South - Commissioned Services,Permanent Residential,Avon Valley Care Home,3860.40, 23-Aug-2022
375,Revenue,CAHD,South - Commissioned Services,Permanent Residential,Avon Valley Care Home,4429.64, 23-Aug-2022
376,Revenue,CAHD,South - Commissioned Services,Permanent Residential,Avon Valley Care Home,3980.00, 23-Aug-2022
377,Revenue,CAHD,South - Commissioned Services,Permanent Residential,Avon Valley Care Home,4483.80, 23-Aug-2022
378,Revenue,CAHD,South - Commissioned Services,Permanent Residential,Avon Valley Care Home,3980.00, 23-Aug-2022
379,Revenue,CAHD,South - Commissioned Services,Fees & Charges Income - General,Avon Valley Care Home,-628.16, 23-Aug-2022
380,Revenue,CAHD,South - Commissioned Services,Fees & Charges Income - General,Avon Valley Care Home,2023.83, 23-Aug-2022
381,Revenue,CAHD,South - Commissioned Services,Fees & Charges Income - General,Avon Valley Care Home,-1009.24, 23-Aug-2022
382,Revenue,CAHD,South - Commissioned Services,Fees & Charges Income - General,Avon Valley Care Home,-1285.52, 23-Aug-2022
383,Revenue,CAHD,South - Commissioned Services,Fees & Charges Income - General,Avon Valley Care Home,-1040.32, 23-Aug-2022
384,Revenue,CAHD,South - Commissioned Services,Fees & Charges Income - General,Avon Valley Care Home,0.00, 23-Aug-2022
385,Revenue,CAHD,South - Commissioned Services,Fees & Charges Income - General,Avon Valley Care Home,-1972.56, 23-Aug-2022
386,Revenue,CAHD,South - Commissioned Services,Fees & Charges Income - General,Avon Valley Care Home,-663.80, 23-Aug-2022
387,Revenue,CAHD,South - Commissioned Services,Fees & Charges Income - General,Avon Valley Care Home,-1202.56, 23-Aug-2022
388,Revenue,CAHD,South - Commissioned Services,Fees & Charges Income - General,Avon Valley Care Home,0.00, 23-Aug-2022
389,Revenue,CAHD,South - Commissioned Services,Fees & Charges Income - General,Avon Valley Care Home,-1100.24, 23-Aug-2022
390,Revenue,CAHD,South - Commissioned Services,Fees & Charges Income - General,Avon Valley Care Home,-627.80, 23-Aug-2022
391,Revenue,CAHD,South - Commissioned Services,Fees & Charges Income - General,Avon Valley Care Home,-1175.92, 23-Aug-2022
392,Revenue,CAHD,South - Commissioned Services,Fees & Charges Income - General,Avon Valley Care Home,-793.84, 23-Aug-2022
393,Revenue,CAHD,North - Community based support,Permanent Residential,Avon Valley Care Home,6600.00, 23-Aug-2022
394,Revenue,CAHD,North - Community based support,Fees & Charges Income - General,Avon Valley Care Home,-1342.80, 23-Aug-2022
395,Revenue,CAHD,South - S117,Permanent Residential,Avon Valley Care Home,4337.52, 23-Aug-2022
396,Revenue,CAHD,North - Community based support,Permanent Residential,Avonmere Care Home,4960.80, 23-Aug-2022
397,Revenue,CAHD,North - Community based support,Permanent Residential,Avonmere Care Home,4680.00, 23-Aug-2022
398,Revenue,CAHD,North - Community based support,Permanent Residential,Avonmere Care Home,4793.00, 23-Aug-2022
399,Revenue,CAHD,North - Community based support,Permanent Residential,Avonmere Care Home,4876.00, 23-Aug-2022
400,Revenue,CAHD,North - Community based support,Permanent Residential,Avonmere Care Home,5003.20, 23-Aug-2022
401,Revenue,CAHD,North - Community based support,Fees & Charges Income - General,Avonmere Care Home,-1090.32, 23-Aug-2022
402,Revenue,CAHD,North - Community based support,Fees & Charges Income - General,Avonmere Care Home,-1883.76, 23-Aug-2022
403,Revenue,CAHD,North - Community based support,Fees & Charges Income - General,Avonmere Care Home,-1002.96, 23-Aug-2022
404,Revenue,CAHD,North - Community based support,Fees & Charges Income - General,Avonmere Care Home,-1111.72, 23-Aug-2022
405,Revenue,CAHD,North - Community based support,Fees & Charges Income - General,Avonmere Care Home,-1170.96, 23-Aug-2022
406,Revenue,CAHD,Bed and Breakfast,Storage & Removal,B W Removals,960.00, 11-Aug-2022
407,Revenue,CAHD,School Awards Ceremony,Premises Hire,BAC Trading Limited,4500.00, 26-Aug-2022
408,Revenue,CAHD,South Glos Users in South Glos Homes,Permanent Nursing,Badminton Place,836.76, 23-Aug-2022
409,Revenue,CAHD,South Glos Users in South Glos Homes,Permanent Nursing,Badminton Place,836.76, 23-Aug-2022
410,Revenue,CAHD,South Glos Users in South Glos Homes,Permanent Nursing,Badminton Place,836.76, 23-Aug-2022
411,Revenue,CAHD,South Glos Users in South Glos Homes,Permanent Nursing,Badminton Place,836.76, 23-Aug-2022
412,Revenue,CAHD,South Glos Users in South Glos Homes,Permanent Nursing,Badminton Place,836.76, 23-Aug-2022
413,Revenue,CAHD,South Glos Users in South Glos Homes,Permanent Nursing,Badminton Place,836.76, 23-Aug-2022
414,Revenue,CAHD,South Glos Users in South Glos Homes,Permanent Nursing,Badminton Place,836.76, 23-Aug-2022
415,Revenue,CAHD,Central - Commissioned Services,Permanent Residential,Badminton Place,5400.00, 23-Aug-2022
416,Revenue,CAHD,Central - Commissioned Services,Permanent Residential,Badminton Place,8000.00, 23-Aug-2022
417,Revenue,CAHD,Central - Commissioned Services,Permanent Nursing,Badminton Place,-4083.43, 23-Aug-2022
418,Revenue,CAHD,Central - Commissioned Services,Fees & Charges Income - General,Badminton Place,-3959.38, 23-Aug-2022
419,Revenue,CAHD,Central - Commissioned Services,Fees & Charges Income - General,Badminton Place,-1330.40, 23-Aug-2022
420,Revenue,CAHD,Central - Commissioned Services,Fees & Charges Income - General,Badminton Place,-438.80, 23-Aug-2022
421,Revenue,CAHD,South - Commissioned Services,Permanent Residential,Badminton Place,3136.52, 23-Aug-2022
422,Revenue,CAHD,South - Commissioned Services,Fees & Charges Income - General,Badminton Place,-1502.80, 23-Aug-2022
423,Revenue,CAHD,North - Community based support,Permanent Residential,Badminton Place,4480.00, 23-Aug-2022
424,Revenue,CAHD,North - Community based support,Permanent Nursing,Badminton Place,5156.16, 23-Aug-2022
425,Revenue,CAHD,North - Community based support,Permanent Nursing,Badminton Place,5974.00, 23-Aug-2022
426,Revenue,CAHD,North - Community based support,Fees & Charges Income - General,Badminton Place,-689.68, 23-Aug-2022
427,Revenue,CAHD,North - Community based support,Fees & Charges Income - General,Badminton Place,-991.64, 23-Aug-2022
428,Revenue,CAHD,CSC - Legal Fees,Legal Fees,Barcan + Kirby,500.00, 08-Aug-2022
429,Revenue,CAHD,Contain Outbreak Mgmt Fund,Grants to Voluntary Bodies,Barnardos,1300.00, 09-Aug-2022
430,Revenue,CAHD,Pensions - Non DSG,Unfunded Annual Pension,Bath & North East Somerset Council,100172.78, 09-Aug-2022
431,Revenue,CAHD,Support for Improving Educational Outcomes,Premises Hire,Bawa Healthcare & Leisure,1466.46, 12-Aug-2022
432,Revenue,CAHD,CSC - Adoption Support Fund,Post Adoption,Individual,595.00, 03-Aug-2022
433,Revenue,CAHD,South Glos Users in South Glos Homes,Permanent Nursing,Beaufort Grange Care Home,836.76, 23-Aug-2022
434,Revenue,CAHD,South Glos Users in South Glos Homes,Permanent Nursing,Beaufort Grange Care Home,836.76, 23-Aug-2022
435,Revenue,CAHD,South Glos Users in South Glos Homes,Permanent Nursing,Beaufort Grange Care Home,-5248.67, 23-Aug-2022
436,Revenue,CAHD,South Glos Users in South Glos Homes,Permanent Nursing,Beaufort Grange Care Home,836.76, 23-Aug-2022
437,Revenue,CAHD,South Glos Users in South Glos Homes,Permanent Nursing,Beaufort Grange Care Home,836.76, 23-Aug-2022
438,Revenue,CAHD,South Glos Users in South Glos Homes,Permanent Nursing,Beaufort Grange Care Home,836.76, 23-Aug-2022
439,Revenue,CAHD,South Glos Users in South Glos Homes,Permanent Nursing,Beaufort Grange Care Home,836.76, 23-Aug-2022
440,Revenue,CAHD,South Glos Users in South Glos Homes,Permanent Nursing,Beaufort Grange Care Home,836.76, 23-Aug-2022
441,Revenue,CAHD,South Glos Users in South Glos Homes,Permanent Nursing,Beaufort Grange Care Home,836.76, 23-Aug-2022
442,Revenue,CAHD,South Glos Users in South Glos Homes,Permanent Nursing,Beaufort Grange Care Home,836.76, 23-Aug-2022
443,Revenue,CAHD,South Glos Users in South Glos Homes,Permanent Nursing,Beaufort Grange Care Home,836.76, 23-Aug-2022
444,Revenue,CAHD,South Glos Users in South Glos Homes,Permanent Nursing,Beaufort Grange Care Home,836.76, 23-Aug-2022
445,Revenue,CAHD,South Glos Users in South Glos Homes,Permanent Nursing,Beaufort Grange Care Home,836.76, 23-Aug-2022
446,Revenue,CAHD,South Glos Users in South Glos Homes,Permanent Nursing,Beaufort Grange Care Home,836.76, 23-Aug-2022
447,Revenue,CAHD,South Glos Users in South Glos Homes,Permanent Nursing,Beaufort Grange Care Home,836.76, 23-Aug-2022
448,Revenue,CAHD,South Glos Users in South Glos Homes,Permanent Nursing,Beaufort Grange Care Home,836.76, 23-Aug-2022
449,Revenue,CAHD,South Glos Users in South Glos Homes,Permanent Nursing,Beaufort Grange Care Home,836.76, 23-Aug-2022
450,Revenue,CAHD,South Glos Users in South Glos Homes,Permanent Nursing,Beaufort Grange Care Home,836.76, 23-Aug-2022
451,Revenue,CAHD,South Glos Users in South Glos Homes,Permanent Nursing,Beaufort Grange Care Home,836.76, 23-Aug-2022
452,Revenue,CAHD,South Glos Users in South Glos Homes,Permanent Nursing,Beaufort Grange Care Home,836.76, 23-Aug-2022
453,Revenue,CAHD,South Glos Users in South Glos Homes,Permanent Nursing,Beaufort Grange Care Home,836.76, 23-Aug-2022
454,Revenue,CAHD,South Glos Users in South Glos Homes,Permanent Nursing,Beaufort Grange Care Home,836.76, 23-Aug-2022
455,Revenue,CAHD,South Glos Users in South Glos Homes,Permanent Nursing,Beaufort Grange Care Home,836.76, 23-Aug-2022
456,Revenue,CAHD,South Glos Users in South Glos Homes,Permanent Nursing,Beaufort Grange Care Home,836.76, 23-Aug-2022
457,Revenue,CAHD,South Glos Users in South Glos Homes,Permanent Nursing,Beaufort Grange Care Home,836.76, 23-Aug-2022
458,Revenue,CAHD,South Glos Users in South Glos Homes,Permanent Nursing,Beaufort Grange Care Home,836.76, 23-Aug-2022
459,Revenue,CAHD,South Glos Users in South Glos Homes,Permanent Nursing,Beaufort Grange Care Home,836.76, 23-Aug-2022
460,Revenue,CAHD,South Glos Users in South Glos Homes,Permanent Nursing,Beaufort Grange Care Home,836.76, 23-Aug-2022
461,Revenue,CAHD,South Glos Users in South Glos Homes,Permanent Nursing,Beaufort Grange Care Home,836.76, 23-Aug-2022
462,Revenue,CAHD,South Glos Users in South Glos Homes,Permanent Nursing,Beaufort Grange Care Home,836.76, 23-Aug-2022
463,Revenue,CAHD,South Glos Users in South Glos Homes,Permanent Nursing,Beaufort Grange Care Home,836.76, 23-Aug-2022
464,Revenue,CAHD,South Glos Users in South Glos Homes,Permanent Nursing,Beaufort Grange Care Home,836.76, 23-Aug-2022
465,Revenue,CAHD,South Glos Users in South Glos Homes,Permanent Nursing,Beaufort Grange Care Home,836.76, 23-Aug-2022
466,Revenue,CAHD,South Glos Users in South Glos Homes,Permanent Nursing,Beaufort Grange Care Home,836.76, 23-Aug-2022
467,Revenue,CAHD,South Glos Users in South Glos Homes,Permanent Nursing,Beaufort Grange Care Home,836.76, 23-Aug-2022
468,Revenue,CAHD,South Glos Users in South Glos Homes,Permanent Nursing,Beaufort Grange Care Home,836.76, 23-Aug-2022
469,Revenue,CAHD,South Glos Users in South Glos Homes,Permanent Nursing,Beaufort Grange Care Home,836.76, 23-Aug-2022
470,Revenue,CAHD,South Glos Users in South Glos Homes,Permanent Nursing,Beaufort Grange Care Home,836.76, 23-Aug-2022
471,Revenue,CAHD,Central - Commissioned Services,Permanent Residential,Beaufort Grange Care Home,7200.00, 23-Aug-2022
472,Revenue,CAHD,Central - Commissioned Services,Permanent Nursing,Beaufort Grange Care Home,6250.00, 23-Aug-2022
473,Revenue,CAHD,Central - Commissioned Services,Permanent Nursing,Beaufort Grange Care Home,11684.00, 23-Aug-2022
474,Revenue,CAHD,Central - Commissioned Services,Permanent Nursing,Beaufort Grange Care Home,5400.00, 23-Aug-2022
475,Revenue,CAHD,Central - Commissioned Services,Permanent Nursing,Beaufort Grange Care Home,5500.00, 23-Aug-2022
476,Revenue,CAHD,Central - Commissioned Services,Permanent Nursing,Beaufort Grange Care Home,5449.60, 23-Aug-2022
477,Revenue,CAHD,Central - Commissioned Services,Fees & Charges Income - General,Beaufort Grange Care Home,-607.80, 23-Aug-2022
478,Revenue,CAHD,Central - Commissioned Services,Fees & Charges Income - General,Beaufort Grange Care Home,-694.55, 23-Aug-2022
479,Revenue,CAHD,South - Commissioned Services,Permanent Nursing,Beaufort Grange Care Home,124057.14, 23-Aug-2022
480,Revenue,CAHD,North - Community based support,Permanent Nursing,Beaufort Grange Care Home,4369.60, 23-Aug-2022
481,Revenue,CAHD,North - Community based support,Permanent Nursing,Beaufort Grange Care Home,10620.00, 23-Aug-2022
482,Revenue,CAHD,North - Community based support,Fees & Charges Income - General,Beaufort Grange Care Home,-627.80, 23-Aug-2022
483,Revenue,CAHD,North - Community based support,Fees & Charges Income - General,Beaufort Grange Care Home,-438.80, 23-Aug-2022
484,Revenue,CAHD,Central Team - S117,Permanent Nursing,Beaufort Grange Care Home,6686.36, 23-Aug-2022
485,Revenue,CAHD,North - S117,Permanent Residential,Beaufort Grange Care Home,914.29, 23-Aug-2022
486,Revenue,CAHD,Central - Commissioned Services,Permanent Residential,Beaufort House,3171.36, 23-Aug-2022
487,Revenue,CAHD,Central - Commissioned Services,Permanent Residential,Beaufort House,3070.00, 23-Aug-2022
488,Revenue,CAHD,Central - Commissioned Services,Permanent Residential,Beaufort House,1000.00, 23-Aug-2022
489,Revenue,CAHD,Central - Commissioned Services,Permanent Residential,Beaufort House,4028.00, 23-Aug-2022
490,Revenue,CAHD,Central - Commissioned Services,Permanent Residential,Beaufort House,3582.80, 23-Aug-2022
491,Revenue,CAHD,Central - Commissioned Services,Permanent Residential,Beaufort House,3392.00, 23-Aug-2022
492,Revenue,CAHD,Central - Commissioned Services,Permanent Residential,Beaufort House,4240.00, 23-Aug-2022
493,Revenue,CAHD,Central - Commissioned Services,Permanent Residential,Beaufort House,3816.00, 23-Aug-2022
494,Revenue,CAHD,Central - Commissioned Services,Permanent Residential,Beaufort House,3816.00, 23-Aug-2022
495,Revenue,CAHD,Central - Commissioned Services,Fees & Charges Income - General,Beaufort House,-821.12, 23-Aug-2022
496,Revenue,CAHD,Central - Commissioned Services,Fees & Charges Income - General,Beaufort House,-938.32, 23-Aug-2022
497,Revenue,CAHD,Central - Commissioned Services,Fees & Charges Income - General,Beaufort House,-410.52, 23-Aug-2022
498,Revenue,CAHD,Central - Commissioned Services,Fees & Charges Income - General,Beaufort House,-731.44, 23-Aug-2022
499,Revenue,CAHD,Central - Commissioned Services,Fees & Charges Income - General,Beaufort House,-1448.48, 23-Aug-2022
500,Revenue,CAHD,Central - Commissioned Services,Fees & Charges Income - General,Beaufort House,-751.32, 23-Aug-2022
501,Revenue,CAHD,Central - Commissioned Services,Fees & Charges Income - General,Beaufort House,-627.80, 23-Aug-2022
502,Revenue,CAHD,North - Community based support,Permanent Residential,Beaufort House,4240.00, 23-Aug-2022
503,Revenue,CAHD,North - Community based support,Permanent Residential,Beaufort House,2986.32, 23-Aug-2022
504,Revenue,CAHD,North - Community based support,Permanent Residential,Beaufort House,4240.00, 23-Aug-2022
505,Revenue,CAHD,North - Community based support,Fees & Charges Income - General,Beaufort House,-1166.52, 23-Aug-2022
506,Revenue,CAHD,North - Community based support,Fees & Charges Income - General,Beaufort House,-627.80, 23-Aug-2022
507,Revenue,CAHD,North - Community based support,Fees & Charges Income - General,Beaufort House,-663.80, 23-Aug-2022
508,Revenue,CAHD,South Glos Users in South Glos Homes,Permanent Nursing,Beech House,836.76, 23-Aug-2022
509,Revenue,CAHD,South Glos Users in South Glos Homes,Permanent Nursing,Beech House,836.76, 23-Aug-2022
510,Revenue,CAHD,South Glos Users in South Glos Homes,Permanent Nursing,Beech House,836.76, 23-Aug-2022
511,Revenue,CAHD,South Glos Users in South Glos Homes,Permanent Nursing,Beech House,836.76, 23-Aug-2022
512,Revenue,CAHD,South Glos Users in South Glos Homes,Permanent Nursing,Beech House,836.76, 23-Aug-2022
513,Revenue,CAHD,South Glos Users in South Glos Homes,Permanent Nursing,Beech House,-5570.27, 23-Aug-2022
514,Revenue,CAHD,South Glos Users in South Glos Homes,Permanent Nursing,Beech House,836.76, 23-Aug-2022
515,Revenue,CAHD,South Glos Users in South Glos Homes,Permanent Nursing,Beech House,836.76, 23-Aug-2022
516,Revenue,CAHD,South Glos Users in South Glos Homes,Permanent Nursing,Beech House,836.76, 23-Aug-2022
517,Revenue,CAHD,South Glos Users in South Glos Homes,Permanent Nursing,Beech House,-1703.41, 23-Aug-2022
518,Revenue,CAHD,South Glos Users in South Glos Homes,Permanent Nursing,Beech House,836.76, 23-Aug-2022
519,Revenue,CAHD,South Glos Users in South Glos Homes,Permanent Nursing,Beech House,836.76, 23-Aug-2022
520,Revenue,CAHD,South Glos Users in South Glos Homes,Permanent Nursing,Beech House,836.76, 23-Aug-2022
521,Revenue,CAHD,South Glos Users in South Glos Homes,Permanent Nursing,Beech House,836.76, 23-Aug-2022
522,Revenue,CAHD,South Glos Users in South Glos Homes,Permanent Nursing,Beech House,836.76, 23-Aug-2022
523,Revenue,CAHD,South Glos Users in South Glos Homes,Permanent Nursing,Beech House,836.76, 23-Aug-2022
524,Revenue,CAHD,South Glos Users in South Glos Homes,Permanent Nursing,Beech House,836.76, 23-Aug-2022
525,Revenue,CAHD,South Glos Users in South Glos Homes,Permanent Nursing,Beech House,836.76, 23-Aug-2022
526,Revenue,CAHD,South Glos Users in South Glos Homes,Permanent Nursing,Beech House,836.76, 23-Aug-2022
527,Revenue,CAHD,South Glos Users in South Glos Homes,Permanent Nursing,Beech House,-1882.71, 23-Aug-2022
528,Revenue,CAHD,South Glos Users in South Glos Homes,Permanent Nursing,Beech House,836.76, 23-Aug-2022
529,Revenue,CAHD,Central - Commissioned Services,Permanent Nursing,Beech House,3137.85, 23-Aug-2022
530,Revenue,CAHD,South - Commissioned Services,Permanent Residential,Beech House,4748.80, 23-Aug-2022
531,Revenue,CAHD,South - Commissioned Services,Fees & Charges Income - General,Beech House,-789.36, 23-Aug-2022
532,Revenue,CAHD,North - Community based support,Permanent Residential,Beech House,4727.88, 23-Aug-2022
533,Revenue,CAHD,North - Community based support,Permanent Residential,Beech House,4748.80, 23-Aug-2022
534,Revenue,CAHD,North - Community based support,Permanent Residential,Beech House,4772.80, 23-Aug-2022
535,Revenue,CAHD,North - Community based support,Permanent Residential,Beech House,4748.80, 23-Aug-2022
536,Revenue,CAHD,North - Community based support,Permanent Residential,Beech House,4664.00, 23-Aug-2022
537,Revenue,CAHD,North - Community based support,Permanent Nursing,Beech House,4660.00, 23-Aug-2022
538,Revenue,CAHD,North - Community based support,Permanent Nursing,Beech House,5308.23, 23-Aug-2022
539,Revenue,CAHD,North - Community based support,Permanent Nursing,Beech House,4641.16, 23-Aug-2022
540,Revenue,CAHD,North - Community based support,Permanent Nursing,Beech House,1234.90, 23-Aug-2022
541,Revenue,CAHD,North - Community based support,Permanent Nursing,Beech House,4671.56, 23-Aug-2022
542,Revenue,CAHD,North - Community based support,Permanent Nursing,Beech House,836.76, 23-Aug-2022
543,Revenue,CAHD,North - Community based support,Permanent Nursing,Beech House,1524.10, 23-Aug-2022
544,Revenue,CAHD,North - Community based support,Fees & Charges Income - General,Beech House,-627.80, 23-Aug-2022
545,Revenue,CAHD,North - Community based support,Fees & Charges Income - General,Beech House,-1904.60, 23-Aug-2022
546,Revenue,CAHD,North - Community based support,Fees & Charges Income - General,Beech House,-1356.72, 23-Aug-2022
547,Revenue,CAHD,North - Community based support,Fees & Charges Income - General,Beech House,-400.26, 23-Aug-2022
548,Revenue,CAHD,North - Community based support,Fees & Charges Income - General,Beech House,-1856.44, 23-Aug-2022
549,Revenue,CAHD,North - Community based support,Fees & Charges Income - General,Beech House,-629.00, 23-Aug-2022
550,Revenue,CAHD,North - Community based support,Fees & Charges Income - General,Beech House,-1428.72, 23-Aug-2022
551,Revenue,CAHD,North - Community based support,Fees & Charges Income - General,Beech House,-840.16, 23-Aug-2022
552,Revenue,CAHD,North - Community based support,Fees & Charges Income - General,Beech House,-1304.60, 23-Aug-2022
553,Revenue,CAHD,18-25 Year Olds,Permanent Residential,Beechwood Court Ltd,14491.31, 01-Aug-2022
554,Revenue,CAHD,18-25 Year Olds,Permanent Residential,Beechwood Court Ltd,20867.62, 01-Aug-2022
555,Revenue,CAHD,CSC - CLA Placements,Uniforms & Clothing,Individual,219.30, 19-Aug-2022
556,Revenue,CAHD,CSC - CLA Placements,Personal Needs of Clients,Individual,158.25, 19-Aug-2022
557,Revenue,CAHD,CSC - Age Related Allowances,Foster Parent Allowances,Individual,156.00, 19-Aug-2022
558,Revenue,CAHD,CSC - Professional Fees Foster Carers,Band 1 Foster Care,Individual,170.00, 19-Aug-2022
559,Revenue,CAHD,Ukranian Refugees,Other Small Contracts,Individual,609.33, 12-Aug-2022
560,Revenue,CAHD,South - S117,Permanent Residential,Bidna House,3774.24, 23-Aug-2022
561,Revenue,CAHD,Adult & Community Learning Foundation Skills for W,Consultants Fees,BKSB Limited,1848.00, 16-Aug-2022
562,Revenue,CAHD,Placements OLA Special Schools and RB,Other L.A.s - General,Blaise High School,792.40, 19-Aug-2022
563,Revenue,CAHD,Placements OLA Special Schools and RB,Other L.A.s - General,Blaise High School,792.40, 19-Aug-2022
564,Revenue,CAHD,Statemented Support Payments to OLAs,Other L.A.s - General,Blaise High School,907.83, 19-Aug-2022
565,Revenue,CAHD,Placements OLA Special Schools and RB,Other L.A.s - General,Blaise High School,792.40, 19-Aug-2022
566,Revenue,CAHD,North - Community based support,Other Small Contracts,Blakehill Healthcare Ltd,4579.08, 09-Aug-2022
567,Revenue,CAHD,South - Commissioned Services,Other Small Contracts,Blakehill Healthcare Ltd,4720.99, 09-Aug-2022
568,Revenue,CAHD,Central - Commissioned Services,Other Small Contracts,Blakehill Healthcare Ltd,6229.27, 09-Aug-2022
569,Revenue,CAHD,North - Community based support,Other Small Contracts,Blakehill Healthcare Ltd,4579.08, 09-Aug-2022
570,Revenue,CAHD,South - Commissioned Services,Other Small Contracts,Blakehill Healthcare Ltd,4720.99, 09-Aug-2022
571,Revenue,CAHD,Central - Commissioned Services,Other Small Contracts,Blakehill Healthcare Ltd,6229.27, 09-Aug-2022
572,Revenue,CAHD,18-25 Year Olds,Other Small Contracts,Blakehill Healthcare Ltd,2837.50, 30-Aug-2022
573,Revenue,CAHD,Central - Commissioned Services,Other Small Contracts,Blakehill Healthcare Ltd,493.75, 30-Aug-2022
574,Revenue,CAHD,Central - Commissioned Services,Other Small Contracts,Blakehill Healthcare Ltd,134.38, 30-Aug-2022
575,Revenue,CAHD,Central - Commissioned Services,Other Small Contracts,Blakehill Healthcare Ltd,943.75, 30-Aug-2022
576,Revenue,CAHD,Central - Commissioned Services,Other Small Contracts,Blakehill Healthcare Ltd,2818.75, 30-Aug-2022
577,Revenue,CAHD,Central - Commissioned Services,Other Small Contracts,Blakehill Healthcare Ltd,1021.88, 30-Aug-2022
578,Revenue,CAHD,Central - Commissioned Services,Other Small Contracts,Blakehill Healthcare Ltd,1425.00, 30-Aug-2022
579,Revenue,CAHD,Central - Commissioned Services,Other Small Contracts,Blakehill Healthcare Ltd,1343.75, 30-Aug-2022
580,Revenue,CAHD,Central - Commissioned Services,Other Small Contracts,Blakehill Healthcare Ltd,193.75, 30-Aug-2022
581,Revenue,CAHD,Central - Commissioned Services,Other Small Contracts,Blakehill Healthcare Ltd,5656.25, 30-Aug-2022
582,Revenue,CAHD,Central - Commissioned Services,Other Small Contracts,Blakehill Healthcare Ltd,3075.00, 30-Aug-2022
583,Revenue,CAHD,Central - Commissioned Services,Other Small Contracts,Blakehill Healthcare Ltd,687.50, 30-Aug-2022
584,Revenue,CAHD,Central - Commissioned Services,Other Small Contracts,Blakehill Healthcare Ltd,2687.50, 30-Aug-2022
585,Revenue,CAHD,Central - Commissioned Services,Other Small Contracts,Blakehill Healthcare Ltd,1412.50, 30-Aug-2022
586,Revenue,CAHD,Central - Commissioned Services,Other Small Contracts,Blakehill Healthcare Ltd,1093.75, 30-Aug-2022
587,Revenue,CAHD,Central - Commissioned Services,Other Small Contracts,Blakehill Healthcare Ltd,1062.50, 30-Aug-2022
588,Revenue,CAHD,Central - Commissioned Services,Other Small Contracts,Blakehill Healthcare Ltd,150.00, 30-Aug-2022
589,Revenue,CAHD,Central - Commissioned Services,Other Small Contracts,Blakehill Healthcare Ltd,6875.00, 30-Aug-2022
590,Revenue,CAHD,Central - Commissioned Services,Other Small Contracts,Blakehill Healthcare Ltd,4118.75, 30-Aug-2022
591,Revenue,CAHD,South - Commissioned Services,Other Small Contracts,Blakehill Healthcare Ltd,1818.75, 30-Aug-2022
592,Revenue,CAHD,South - Commissioned Services,Other Small Contracts,Blakehill Healthcare Ltd,1081.25, 30-Aug-2022
593,Revenue,CAHD,South - Commissioned Services,Other Small Contracts,Blakehill Healthcare Ltd,7748.18, 30-Aug-2022
594,Revenue,CAHD,South - Commissioned Services,Other Small Contracts,Blakehill Healthcare Ltd,8858.31, 30-Aug-2022
595,Revenue,CAHD,South - Commissioned Services,Other Small Contracts,Blakehill Healthcare Ltd,2556.25, 30-Aug-2022
596,Revenue,CAHD,South - Commissioned Services,Other Small Contracts,Blakehill Healthcare Ltd,756.25, 30-Aug-2022
597,Revenue,CAHD,South - Commissioned Services,Other Small Contracts,Blakehill Healthcare Ltd,2568.75, 30-Aug-2022
598,Revenue,CAHD,South - Commissioned Services,Other Small Contracts,Blakehill Healthcare Ltd,2625.00, 30-Aug-2022
599,Revenue,CAHD,South - Commissioned Services,Other Small Contracts,Blakehill Healthcare Ltd,1337.50, 30-Aug-2022
600,Revenue,CAHD,South - Commissioned Services,Other Small Contracts,Blakehill Healthcare Ltd,2287.50, 30-Aug-2022
601,Revenue,CAHD,South - Commissioned Services,Other Small Contracts,Blakehill Healthcare Ltd,1793.75, 30-Aug-2022
602,Revenue,CAHD,North - Community based support,Other Small Contracts,Blakehill Healthcare Ltd,20538.85, 30-Aug-2022
603,Revenue,CAHD,North - Community based support,Other Small Contracts,Blakehill Healthcare Ltd,2006.25, 30-Aug-2022
604,Revenue,CAHD,North - Community based support,Other Small Contracts,Blakehill Healthcare Ltd,3062.50, 30-Aug-2022
605,Revenue,CAHD,18-25 Year Olds,Other Small Contracts,Blakehill Healthcare Ltd,3374.00, 30-Aug-2022
606,Revenue,CAHD,Central - Commissioned Services,Other Small Contracts,Blakehill Healthcare Ltd,664.80, 30-Aug-2022
607,Revenue,CAHD,Central - Commissioned Services,Other Small Contracts,Blakehill Healthcare Ltd,1063.77, 30-Aug-2022
608,Revenue,CAHD,Central - Commissioned Services,Other Small Contracts,Blakehill Healthcare Ltd,5878.50, 30-Aug-2022
609,Revenue,CAHD,Central - Commissioned Services,Other Small Contracts,Blakehill Healthcare Ltd,1346.50, 30-Aug-2022
610,Revenue,CAHD,Central - Commissioned Services,Other Small Contracts,Blakehill Healthcare Ltd,2181.25, 30-Aug-2022
611,Revenue,CAHD,Central - Commissioned Services,Other Small Contracts,Blakehill Healthcare Ltd,2345.55, 30-Aug-2022
612,Revenue,CAHD,Central - Commissioned Services,Other Small Contracts,Blakehill Healthcare Ltd,7677.60, 30-Aug-2022
613,Revenue,CAHD,Central - Commissioned Services,Other Small Contracts,Blakehill Healthcare Ltd,3916.27, 30-Aug-2022
614,Revenue,CAHD,Central - Commissioned Services,Other Small Contracts,Blakehill Healthcare Ltd,3425.48, 30-Aug-2022
615,Revenue,CAHD,Central - Commissioned Services,Other Small Contracts,Blakehill Healthcare Ltd,451.23, 30-Aug-2022
616,Revenue,CAHD,Central - Commissioned Services,Other Small Contracts,Blakehill Healthcare Ltd,4490.67, 30-Aug-2022
617,Revenue,CAHD,Central - Commissioned Services,Other Small Contracts,Blakehill Healthcare Ltd,1378.86, 30-Aug-2022
618,Revenue,CAHD,Central - Commissioned Services,Other Small Contracts,Blakehill Healthcare Ltd,1219.69, 30-Aug-2022
619,Revenue,CAHD,Central - Commissioned Services,Other Small Contracts,Blakehill Healthcare Ltd,1427.38, 30-Aug-2022
620,Revenue,CAHD,Central - Commissioned Services,Other Small Contracts,Blakehill Healthcare Ltd,3812.50, 30-Aug-2022
621,Revenue,CAHD,Central - Commissioned Services,Other Small Contracts,Blakehill Healthcare Ltd,5515.11, 30-Aug-2022
622,Revenue,CAHD,South - Commissioned Services,Other Small Contracts,Blakehill Healthcare Ltd,2303.61, 30-Aug-2022
623,Revenue,CAHD,South - Commissioned Services,Other Small Contracts,Blakehill Healthcare Ltd,1430.34, 30-Aug-2022
624,Revenue,CAHD,South - Commissioned Services,Other Small Contracts,Blakehill Healthcare Ltd,9674.05, 30-Aug-2022
625,Revenue,CAHD,South - Commissioned Services,Other Small Contracts,Blakehill Healthcare Ltd,748.06, 30-Aug-2022
626,Revenue,CAHD,South - Commissioned Services,Other Small Contracts,Blakehill Healthcare Ltd,12458.82, 30-Aug-2022
627,Revenue,CAHD,South - Commissioned Services,Other Small Contracts,Blakehill Healthcare Ltd,3283.54, 30-Aug-2022
628,Revenue,CAHD,South - Commissioned Services,Other Small Contracts,Blakehill Healthcare Ltd,692.39, 30-Aug-2022
629,Revenue,CAHD,South - Commissioned Services,Other Small Contracts,Blakehill Healthcare Ltd,821.42, 30-Aug-2022
630,Revenue,CAHD,South - Commissioned Services,Other Small Contracts,Blakehill Healthcare Ltd,3237.90, 30-Aug-2022
631,Revenue,CAHD,South - Commissioned Services,Other Small Contracts,Blakehill Healthcare Ltd,3397.89, 30-Aug-2022
632,Revenue,CAHD,South - Commissioned Services,Other Small Contracts,Blakehill Healthcare Ltd,953.53, 30-Aug-2022
633,Revenue,CAHD,South - Commissioned Services,Other Small Contracts,Blakehill Healthcare Ltd,2627.50, 30-Aug-2022
634,Revenue,CAHD,South - Commissioned Services,Other Small Contracts,Blakehill Healthcare Ltd,2414.67, 30-Aug-2022
635,Revenue,CAHD,North - Community based support,Other Small Contracts,Blakehill Healthcare Ltd,27410.38, 30-Aug-2022
636,Revenue,CAHD,North - Community based support,Other Small Contracts,Blakehill Healthcare Ltd,3214.38, 30-Aug-2022
637,Revenue,CAHD,North - Community based support,Other Small Contracts,Blakehill Healthcare Ltd,556.08, 30-Aug-2022
638,Revenue,CAHD,North - Community based support,Other Small Contracts,Blakehill Healthcare Ltd,2937.16, 30-Aug-2022
639,Revenue,CAHD,South Glos Users in South Glos Homes,Permanent Nursing,Blossom Fields Nursing Home,836.76, 23-Aug-2022
640,Revenue,CAHD,South Glos Users in South Glos Homes,Permanent Nursing,Blossom Fields Nursing Home,2301.09, 23-Aug-2022
641,Revenue,CAHD,South Glos Users in South Glos Homes,Permanent Nursing,Blossom Fields Nursing Home,-627.57, 23-Aug-2022
642,Revenue,CAHD,South Glos Users in South Glos Homes,Permanent Nursing,Blossom Fields Nursing Home,836.76, 23-Aug-2022
643,Revenue,CAHD,South Glos Users in South Glos Homes,Permanent Nursing,Blossom Fields Nursing Home,836.76, 23-Aug-2022
644,Revenue,CAHD,South Glos Users in South Glos Homes,Permanent Nursing,Blossom Fields Nursing Home,836.76, 23-Aug-2022
645,Revenue,CAHD,South Glos Users in South Glos Homes,Permanent Nursing,Blossom Fields Nursing Home,1972.36, 23-Aug-2022
646,Revenue,CAHD,South Glos Users in South Glos Homes,Permanent Nursing,Blossom Fields Nursing Home,836.76, 23-Aug-2022
647,Revenue,CAHD,South Glos Users in South Glos Homes,Permanent Nursing,Blossom Fields Nursing Home,836.76, 23-Aug-2022
648,Revenue,CAHD,South Glos Users in South Glos Homes,Permanent Nursing,Blossom Fields Nursing Home,836.76, 23-Aug-2022
649,Revenue,CAHD,South Glos Users in South Glos Homes,Permanent Nursing,Blossom Fields Nursing Home,836.76, 23-Aug-2022
650,Revenue,CAHD,South Glos Users in South Glos Homes,Permanent Nursing,Blossom Fields Nursing Home,836.76, 23-Aug-2022
651,Revenue,CAHD,South Glos Users in South Glos Homes,Permanent Nursing,Blossom Fields Nursing Home,836.76, 23-Aug-2022
652,Revenue,CAHD,South Glos Users in South Glos Homes,Permanent Nursing,Blossom Fields Nursing Home,836.76, 23-Aug-2022
653,Revenue,CAHD,South Glos Users in South Glos Homes,Permanent Nursing,Blossom Fields Nursing Home,836.76, 23-Aug-2022
654,Revenue,CAHD,South Glos Users in South Glos Homes,Permanent Nursing,Blossom Fields Nursing Home,836.76, 23-Aug-2022
655,Revenue,CAHD,South Glos Users in South Glos Homes,Permanent Nursing,Blossom Fields Nursing Home,836.76, 23-Aug-2022
656,Revenue,CAHD,South Glos Users in South Glos Homes,Permanent Nursing,Blossom Fields Nursing Home,836.76, 23-Aug-2022
657,Revenue,CAHD,South Glos Users in South Glos Homes,Permanent Nursing,Blossom Fields Nursing Home,836.76, 23-Aug-2022
658,Revenue,CAHD,South Glos Users in South Glos Homes,Permanent Nursing,Blossom Fields Nursing Home,836.76, 23-Aug-2022
659,Revenue,CAHD,South Glos Users in South Glos Homes,Permanent Nursing,Blossom Fields Nursing Home,-747.11, 23-Aug-2022
660,Revenue,CAHD,South Glos Users in South Glos Homes,Permanent Nursing,Blossom Fields Nursing Home,3466.58, 23-Aug-2022
661,Revenue,CAHD,South Glos Users in South Glos Homes,Permanent Nursing,Blossom Fields Nursing Home,836.76, 23-Aug-2022
662,Revenue,CAHD,South Glos Users in South Glos Homes,Permanent Nursing,Blossom Fields Nursing Home,836.76, 23-Aug-2022
663,Revenue,CAHD,South Glos Users in South Glos Homes,Permanent Nursing,Blossom Fields Nursing Home,836.76, 23-Aug-2022
664,Revenue,CAHD,South Glos Users in South Glos Homes,Permanent Nursing,Blossom Fields Nursing Home,776.99, 23-Aug-2022
665,Revenue,CAHD,South Glos Users in South Glos Homes,Permanent Nursing,Blossom Fields Nursing Home,836.76, 23-Aug-2022
666,Revenue,CAHD,South Glos Users in South Glos Homes,Permanent Nursing,Blossom Fields Nursing Home,687.34, 23-Aug-2022
667,Revenue,CAHD,South Glos Users in South Glos Homes,Permanent Nursing,Blossom Fields Nursing Home,836.76, 23-Aug-2022
668,Revenue,CAHD,South Glos Users in South Glos Homes,Permanent Nursing,Blossom Fields Nursing Home,1852.83, 23-Aug-2022
669,Revenue,CAHD,Central - Commissioned Services,Respite Planned - Residential,Blossom Fields Nursing Home,1200.00, 23-Aug-2022
670,Revenue,CAHD,Central - Commissioned Services,Respite Planned - Nursing,Blossom Fields Nursing Home,6493.33, 23-Aug-2022
671,Revenue,CAHD,South - Commissioned Services,Respite Planned - Residential,Blossom Fields Nursing Home,2914.29, 23-Aug-2022
672,Revenue,CAHD,South - Commissioned Services,Permanent Nursing,Blossom Fields Nursing Home,5088.00, 23-Aug-2022
673,Revenue,CAHD,South - Commissioned Services,Permanent Nursing,Blossom Fields Nursing Home,4664.00, 23-Aug-2022
674,Revenue,CAHD,South - Commissioned Services,Permanent Nursing,Blossom Fields Nursing Home,4337.08, 23-Aug-2022
675,Revenue,CAHD,South - Commissioned Services,Fees & Charges Income - General,Blossom Fields Nursing Home,-1482.92, 23-Aug-2022
676,Revenue,CAHD,South - Commissioned Services,Fees & Charges Income - General,Blossom Fields Nursing Home,-997.40, 23-Aug-2022
677,Revenue,CAHD,South - Commissioned Services,Fees & Charges Income - General,Blossom Fields Nursing Home,-750.52, 23-Aug-2022
678,Revenue,CAHD,North - Community based support,Permanent Nursing,Blossom Fields Nursing Home,836.76, 23-Aug-2022
679,Revenue,CAHD,North - Community based support,Permanent Nursing,Blossom Fields Nursing Home,5204.88, 23-Aug-2022
680,Revenue,CAHD,North - Community based support,Permanent Nursing,Blossom Fields Nursing Home,20624.76, 23-Aug-2022
681,Revenue,CAHD,North - Community based support,Permanent Nursing,Blossom Fields Nursing Home,-3975.00, 23-Aug-2022
682,Revenue,CAHD,North - Community based support,Permanent Nursing,Blossom Fields Nursing Home,4664.00, 23-Aug-2022
683,Revenue,CAHD,North - Community based support,Permanent Nursing,Blossom Fields Nursing Home,4380.04, 23-Aug-2022
684,Revenue,CAHD,North - Community based support,Permanent Nursing,Blossom Fields Nursing Home,4664.00, 23-Aug-2022
685,Revenue,CAHD,North - Community based support,Permanent Nursing,Blossom Fields Nursing Home,4379.92, 23-Aug-2022
686,Revenue,CAHD,North - Community based support,Permanent Nursing,Blossom Fields Nursing Home,4380.04, 23-Aug-2022
687,Revenue,CAHD,North - Community based support,Fees & Charges Income - General,Blossom Fields Nursing Home,-627.80, 23-Aug-2022
688,Revenue,CAHD,North - Community based support,Fees & Charges Income - General,Blossom Fields Nursing Home,-1162.40, 23-Aug-2022
689,Revenue,CAHD,North - Community based support,Fees & Charges Income - General,Blossom Fields Nursing Home,-663.80, 23-Aug-2022
690,Revenue,CAHD,North - Community based support,Fees & Charges Income - General,Blossom Fields Nursing Home,-1665.84, 23-Aug-2022
691,Revenue,CAHD,North - Community based support,Fees & Charges Income - General,Blossom Fields Nursing Home,-939.56, 23-Aug-2022
692,Revenue,CAHD,South Glos Users in South Glos Homes,Permanent Nursing,Blossom Fields Nursing Home,836.76, 23-Aug-2022
693,Revenue,CAHD,South Glos Users in South Glos Homes,Permanent Nursing,Blossom Fields Nursing Home,836.76, 23-Aug-2022
694,Revenue,CAHD,South Glos Users in South Glos Homes,Permanent Nursing,Blossom Fields Nursing Home,836.76, 23-Aug-2022
695,Revenue,CAHD,South Glos Users in South Glos Homes,Permanent Nursing,Blossom Fields Nursing Home,836.76, 23-Aug-2022
696,Revenue,CAHD,South Glos Users in South Glos Homes,Permanent Nursing,Blossom Fields Nursing Home,836.76, 23-Aug-2022
697,Revenue,CAHD,South Glos Users in South Glos Homes,Permanent Nursing,Blossom Fields Nursing Home,836.76, 23-Aug-2022
698,Revenue,CAHD,South Glos Users in South Glos Homes,Permanent Nursing,Blossom Fields Nursing Home,836.76, 23-Aug-2022
699,Revenue,CAHD,South Glos Users in South Glos Homes,Permanent Nursing,Blossom Fields Nursing Home,836.76, 23-Aug-2022
700,Revenue,CAHD,South Glos Users in South Glos Homes,Permanent Nursing,Blossom Fields Nursing Home,836.76, 23-Aug-2022
701,Revenue,CAHD,South Glos Users in South Glos Homes,Permanent Nursing,Blossom Fields Nursing Home,836.76, 23-Aug-2022
702,Revenue,CAHD,South Glos Users in South Glos Homes,Permanent Nursing,Blossom Fields Nursing Home,836.76, 23-Aug-2022
703,Revenue,CAHD,South Glos Users in South Glos Homes,Permanent Nursing,Blossom Fields Nursing Home,836.76, 23-Aug-2022
704,Revenue,CAHD,South Glos Users in South Glos Homes,Permanent Nursing,Blossom Fields Nursing Home,836.76, 23-Aug-2022
705,Revenue,CAHD,South Glos Users in South Glos Homes,Permanent Nursing,Blossom Fields Nursing Home,836.76, 23-Aug-2022
706,Revenue,CAHD,South Glos Users in South Glos Homes,Permanent Nursing,Blossom Fields Nursing Home,836.76, 23-Aug-2022
707,Revenue,CAHD,South Glos Users in South Glos Homes,Permanent Nursing,Blossom Fields Nursing Home,836.76, 23-Aug-2022
708,Revenue,CAHD,South Glos Users in South Glos Homes,Permanent Nursing,Blossom Fields Nursing Home,836.76, 23-Aug-2022
709,Revenue,CAHD,South Glos Users in South Glos Homes,Permanent Nursing,Blossom Fields Nursing Home,836.76, 23-Aug-2022
710,Revenue,CAHD,South Glos Users in South Glos Homes,Permanent Nursing,Blossom Fields Nursing Home,836.76, 23-Aug-2022
711,Revenue,CAHD,South Glos Users in South Glos Homes,Permanent Nursing,Blossom Fields Nursing Home,836.76, 23-Aug-2022
712,Revenue,CAHD,South Glos Users in South Glos Homes,Permanent Nursing,Blossom Fields Nursing Home,836.76, 23-Aug-2022
713,Revenue,CAHD,South Glos Users in South Glos Homes,Permanent Nursing,Blossom Fields Nursing Home,836.76, 23-Aug-2022
714,Revenue,CAHD,South Glos Users in South Glos Homes,Permanent Nursing,Blossom Fields Nursing Home,836.76, 23-Aug-2022
715,Revenue,CAHD,South Glos Users in South Glos Homes,Permanent Nursing,Blossom Fields Nursing Home,836.76, 23-Aug-2022
716,Revenue,CAHD,South Glos Users in South Glos Homes,Permanent Nursing,Blossom Fields Nursing Home,836.76, 23-Aug-2022
717,Revenue,CAHD,South Glos Users in South Glos Homes,Permanent Nursing,Blossom Fields Nursing Home,836.76, 23-Aug-2022
718,Revenue,CAHD,South Glos Users in South Glos Homes,Permanent Nursing,Blossom Fields Nursing Home,836.76, 23-Aug-2022
719,Revenue,CAHD,South Glos Users in South Glos Homes,Permanent Nursing,Blossom Fields Nursing Home,836.76, 23-Aug-2022
720,Revenue,CAHD,South Glos Users in South Glos Homes,Permanent Nursing,Blossom Fields Nursing Home,836.76, 23-Aug-2022
721,Revenue,CAHD,South Glos Users in South Glos Homes,Permanent Nursing,Blossom Fields Nursing Home,3914.84, 23-Aug-2022
722,Revenue,CAHD,South Glos Users in South Glos Homes,Permanent Nursing,Blossom Fields Nursing Home,836.76, 23-Aug-2022
723,Revenue,CAHD,South Glos Users in South Glos Homes,Permanent Nursing,Blossom Fields Nursing Home,836.76, 23-Aug-2022
724,Revenue,CAHD,South Glos Users in South Glos Homes,Permanent Nursing,Blossom Fields Nursing Home,836.76, 23-Aug-2022
725,Revenue,CAHD,South Glos Users in South Glos Homes,Permanent Nursing,Blossom Fields Nursing Home,836.76, 23-Aug-2022
726,Revenue,CAHD,South Glos Users in South Glos Homes,Permanent Nursing,Blossom Fields Nursing Home,836.76, 23-Aug-2022
727,Revenue,CAHD,South Glos Users in South Glos Homes,Permanent Nursing,Blossom Fields Nursing Home,836.76, 23-Aug-2022
728,Revenue,CAHD,South Glos Users in South Glos Homes,Permanent Nursing,Blossom Fields Nursing Home,836.76, 23-Aug-2022
729,Revenue,CAHD,South Glos Users in South Glos Homes,Permanent Nursing,Blossom Fields Nursing Home,836.76, 23-Aug-2022
730,Revenue,CAHD,South Glos Users in South Glos Homes,Permanent Nursing,Blossom Fields Nursing Home,836.76, 23-Aug-2022
731,Revenue,CAHD,South Glos Users in South Glos Homes,Permanent Nursing,Blossom Fields Nursing Home,2510.28, 23-Aug-2022
732,Revenue,CAHD,South Glos Users in South Glos Homes,Permanent Nursing,Blossom Fields Nursing Home,836.76, 23-Aug-2022
733,Revenue,CAHD,South Glos Users in South Glos Homes,Permanent Nursing,Blossom Fields Nursing Home,836.76, 23-Aug-2022
734,Revenue,CAHD,South Glos Users in South Glos Homes,Permanent Nursing,Blossom Fields Nursing Home,836.76, 23-Aug-2022
735,Revenue,CAHD,South Glos Users in South Glos Homes,Permanent Nursing,Blossom Fields Nursing Home,836.76, 23-Aug-2022
736,Revenue,CAHD,South Glos Users in South Glos Homes,Permanent Nursing,Blossom Fields Nursing Home,836.76, 23-Aug-2022
737,Revenue,CAHD,South Glos Users in South Glos Homes,Permanent Nursing,Blossom Fields Nursing Home,836.76, 23-Aug-2022
738,Revenue,CAHD,South Glos Users in South Glos Homes,Permanent Nursing,Blossom Fields Nursing Home,836.76, 23-Aug-2022
739,Revenue,CAHD,South Glos Users in South Glos Homes,Permanent Nursing,Blossom Fields Nursing Home,836.76, 23-Aug-2022
740,Revenue,CAHD,South Glos Users in South Glos Homes,Permanent Nursing,Blossom Fields Nursing Home,-1495.38, 23-Aug-2022
741,Revenue,CAHD,Central - Commissioned Services,Permanent Residential,Blossom Fields Nursing Home,4028.00, 23-Aug-2022
742,Revenue,CAHD,Central - Commissioned Services,Permanent Residential,Blossom Fields Nursing Home,3816.00, 23-Aug-2022
743,Revenue,CAHD,Central - Commissioned Services,Permanent Nursing,Blossom Fields Nursing Home,9364.29, 23-Aug-2022
744,Revenue,CAHD,Central - Commissioned Services,Permanent Nursing,Blossom Fields Nursing Home,5431.24, 23-Aug-2022
745,Revenue,CAHD,Central - Commissioned Services,Permanent Nursing,Blossom Fields Nursing Home,4380.04, 23-Aug-2022
746,Revenue,CAHD,Central - Commissioned Services,Permanent Nursing,Blossom Fields Nursing Home,4380.04, 23-Aug-2022
747,Revenue,CAHD,Central - Commissioned Services,Permanent Nursing,Blossom Fields Nursing Home,5078.20, 23-Aug-2022
748,Revenue,CAHD,Central - Commissioned Services,Permanent Nursing,Blossom Fields Nursing Home,4600.00, 23-Aug-2022
749,Revenue,CAHD,Central - Commissioned Services,Permanent Nursing,Blossom Fields Nursing Home,5107.84, 23-Aug-2022
750,Revenue,CAHD,Central - Commissioned Services,Permanent Nursing,Blossom Fields Nursing Home,4380.04, 23-Aug-2022
751,Revenue,CAHD,Central - Commissioned Services,Permanent Nursing,Blossom Fields Nursing Home,4381.20, 23-Aug-2022
752,Revenue,CAHD,Central - Commissioned Services,Permanent Nursing,Blossom Fields Nursing Home,4600.00, 23-Aug-2022
753,Revenue,CAHD,Central - Commissioned Services,Permanent Nursing,Blossom Fields Nursing Home,4600.00, 23-Aug-2022
754,Revenue,CAHD,Central - Commissioned Services,Permanent Nursing,Blossom Fields Nursing Home,5421.92, 23-Aug-2022
755,Revenue,CAHD,Central - Commissioned Services,Permanent Nursing,Blossom Fields Nursing Home,4876.00, 23-Aug-2022
756,Revenue,CAHD,Central - Commissioned Services,Permanent Nursing,Blossom Fields Nursing Home,4600.00, 23-Aug-2022
757,Revenue,CAHD,Central - Commissioned Services,Fees & Charges Income - General,Blossom Fields Nursing Home,-1762.52, 23-Aug-2022
758,Revenue,CAHD,Central - Commissioned Services,Fees & Charges Income - General,Blossom Fields Nursing Home,-978.56, 23-Aug-2022
759,Revenue,CAHD,Central - Commissioned Services,Fees & Charges Income - General,Blossom Fields Nursing Home,-627.80, 23-Aug-2022
760,Revenue,CAHD,Central - Commissioned Services,Fees & Charges Income - General,Blossom Fields Nursing Home,-1241.76, 23-Aug-2022
761,Revenue,CAHD,Central - Commissioned Services,Fees & Charges Income - General,Blossom Fields Nursing Home,-2103.80, 23-Aug-2022
762,Revenue,CAHD,Central - Commissioned Services,Fees & Charges Income - General,Blossom Fields Nursing Home,-486.88, 23-Aug-2022
763,Revenue,CAHD,Central - Commissioned Services,Fees & Charges Income - General,Blossom Fields Nursing Home,-1388.88, 23-Aug-2022
764,Revenue,CAHD,Central - Commissioned Services,Fees & Charges Income - General,Blossom Fields Nursing Home,-1207.64, 23-Aug-2022
765,Revenue,CAHD,Central - Commissioned Services,Fees & Charges Income - General,Blossom Fields Nursing Home,-1186.12, 23-Aug-2022
766,Revenue,CAHD,Central - Commissioned Services,Fees & Charges Income - General,Blossom Fields Nursing Home,-635.80, 23-Aug-2022
767,Revenue,CAHD,Central - Commissioned Services,Fees & Charges Income - General,Blossom Fields Nursing Home,-1365.28, 23-Aug-2022
768,Revenue,CAHD,Central - Commissioned Services,Fees & Charges Income - General,Blossom Fields Nursing Home,-866.68, 23-Aug-2022
769,Revenue,CAHD,South - Commissioned Services,Permanent Nursing,Blossom Fields Nursing Home,4179.64, 23-Aug-2022
770,Revenue,CAHD,South - Commissioned Services,Permanent Nursing,Blossom Fields Nursing Home,4381.20, 23-Aug-2022
771,Revenue,CAHD,South - Commissioned Services,Permanent Nursing,Blossom Fields Nursing Home,5300.00, 23-Aug-2022
772,Revenue,CAHD,South - Commissioned Services,Permanent Nursing,Blossom Fields Nursing Home,3816.00, 23-Aug-2022
773,Revenue,CAHD,South - Commissioned Services,Fees & Charges Income - General,Blossom Fields Nursing Home,530.00, 23-Aug-2022
774,Revenue,CAHD,South - Commissioned Services,Fees & Charges Income - General,Blossom Fields Nursing Home,-21728.46, 23-Aug-2022
775,Revenue,CAHD,South - Commissioned Services,Fees & Charges Income - General,Blossom Fields Nursing Home,-1146.60, 23-Aug-2022
776,Revenue,CAHD,South - Commissioned Services,Fees & Charges Income - General,Blossom Fields Nursing Home,-928.60, 23-Aug-2022
777,Revenue,CAHD,North - Community based support,Permanent Residential,Blossom Fields Nursing Home,3498.00, 23-Aug-2022
778,Revenue,CAHD,North - Community based support,Permanent Nursing,Blossom Fields Nursing Home,4381.20, 23-Aug-2022
779,Revenue,CAHD,North - Community based support,Fees & Charges Income - General,Blossom Fields Nursing Home,-1413.08, 23-Aug-2022
780,Revenue,CAHD,North - Community based support,Fees & Charges Income - General,Blossom Fields Nursing Home,-627.80, 23-Aug-2022
781,Revenue,CAHD,North - S117,Permanent Residential,Blossom Fields Nursing Home,5205.04, 23-Aug-2022
782,Revenue,CAHD,Statemented Support Payments to OLAs,Other L.A.s - General,Blue Coat CE VA Primary School,1292.50, 19-Aug-2022
783,Revenue,CAHD,Early Years High Needs Support,Other Private Contractors,Bluebells Pre School,546.04, 19-Aug-2022
784,Revenue,CAHD,North - Community based support,Other Small Contracts,Bluebird Care (South Gloucestershire),18810.42, 23-Aug-2022
785,Revenue,CAHD,North - Community based support,Other Small Contracts,Bluebird Care (South Gloucestershire),18585.09, 23-Aug-2022
786,Revenue,CAHD,North - Community based support,Other Small Contracts,Bluebird Care (South Gloucestershire),18740.49, 23-Aug-2022
787,Revenue,CAHD,CSC - Asylum Seekers - Unaccompanied,Independent Living,Blueline Healthcare Solutions Ltd T/A Blueline Car,5564.28, 08-Aug-2022
788,Revenue,CAHD,CSC - Asylum Seekers - Unaccompanied,Independent Living,Blueline Healthcare Solutions Ltd T/A Blueline Car,5564.28, 08-Aug-2022
789,Revenue,CAHD,CSC - Asylum Seekers - Unaccompanied,Independent Living,Blueline Healthcare Solutions Ltd T/A Blueline Car,4207.14, 26-Aug-2022
790,Revenue,CAHD,CSC - Asylum Seekers - Unaccompanied,Independent Living,Blueline Healthcare Solutions Ltd T/A Blueline Car,4207.14, 26-Aug-2022
791,Revenue,CAHD,CSC - Asylum Seekers - Unaccompanied,Independent Living,Blueline Healthcare Solutions Ltd T/A Blueline Car,4207.14, 26-Aug-2022
792,Revenue,CAHD,CSC - Asylum Seekers - Unaccompanied,Independent Living,Blueline Healthcare Solutions Ltd T/A Blueline Car,4207.14, 26-Aug-2022
793,Revenue,CAHD,CSC - Asylum Seekers - Unaccompanied,Independent Living,Blueline Healthcare Solutions Ltd T/A Blueline Car,4207.14, 26-Aug-2022
794,Revenue,CAHD,CSC - Asylum Seekers - Unaccompanied,Independent Living,Blueline Healthcare Solutions Ltd T/A Blueline Car,4207.14, 26-Aug-2022
795,Revenue,CAHD,"Drugs, Alcohol and Sexual Health",Other Small Contracts,Boots UK Ltd,900.00, 03-Aug-2022
796,Revenue,CAHD,Social Lettings Agency,Prop.Serv. General Repairs,BPM Contracting Services Limited,775.00, 17-Aug-2022
797,Revenue,CAHD,S28A cases,Permanent Residential,Bradbury House,6505.16, 23-Aug-2022
798,Revenue,CAHD,S28A cases,Fees & Charges Income - General,Bradbury House,-438.80, 23-Aug-2022
799,Revenue,CAHD,Central - Commissioned Services,Permanent Residential,Bradbury House,11342.80, 23-Aug-2022
800,Revenue,CAHD,North - S117,Permanent Residential,Bradbury House,7106.96, 23-Aug-2022
801,Revenue,CAHD,Jointly Funded H&SC Packages,Permanent Residential,Bradbury House,7106.96, 23-Aug-2022
802,Revenue,CAHD,Cardio Vascular Disease - Risks,Other Small Contracts,Bradley Stoke Surgery,1265.00, 22-Aug-2022
803,Revenue,CAHD,Early Years Development,Premises Hire,Bradley Stoke Town Council,588.50, 05-Aug-2022
804,Revenue,CAHD,Alexandra Way,"Provisions (Food, etc)",Brake Bros,554.72, 23-Aug-2022
805,Revenue,CAHD,CSC - Residential Placements,Permanent Residential,Branas ISAF Ltd,21921.34, 01-Aug-2022
806,Revenue,CAHD,CSC - Residential Placements,Permanent Residential,Branas ISAF Ltd,21921.34, 22-Aug-2022
807,Revenue,CAHD,Social Lettings Agency,Rent,Individual,822.73, 25-Aug-2022
808,Revenue,CAHD,Social Lettings Agency,Fees & Charges Income - General,Individual,-102.80, 25-Aug-2022
809,Revenue,CAHD,Social Lettings Agency,Rent,Individual,915.00, 03-Aug-2022
810,Revenue,CAHD,Social Lettings Agency,Fees & Charges Income - General,Individual,-73.20, 03-Aug-2022
811,Revenue,CAHD,Placements OLA Special Schools and RB,Other L.A.s - General,Briarwood School,2774.72, 19-Aug-2022
812,Revenue,CAHD,Placements OLA Special Schools and RB,Other L.A.s - General,Briarwood School,1981.43, 19-Aug-2022
813,Revenue,CAHD,Placements OLA Special Schools and RB,Other L.A.s - General,Briarwood School,792.40, 19-Aug-2022
814,Revenue,CAHD,North - Community based support,Permanent Residential,Bridge House Care Home,3286.00, 23-Aug-2022
815,Revenue,CAHD,North - Community based support,Permanent Residential,Bridge House Care Home,3440.00, 23-Aug-2022
816,Revenue,CAHD,North - Community based support,Permanent Residential,Bridge House Care Home,3088.32, 23-Aug-2022
817,Revenue,CAHD,North - Community based support,Permanent Nursing,Bridge House Care Home,3360.00, 23-Aug-2022
818,Revenue,CAHD,North - Community based support,Fees & Charges Income - General,Bridge House Care Home,-627.80, 23-Aug-2022
819,Revenue,CAHD,North - Community based support,Fees & Charges Income - General,Bridge House Care Home,-650.88, 23-Aug-2022
820,Revenue,CAHD,North - Community based support,Fees & Charges Income - General,Bridge House Care Home,-651.64, 23-Aug-2022
821,Revenue,CAHD,North - Community based support,Fees & Charges Income - General,Bridge House Care Home,-1679.52, 23-Aug-2022
822,Revenue,CAHD,North - Community based support,Permanent Residential,Bridgwater Court Care Home,10773.64, 23-Aug-2022
823,Revenue,CAHD,Statemented Support Payments to OLAs,Other L.A.s - General,Bristol Cathedral Choir School,942.58, 19-Aug-2022
824,Revenue,CAHD,Statemented Support Payments to OLAs,Other L.A.s - General,Bristol Cathedral Choir School,880.08, 19-Aug-2022
825,Revenue,CAHD,Statemented Support Payments to OLAs,Other L.A.s - General,Bristol Cathedral Choir School,978.57, 19-Aug-2022
826,Revenue,CAHD,Statemented Support Payments to OLAs,Other L.A.s - General,Bristol City Council Schools General,897.42, 19-Aug-2022
827,Revenue,CAHD,Statemented Support Payments to OLAs,Other L.A.s - General,Bristol City Council Schools General,635.33, 19-Aug-2022
828,Revenue,CAHD,Schools Specific Grant Income,Other Public Bodies,Bristol City Council Schools General,500.00, 04-Aug-2022
829,Revenue,CAHD,Placements OLA Special Schools and RB,Other L.A.s - General,Bristol Hospital Education,887.53, 19-Aug-2022
830,Revenue,CAHD,Schools Specific Grant Income,Educational Materials,Bristol Tuition Limited,3000.00, 01-Aug-2022
831,Revenue,CAHD,Adult & Community Learning Employability 21/22,Training Expenses,British Red Cross,739.00, 12-Aug-2022
832,Revenue,CAHD,Adult & Community Learning Employability 21/22,Training Expenses,British Red Cross,739.00, 12-Aug-2022
833,Revenue,CAHD,Statemented Support Payments to OLAs,Other L.A.s - General,Broadlands Academy,835.17, 19-Aug-2022
834,Revenue,CAHD,North - Community based support,Permanent Residential,Brockhills Farm,3200.00, 23-Aug-2022
835,Revenue,CAHD,North - Community based support,Fees & Charges Income - General,Brockhills Farm,-658.96, 23-Aug-2022
836,Revenue,CAHD,Supporting People Programme,Grants to Voluntary Bodies,Bromford  :  Merlin Housing Society,2824.17, 01-Aug-2022
837,Revenue,CAHD,Supporting People Programme,Grants to Voluntary Bodies,Bromford  :  Merlin Housing Society,1146.92, 01-Aug-2022
838,Revenue,CAHD,Supporting People Programme,Grants to Voluntary Bodies,Bromford  :  Merlin Housing Society,23628.83, 01-Aug-2022
839,Revenue,CAHD,Parent Partnership & Disagreement Resolutions,Fees - General,Individual,3500.00, 31-Aug-2022
840,Revenue,CAHD,South Glos Users in South Glos Homes,Permanent Nursing,Brunelcare,896.53, 11-Aug-2022
841,Revenue,CAHD,South Glos Users in South Glos Homes,Permanent Nursing,Brunelcare,896.53, 11-Aug-2022
842,Revenue,CAHD,South Glos Users in South Glos Homes,Permanent Nursing,Brunelcare,896.53, 11-Aug-2022
843,Revenue,CAHD,South Glos Users in South Glos Homes,Permanent Nursing,Brunelcare,896.53, 11-Aug-2022
844,Revenue,CAHD,South Glos Users in South Glos Homes,Permanent Nursing,Brunelcare,896.53, 11-Aug-2022
845,Revenue,CAHD,North - S117,Permanent Nursing,Brunelcare,3927.34, 11-Aug-2022
846,Revenue,CAHD,North - S117,Permanent Nursing,Brunelcare,3927.34, 11-Aug-2022
847,Revenue,CAHD,South - Commissioned Services,Permanent Nursing,Brunelcare,2090.34, 11-Aug-2022
848,Revenue,CAHD,South - Commissioned Services,Permanent Nursing,Brunelcare,2225.49, 11-Aug-2022
849,Revenue,CAHD,South - Commissioned Services,Permanent Nursing,Brunelcare,2846.06, 11-Aug-2022
850,Revenue,CAHD,South - Commissioned Services,Permanent Nursing,Brunelcare,2658.34, 11-Aug-2022
851,Revenue,CAHD,South - Commissioned Services,Permanent Nursing,Brunelcare,3245.79, 11-Aug-2022
852,Revenue,CAHD,South - Commissioned Services,Permanent Nursing,Brunelcare,3254.70, 11-Aug-2022
853,Revenue,CAHD,Central - Commissioned Services,Permanent Nursing,Brunelcare,2977.16, 11-Aug-2022
854,Revenue,CAHD,Central - Commissioned Services,Permanent Nursing,Brunelcare,1336.22, 11-Aug-2022
855,Revenue,CAHD,South - Commissioned Services,Respite Planned - Nursing,Brunelcare,3927.34, 11-Aug-2022
856,Revenue,CAHD,North - Community based support,Permanent Nursing,Brunelcare,2784.56, 11-Aug-2022
857,Revenue,CAHD,South - Commissioned Services,Respite Planned - Nursing,Brunelcare,1440.03, 11-Aug-2022
858,Revenue,CAHD,South - Commissioned Services,Other Small Contracts,Brunelcare,15360.39, 09-Aug-2022
859,Revenue,CAHD,South - Commissioned Services,Other Small Contracts,Brunelcare,15360.39, 09-Aug-2022
860,Revenue,CAHD,North - S117,Permanent Residential,Buckland Care,3600.00, 23-Aug-2022
861,Revenue,CAHD,Early Years High Needs Support,Other Private Contractors,Busy Bees Day Nursery,758.39, 19-Aug-2022
862,Revenue,CAHD,CSC - Vinney Green Secure Unit,R & M by Departments,BWS Standfast Fire & Security Systems,1023.82, 19-Aug-2022
863,Revenue,CAHD,CSC - Vinney Green Secure Unit,Security Systems,BWS Standfast Fire & Security Systems,1251.00, 30-Aug-2022
864,Revenue,CAHD,CSC - Asylum Seekers - Unaccompanied,Foster Parent Allowances,By the Bridge Ltd,4647.53, 31-Aug-2022
865,Revenue,CAHD,CSC - Asylum Seekers - Unaccompanied,Foster Parent Allowances,By the Bridge Ltd,4647.53, 31-Aug-2022
866,Revenue,CAHD,CSC - Asylum Seekers - Unaccompanied,Foster Parent Allowances,By the Bridge Ltd,4742.38, 31-Aug-2022
867,Revenue,CAHD,CSC - Agency Fostering,Foster Parent Allowances,By the Bridge Ltd,3321.34, 31-Aug-2022
868,Revenue,CAHD,Social Lettings Agency,Rent,Individual,947.40, 12-Aug-2022
869,Revenue,CAHD,Social Lettings Agency,Fees & Charges Income - General,Individual,-94.74, 12-Aug-2022
870,Revenue,CAHD,Statemented Support Academies,Other Public Bodies,Cabot Learning Federation,1019.33, 22-Aug-2022
871,Revenue,CAHD,Statemented Support Academies,Other Public Bodies,Cabot Learning Federation,1179.67, 22-Aug-2022
872,Revenue,CAHD,Statemented Support Academies,Other Public Bodies,Cabot Learning Federation,646.67, 22-Aug-2022
873,Revenue,CAHD,Statemented Support Academies,Other Public Bodies,Cabot Learning Federation,836.67, 22-Aug-2022
874,Revenue,CAHD,Statemented Support Academies,Other Public Bodies,Cabot Learning Federation,2227.06, 22-Aug-2022
875,Revenue,CAHD,Statemented Support Academies,Other Public Bodies,Cabot Learning Federation,1103.25, 22-Aug-2022
876,Revenue,CAHD,Statemented Support Academies,Other Public Bodies,Cabot Learning Federation,1899.58, 22-Aug-2022
877,Revenue,CAHD,Statemented Support Academies,Other Public Bodies,Cabot Learning Federation,1654.33, 22-Aug-2022
878,Revenue,CAHD,Statemented Support Academies,Other Public Bodies,Cabot Learning Federation,973.50, 22-Aug-2022
879,Revenue,CAHD,Statemented Support Academies,Other Public Bodies,Cabot Learning Federation,908.00, 22-Aug-2022
880,Revenue,CAHD,Statemented Support Academies,Other Public Bodies,Cabot Learning Federation,632.67, 22-Aug-2022
881,Revenue,CAHD,Statemented Support Academies,Other Public Bodies,Cabot Learning Federation,695.61, 22-Aug-2022
882,Revenue,CAHD,Statemented Support Academies,Other Public Bodies,Cabot Learning Federation,918.75, 22-Aug-2022
883,Revenue,CAHD,Statemented Support Academies,Other Public Bodies,Cabot Learning Federation,975.58, 22-Aug-2022
884,Revenue,CAHD,Statemented Support Academies,Other Public Bodies,Cabot Learning Federation,705.00, 22-Aug-2022
885,Revenue,CAHD,Statemented Support Academies,Other Public Bodies,Cabot Learning Federation,1495.00, 22-Aug-2022
886,Revenue,CAHD,Statemented Support Academies,Other Public Bodies,Cabot Learning Federation,1084.17, 22-Aug-2022
887,Revenue,CAHD,Academy Resource Base Funding,Other Public Bodies,Cabot Learning Federation,1702.96, 19-Aug-2022
888,Revenue,CAHD,Academy Resource Base Funding,Other Public Bodies,Cabot Learning Federation,1540.83, 19-Aug-2022
889,Revenue,CAHD,Academy Resource Base Funding,Other Public Bodies,Cabot Learning Federation,1540.83, 19-Aug-2022
890,Revenue,CAHD,Academy Resource Base Funding,Other Public Bodies,Cabot Learning Federation,1175.87, 19-Aug-2022
891,Revenue,CAHD,Academy Resource Base Funding,Other Public Bodies,Cabot Learning Federation,1175.87, 19-Aug-2022
892,Revenue,CAHD,Academy Resource Base Funding,Other Public Bodies,Cabot Learning Federation,1175.87, 19-Aug-2022
893,Revenue,CAHD,Academy Resource Base Funding,Other Public Bodies,Cabot Learning Federation,1540.83, 19-Aug-2022
894,Revenue,CAHD,Academy Resource Base Funding,Other Public Bodies,Cabot Learning Federation,1013.74, 19-Aug-2022
895,Revenue,CAHD,Academy Resource Base Funding,Other Public Bodies,Cabot Learning Federation,1702.96, 19-Aug-2022
896,Revenue,CAHD,Academy Resource Base Funding,Other Public Bodies,Cabot Learning Federation,1175.87, 19-Aug-2022
897,Revenue,CAHD,Academy Resource Base Funding,Other Public Bodies,Cabot Learning Federation,1175.87, 19-Aug-2022
898,Revenue,CAHD,Academy Resource Base Funding,Other Public Bodies,Cabot Learning Federation,1702.96, 19-Aug-2022
899,Revenue,CAHD,Academy Resource Base Funding,Other Public Bodies,Cabot Learning Federation,648.70, 19-Aug-2022
900,Revenue,CAHD,Academy Resource Base Funding,Other Public Bodies,Cabot Learning Federation,1175.87, 19-Aug-2022
901,Revenue,CAHD,Academy Resource Base Funding,Other Public Bodies,Cabot Learning Federation,2513.88, 19-Aug-2022
902,Revenue,CAHD,Academy Resource Base Funding,Other Public Bodies,Cabot Learning Federation,1702.96, 19-Aug-2022
903,Revenue,CAHD,Academy Resource Base Funding,Other Public Bodies,Cabot Learning Federation,1175.87, 19-Aug-2022
904,Revenue,CAHD,Academy Resource Base Funding,Other Public Bodies,Cabot Learning Federation,1702.96, 19-Aug-2022
905,Revenue,CAHD,Academy Resource Base Funding,Other Public Bodies,Cabot Learning Federation,1702.96, 19-Aug-2022
906,Revenue,CAHD,Academy Resource Base Funding,Other Public Bodies,Cabot Learning Federation,648.70, 19-Aug-2022
907,Revenue,CAHD,Academy Resource Base Funding,Other Public Bodies,Cabot Learning Federation,1540.83, 19-Aug-2022
908,Revenue,CAHD,Academy Resource Base Funding,Other Public Bodies,Cabot Learning Federation,1175.87, 19-Aug-2022
909,Revenue,CAHD,Academy Resource Base Funding,Other Public Bodies,Cabot Learning Federation,2189.53, 19-Aug-2022
910,Revenue,CAHD,Academy Resource Base Funding,Other Public Bodies,Cabot Learning Federation,1175.87, 19-Aug-2022
911,Revenue,CAHD,Academy Resource Base Funding,Other Public Bodies,Cabot Learning Federation,1175.87, 19-Aug-2022
912,Revenue,CAHD,Academy Resource Base Funding,Other Public Bodies,Cabot Learning Federation,5095.92, 19-Aug-2022
913,Revenue,CAHD,Statemented Support Academies,Other Public Bodies,Cabot Learning Federation,1626.67, 22-Aug-2022
914,Revenue,CAHD,Statemented Support Academies,Other Public Bodies,Cabot Learning Federation,1418.32, 22-Aug-2022
915,Revenue,CAHD,Statemented Support Academies,Other Public Bodies,Cabot Learning Federation,710.58, 22-Aug-2022
916,Revenue,CAHD,Statemented Support Academies,Other Public Bodies,Cabot Learning Federation,804.08, 22-Aug-2022
917,Revenue,CAHD,Statemented Support Academies,Other Public Bodies,Cabot Learning Federation,855.08, 22-Aug-2022
918,Revenue,CAHD,Statemented Support Academies,Other Public Bodies,Cabot Learning Federation,554.13, 22-Aug-2022
919,Revenue,CAHD,Statemented Support Academies,Other Public Bodies,Cabot Learning Federation,742.77, 22-Aug-2022
920,Revenue,CAHD,Statemented Support Academies,Other Public Bodies,Cabot Learning Federation,778.14, 22-Aug-2022
921,Revenue,CAHD,Statemented Support Academies,Other Public Bodies,Cabot Learning Federation,1202.67, 22-Aug-2022
922,Revenue,CAHD,Statemented Support Academies,Other Public Bodies,Cabot Learning Federation,813.51, 22-Aug-2022
923,Revenue,CAHD,Statemented Support Payments to OLAs,Other L.A.s - General,Cabot Learning Federation,601.29, 19-Aug-2022
924,Revenue,CAHD,Statemented Support Academies,Other Public Bodies,Cabot Learning Federation,661.33, 22-Aug-2022
925,Revenue,CAHD,Statemented Support Academies,Other Public Bodies,Cabot Learning Federation,1131.84, 22-Aug-2022
926,Revenue,CAHD,Statemented Support Academies,Other Public Bodies,Cabot Learning Federation,1202.67, 22-Aug-2022
927,Revenue,CAHD,Statemented Support Academies,Other Public Bodies,Cabot Learning Federation,554.13, 22-Aug-2022
928,Revenue,CAHD,Statemented Support Academies,Other Public Bodies,Cabot Learning Federation,1028.08, 22-Aug-2022
929,Revenue,CAHD,Statemented Support Academies,Other Public Bodies,Cabot Learning Federation,1096.47, 22-Aug-2022
930,Revenue,CAHD,Statemented Support Academies,Other Public Bodies,Cabot Learning Federation,2292.42, 22-Aug-2022
931,Revenue,CAHD,Statemented Support Academies,Other Public Bodies,Cabot Learning Federation,1429.42, 22-Aug-2022
932,Revenue,CAHD,Statemented Support Academies,Other Public Bodies,Cabot Learning Federation,730.98, 22-Aug-2022
933,Revenue,CAHD,Statemented Support Academies,Other Public Bodies,Cabot Learning Federation,680.42, 22-Aug-2022
934,Revenue,CAHD,Statemented Support Academies,Other Public Bodies,Cabot Learning Federation,1150.25, 22-Aug-2022
935,Revenue,CAHD,Statemented Support Academies,Other Public Bodies,Cabot Learning Federation,5334.68, 22-Aug-2022
936,Revenue,CAHD,Statemented Support Academies,Other Public Bodies,Cabot Learning Federation,685.33, 22-Aug-2022
937,Revenue,CAHD,Statemented Support Academies,Other Public Bodies,Cabot Learning Federation,530.55, 22-Aug-2022
938,Revenue,CAHD,Statemented Support Academies,Other Public Bodies,Cabot Learning Federation,896.46, 22-Aug-2022
939,Revenue,CAHD,Statemented Support Payments to OLAs,Other L.A.s - General,Cabot Learning Federation,1062.33, 19-Aug-2022
940,Revenue,CAHD,Statemented Support Payments to OLAs,Other L.A.s - General,Cabot Learning Federation,809.75, 19-Aug-2022
941,Revenue,CAHD,Statemented Support Payments to OLAs,Other L.A.s - General,Cabot Learning Federation,888.33, 19-Aug-2022
942,Revenue,CAHD,Statemented Support Payments to OLAs,Other L.A.s - General,Cabot Learning Federation,5985.00, 19-Aug-2022
943,Revenue,CAHD,Statemented Support Payments to OLAs,Other L.A.s - General,Cabot Learning Federation,1202.67, 19-Aug-2022
944,Revenue,CAHD,Statemented Support Academies,Other Public Bodies,Cabot Learning Federation,577.50, 22-Aug-2022
945,Revenue,CAHD,Statemented Support Academies,Other Public Bodies,Cabot Learning Federation,1297.08, 22-Aug-2022
946,Revenue,CAHD,Statemented Support Academies,Other Public Bodies,Cabot Learning Federation,966.83, 22-Aug-2022
947,Revenue,CAHD,Statemented Support Academies,Other Public Bodies,Cabot Learning Federation,526.00, 22-Aug-2022
948,Revenue,CAHD,Statemented Support Academies,Other Public Bodies,Cabot Learning Federation,671.71, 22-Aug-2022
949,Revenue,CAHD,Statemented Support Payments to OLAs,Other L.A.s - General,Cabot Learning Federation,665.33, 19-Aug-2022
950,Revenue,CAHD,Cardio Vascular Disease - Risks,Other Small Contracts,Cadbury Heath Healthcare,4531.00, 22-Aug-2022
951,Revenue,CAHD,Early Years High Needs Support,Other Private Contractors,Caerleon Childcare,515.71, 19-Aug-2022
952,Revenue,CAHD,South - Commissioned Services,Permanent Nursing,Caernarvon House,5114.28, 23-Aug-2022
953,Revenue,CAHD,South - Commissioned Services,Permanent Nursing,Caernarvon House,3079.88, 23-Aug-2022
954,Revenue,CAHD,South - Commissioned Services,Fees & Charges Income - General,Caernarvon House,-21542.62, 23-Aug-2022
955,Revenue,CAHD,South - Commissioned Services,Fees & Charges Income - General,Caernarvon House,-773.60, 23-Aug-2022
956,Revenue,CAHD,North - Community based support,Permanent Nursing,Caernarvon House,4901.16, 23-Aug-2022
957,Revenue,CAHD,North - Community based support,Permanent Nursing,Caernarvon House,3474.32, 23-Aug-2022
958,Revenue,CAHD,North - Community based support,Fees & Charges Income - General,Caernarvon House,-627.80, 23-Aug-2022
959,Revenue,CAHD,North - Community based support,Fees & Charges Income - General,Caernarvon House,-1036.92, 23-Aug-2022
960,Revenue,CAHD,South - S117,Permanent Nursing,Caernarvon House,5114.28, 23-Aug-2022
961,Revenue,CAHD,North - S117,Permanent Nursing,Caernarvon House,4151.84, 23-Aug-2022
962,Revenue,CAHD,Early Years Development,External Lecturers Fees,Cambium Sustainable Landscapes & Training,777.00, 17-Aug-2022
963,Revenue,CAHD,Early Years Development,External Lecturers Fees,Cambium Sustainable Landscapes & Training,861.00, 17-Aug-2022
964,Revenue,CAHD,Post 16 High Needs Placements,Other Private Contractors,Candle Ltd,9635.00, 16-Aug-2022
965,Revenue,CAHD,MH Purchasing - Younger,Permanent Residential,Canonbury Residential Home,3400.00, 23-Aug-2022
966,Revenue,CAHD,MH Purchasing - Younger,Fees & Charges Income - General,Canonbury Residential Home,5320.78, 23-Aug-2022
967,Revenue,CAHD,Schools Specific Grant Income,Educational Materials,Cardiff and Vale Tutors,682.65, 01-Aug-2022
968,Revenue,CAHD,North - Community based support,Other Small Contracts,Care 1st Homecare,632.84, 09-Aug-2022
969,Revenue,CAHD,Central - Commissioned Services,Other Small Contracts,Care 1st Homecare,3734.65, 09-Aug-2022
970,Revenue,CAHD,North - Community based support,Other Small Contracts,Care 1st Homecare,632.84, 09-Aug-2022
971,Revenue,CAHD,Central - Commissioned Services,Other Small Contracts,Care 1st Homecare,3734.65, 09-Aug-2022
972,Revenue,CAHD,Central - Commissioned Services,Other Small Contracts,Care 1st Homecare,42999.15, 23-Aug-2022
973,Revenue,CAHD,Central - Commissioned Services,Other Small Contracts,Care 1st Homecare,74802.80, 23-Aug-2022
974,Revenue,CAHD,Central - Commissioned Services,Other Small Contracts,Care 1st Homecare,15396.00, 23-Aug-2022
975,Revenue,CAHD,South - Commissioned Services,Other Small Contracts,Care 1st Homecare,1904.40, 23-Aug-2022
976,Revenue,CAHD,North - Community based support,Other Small Contracts,Care 1st Homecare,17244.02, 23-Aug-2022
977,Revenue,CAHD,North - Community based support,Other Small Contracts,Care 1st Homecare,27633.04, 23-Aug-2022
978,Revenue,CAHD,North - Community based support,Other Small Contracts,Care 1st Homecare,36570.93, 23-Aug-2022
979,Revenue,CAHD,North - Community based support,Respite Care,Care Horizons,0.00, 23-Aug-2022
980,Revenue,CAHD,North - Community based support,Respite Care,Care Horizons,0.00, 23-Aug-2022
981,Revenue,CAHD,North - Community based support,Supported Living,Care Horizons,5727.08, 23-Aug-2022
982,Revenue,CAHD,North - Community based support,Supported Living,Care Horizons,5727.08, 23-Aug-2022
983,Revenue,CAHD,North - Community based support,Other Small Contracts,Care Horizons Limited,3687.94, 09-Aug-2022
984,Revenue,CAHD,Central - Commissioned Services,Other Small Contracts,Care Horizons Limited,5063.87, 09-Aug-2022
985,Revenue,CAHD,North - Community based support,Other Small Contracts,Care Horizons Limited,3687.94, 09-Aug-2022
986,Revenue,CAHD,Central - Commissioned Services,Other Small Contracts,Care Horizons Limited,5063.87, 09-Aug-2022
987,Revenue,CAHD,North - Community based support,Other Small Contracts,Care Horizons Limited,3687.94, 23-Aug-2022
988,Revenue,CAHD,Central - Commissioned Services,Other Small Contracts,Care Horizons Limited,5063.87, 23-Aug-2022
989,Revenue,CAHD,North - Community based support,Other Small Contracts,Care Horizons Limited,3687.94, 23-Aug-2022
990,Revenue,CAHD,Central - Commissioned Services,Other Small Contracts,Care Horizons Limited,5063.87, 23-Aug-2022
991,Revenue,CAHD,South - Commissioned Services,Other Small Contracts,Care Unite Ltd t/a Home Instead Senior Care,303.60, 03-Aug-2022
992,Revenue,CAHD,South - Commissioned Services,Other Small Contracts,Care Unite Ltd t/a Home Instead Senior Care,759.00, 03-Aug-2022
993,Revenue,CAHD,South - Commissioned Services,Other Small Contracts,Care Unite Ltd t/a Home Instead Senior Care,698.28, 03-Aug-2022
994,Revenue,CAHD,CSC - Care Leavers Support Costs,Adults - Family Support,Caring for Communities and People,2250.00, 04-Aug-2022
995,Revenue,CAHD,CSC - Care Leavers Independent Living,Adults - Family Support,Caring for Communities and People,3807.71, 05-Aug-2022
996,Revenue,CAHD,Supporting People Programme,Grants to Voluntary Bodies,Caring for Communities and People,12501.83, 04-Aug-2022
997,Revenue,CAHD,CSC - Vinney Green Secure Unit,R & M by Departments,Carlton Services UK Limited,640.00, 04-Aug-2022
998,Revenue,CAHD,TSG Practice Placements,Training Expenses,Individual,1000.00, 22-Aug-2022
999,Revenue,CAHD,Social Lettings Agency,Prop.Serv. General Repairs,Carpet Giant,783.38, 17-Aug-2022
1000,Revenue,CAHD,Family and Young People Support North,Preventative Assistance,Carpet Giant,632.85, 25-Aug-2022
1001,Revenue,CAHD,Statemented Support Academies,Other Public Bodies,Castle School Education Trust,530.55, 22-Aug-2022
1002,Revenue,CAHD,Statemented Support Academies,Other Public Bodies,Castle School Education Trust,778.14, 22-Aug-2022
1003,Revenue,CAHD,Statemented Support Academies,Other Public Bodies,Castle School Education Trust,821.50, 22-Aug-2022
1004,Revenue,CAHD,Statemented Support Academies,Other Public Bodies,Castle School Education Trust,947.08, 22-Aug-2022
1005,Revenue,CAHD,Statemented Support Academies,Other Public Bodies,Castle School Education Trust,577.71, 22-Aug-2022
1006,Revenue,CAHD,Statemented Support Academies,Other Public Bodies,Castle School Education Trust,505.08, 22-Aug-2022
1007,Revenue,CAHD,Statemented Support Academies,Other Public Bodies,Castle School Education Trust,515.08, 22-Aug-2022
1008,Revenue,CAHD,Statemented Support Academies,Other Public Bodies,Castle School Education Trust,672.03, 22-Aug-2022
1009,Revenue,CAHD,Statemented Support Academies,Other Public Bodies,Castle School Education Trust,636.66, 22-Aug-2022
1010,Revenue,CAHD,Statemented Support Academies,Other Public Bodies,Castle School Education Trust,554.13, 22-Aug-2022
1011,Revenue,CAHD,Statemented Support Academies,Other Public Bodies,Castle School Education Trust,543.42, 22-Aug-2022
1012,Revenue,CAHD,Statemented Support Academies,Other Public Bodies,Castle School Education Trust,954.99, 22-Aug-2022
1013,Revenue,CAHD,Statemented Support Academies,Other Public Bodies,Castle School Education Trust,577.71, 22-Aug-2022
1014,Revenue,CAHD,Statemented Support Academies,Other Public Bodies,Castle School Education Trust,1248.33, 22-Aug-2022
1015,Revenue,CAHD,Statemented Support Academies,Other Public Bodies,Castle School Education Trust,1190.79, 22-Aug-2022
1016,Revenue,CAHD,Statemented Support Academies,Other Public Bodies,Castle School Education Trust,691.92, 22-Aug-2022
1017,Revenue,CAHD,Statemented Support Academies,Other Public Bodies,Castle School Education Trust,1071.67, 22-Aug-2022
1018,Revenue,CAHD,Statemented Support Academies,Other Public Bodies,Castle School Education Trust,1061.10, 22-Aug-2022
1019,Revenue,CAHD,Statemented Support Academies,Other Public Bodies,Castle School Education Trust,577.71, 22-Aug-2022
1020,Revenue,CAHD,Statemented Support Academies,Other Public Bodies,Castle School Education Trust,1143.63, 22-Aug-2022
1021,Revenue,CAHD,Statemented Support Academies,Other Public Bodies,Castle School Education Trust,943.33, 22-Aug-2022
1022,Revenue,CAHD,Statemented Support Academies,Other Public Bodies,Castle School Education Trust,754.25, 22-Aug-2022
1023,Revenue,CAHD,Statemented Support Academies,Other Public Bodies,Castle School Education Trust,906.75, 22-Aug-2022
1024,Revenue,CAHD,Statemented Support Academies,Other Public Bodies,Castle School Education Trust,1202.67, 22-Aug-2022
1025,Revenue,CAHD,Statemented Support Academies,Other Public Bodies,Castle School Education Trust,1485.54, 22-Aug-2022
1026,Revenue,CAHD,Homes For Ukraine School Support,Other Public Bodies,Castle School Education Trust,1500.00, 30-Aug-2022
1027,Revenue,CAHD,Homes For Ukraine School Support,Other Public Bodies,Castle School Education Trust,1500.00, 30-Aug-2022
1028,Revenue,CAHD,Statemented Support Academies,Other Public Bodies,Castle School Education Trust,888.75, 22-Aug-2022
1029,Revenue,CAHD,Statemented Support Academies,Other Public Bodies,Castle School Education Trust,1261.75, 22-Aug-2022
1030,Revenue,CAHD,Statemented Support Academies,Other Public Bodies,Castle School Education Trust,1202.92, 22-Aug-2022
1031,Revenue,CAHD,Statemented Support Academies,Other Public Bodies,Castle School Education Trust,642.50, 22-Aug-2022
1032,Revenue,CAHD,Statemented Support Academies,Other Public Bodies,Castle School Education Trust,896.08, 22-Aug-2022
1033,Revenue,CAHD,Statemented Support Academies,Other Public Bodies,Castle School Education Trust,1783.32, 22-Aug-2022
1034,Revenue,CAHD,Statemented Support Academies,Other Public Bodies,Castle School Education Trust,1244.58, 22-Aug-2022
1035,Revenue,CAHD,Statemented Support Academies,Other Public Bodies,Castle School Education Trust,908.00, 22-Aug-2022
1036,Revenue,CAHD,Statemented Support Academies,Other Public Bodies,Castle School Education Trust,4810.68, 22-Aug-2022
1037,Revenue,CAHD,Statemented Support Academies,Other Public Bodies,Castle School Education Trust,801.92, 22-Aug-2022
1038,Revenue,CAHD,Statemented Support Academies,Other Public Bodies,Castle School Education Trust,943.17, 22-Aug-2022
1039,Revenue,CAHD,Statemented Support Academies,Other Public Bodies,Castle School Education Trust,1267.50, 22-Aug-2022
1040,Revenue,CAHD,Academy Resource Base Funding,Other Public Bodies,Castle School Education Trust,1702.96, 19-Aug-2022
1041,Revenue,CAHD,Academy Resource Base Funding,Other Public Bodies,Castle School Education Trust,2513.88, 19-Aug-2022
1042,Revenue,CAHD,Academy Resource Base Funding,Other Public Bodies,Castle School Education Trust,1702.96, 19-Aug-2022
1043,Revenue,CAHD,Secondary Resource Base,Other Public Bodies,Castle School Education Trust,10052.97, 19-Aug-2022
1044,Revenue,CAHD,Academy Resource Base Funding,Other Public Bodies,Castle School Education Trust,1702.96, 19-Aug-2022
1045,Revenue,CAHD,Academy Resource Base Funding,Other Public Bodies,Castle School Education Trust,1702.96, 19-Aug-2022
1046,Revenue,CAHD,Academy Resource Base Funding,Other Public Bodies,Castle School Education Trust,2513.88, 19-Aug-2022
1047,Revenue,CAHD,Academy Resource Base Funding,Other Public Bodies,Castle School Education Trust,2513.88, 19-Aug-2022
1048,Revenue,CAHD,Academy Resource Base Funding,Other Public Bodies,Castle School Education Trust,2513.88, 19-Aug-2022
1049,Revenue,CAHD,Academy Resource Base Funding,Other Public Bodies,Castle School Education Trust,1702.96, 19-Aug-2022
1050,Revenue,CAHD,Academy Resource Base Funding,Other Public Bodies,Castle School Education Trust,1702.96, 19-Aug-2022
1051,Revenue,CAHD,Academy Resource Base Funding,Other Public Bodies,Castle School Education Trust,1702.96, 19-Aug-2022
1052,Revenue,CAHD,Academy Resource Base Funding,Other Public Bodies,Castle School Education Trust,1702.96, 19-Aug-2022
1053,Revenue,CAHD,Academy Resource Base Funding,Other Public Bodies,Castle School Education Trust,1702.96, 19-Aug-2022
1054,Revenue,CAHD,Academy Resource Base Funding,Other Public Bodies,Castle School Education Trust,1702.96, 19-Aug-2022
1055,Revenue,CAHD,Academy Resource Base Funding,Other Public Bodies,Castle School Education Trust,2189.53, 19-Aug-2022
1056,Revenue,CAHD,Academy Resource Base Funding,Other Public Bodies,Castle School Education Trust,821.92, 19-Aug-2022
1057,Revenue,CAHD,Academy Resource Base Funding,Other Public Bodies,Castle School Education Trust,849.32, 19-Aug-2022
1058,Revenue,CAHD,Academy Resource Base Funding,Other Public Bodies,Castle School Education Trust,821.92, 19-Aug-2022
1059,Revenue,CAHD,Academy Resource Base Funding,Other Public Bodies,Castle School Education Trust,849.32, 19-Aug-2022
1060,Revenue,CAHD,Academy Resource Base Funding,Other Public Bodies,Castle School Education Trust,4246.60, 19-Aug-2022
1061,Revenue,CAHD,Statemented Support Academies,Other Public Bodies,Castle School Education Trust,672.03, 22-Aug-2022
1062,Revenue,CAHD,Statemented Support Academies,Other Public Bodies,Castle School Education Trust,822.50, 22-Aug-2022
1063,Revenue,CAHD,Statemented Support Academies,Other Public Bodies,Castle School Education Trust,872.46, 22-Aug-2022
1064,Revenue,CAHD,Statemented Support Academies,Other Public Bodies,Castle School Education Trust,848.88, 22-Aug-2022
1065,Revenue,CAHD,Statemented Support Academies,Other Public Bodies,Castle School Education Trust,740.00, 22-Aug-2022
1066,Revenue,CAHD,Statemented Support Academies,Other Public Bodies,Castle School Education Trust,541.58, 22-Aug-2022
1067,Revenue,CAHD,Statemented Support Academies,Other Public Bodies,Castle School Education Trust,723.17, 22-Aug-2022
1068,Revenue,CAHD,Statemented Support Academies,Other Public Bodies,Castle School Education Trust,956.00, 22-Aug-2022
1069,Revenue,CAHD,Statemented Support Academies,Other Public Bodies,Castle School Education Trust,560.17, 22-Aug-2022
1070,Revenue,CAHD,Homes For Ukraine School Support,Other Public Bodies,Castle School Education Trust,1850.00, 30-Aug-2022
1071,Revenue,CAHD,Homes For Ukraine School Support,Other Public Bodies,Castle School Education Trust,1850.00, 30-Aug-2022
1072,Revenue,CAHD,Homes For Ukraine School Support,Other Public Bodies,Castle School Education Trust,1850.00, 30-Aug-2022
1073,Revenue,CAHD,Statemented Support Academies,Other Public Bodies,Castle School Education Trust,1202.67, 22-Aug-2022
1074,Revenue,CAHD,Statemented Support Academies,Other Public Bodies,Castle School Education Trust,630.58, 22-Aug-2022
1075,Revenue,CAHD,Statemented Support Academies,Other Public Bodies,Castle School Education Trust,778.14, 22-Aug-2022
1076,Revenue,CAHD,Statemented Support Academies,Other Public Bodies,Castle School Education Trust,941.58, 22-Aug-2022
1077,Revenue,CAHD,Statemented Support Academies,Other Public Bodies,Castle School Education Trust,3616.00, 22-Aug-2022
1078,Revenue,CAHD,Homes For Ukraine School Support,Other Public Bodies,Castle School Education Trust,1850.00, 30-Aug-2022
1079,Revenue,CAHD,Homes For Ukraine School Support,Other Public Bodies,Castle School Education Trust,1850.00, 30-Aug-2022
1080,Revenue,CAHD,Statemented Support Academies,Other Public Bodies,Castle School Educational Academy Trust,1129.92, 22-Aug-2022
1081,Revenue,CAHD,Statemented Support Academies,Other Public Bodies,Castle School Educational Academy Trust,854.00, 22-Aug-2022
1082,Revenue,CAHD,Statemented Support Academies,Other Public Bodies,Castle School Educational Academy Trust,2005.17, 22-Aug-2022
1083,Revenue,CAHD,Statemented Support Academies,Other Public Bodies,Castle School Educational Academy Trust,940.75, 22-Aug-2022
1084,Revenue,CAHD,Statemented Support Academies,Other Public Bodies,Castle School Educational Academy Trust,790.58, 22-Aug-2022
1085,Revenue,CAHD,Statemented Support Academies,Other Public Bodies,Castle School Educational Academy Trust,508.67, 22-Aug-2022
1086,Revenue,CAHD,Statemented Support Academies,Other Public Bodies,Castle School Educational Academy Trust,1148.20, 22-Aug-2022
1087,Revenue,CAHD,Statemented Support Academies,Other Public Bodies,Castle School Educational Academy Trust,3239.00, 22-Aug-2022
1088,Revenue,CAHD,Statemented Support Academies,Other Public Bodies,Castle School Educational Academy Trust,1097.25, 22-Aug-2022
1089,Revenue,CAHD,Statemented Support Academies,Other Public Bodies,Castle School Educational Academy Trust,580.67, 22-Aug-2022
1090,Revenue,CAHD,Statemented Support Academies,Other Public Bodies,Castle School Educational Academy Trust,925.08, 22-Aug-2022
1091,Revenue,CAHD,Statemented Support Academies,Other Public Bodies,Castle School Educational Academy Trust,652.58, 22-Aug-2022
1092,Revenue,CAHD,CSC - Legal Fees,Legal Fees,Castlebridge SPV Limited,475.00, 26-Aug-2022
1093,Revenue,CAHD,CSC - Legal Fees,Legal Fees,Cater Walsh Reporting Limited,596.25, 26-Aug-2022
1094,Revenue,CAHD,Social Lettings Agency,Rent,Individual,658.30, 01-Aug-2022
1095,Revenue,CAHD,Social Lettings Agency,Fees & Charges Income - General,Individual,-52.66, 01-Aug-2022
1096,Revenue,CAHD,CSC - CLA Placements,Client Transport,Cathedral Cars Ltd,3040.00, 31-Aug-2022
1097,Revenue,CAHD,18-25 Year Olds,Day Care / Social Activities,Causeway House,4744.80, 23-Aug-2022
1098,Revenue,CAHD,Central - Commissioned Services,Day Care / Social Activities,Causeway House,3925.40, 23-Aug-2022
1099,Revenue,CAHD,Central - Commissioned Services,Day Care / Social Activities,Causeway House,4182.60, 23-Aug-2022
1100,Revenue,CAHD,South - Commissioned Services,Day Care / Social Activities,Causeway House,5646.00, 23-Aug-2022
1101,Revenue,CAHD,North - Community based support,Day Care / Social Activities,Causeway House,5165.80, 23-Aug-2022
1102,Revenue,CAHD,North - Community based support,Day Care / Social Activities,Causeway House,610.80, 23-Aug-2022
1103,Revenue,CAHD,North - Community based support,Day Care / Social Activities,Causeway House,3467.40, 23-Aug-2022
1104,Revenue,CAHD,North - Community based support,Day Care / Social Activities,Causeway House,3384.60, 23-Aug-2022
1105,Revenue,CAHD,South - Commissioned Services,Permanent Residential,Cavendish Care Home,18150.41, 23-Aug-2022
1106,Revenue,CAHD,North - S117,Permanent Residential,Cavendish Care Home,2459.12, 23-Aug-2022
1107,Revenue,CAHD,Jointly Funded H&SC Packages,Permanent Residential,Cavendish Care Home,1639.40, 23-Aug-2022
1108,Revenue,CAHD,Central - Commissioned Services,Permanent Nursing,Cedar Court Care Home,4000.00, 23-Aug-2022
1109,Revenue,CAHD,Central - Commissioned Services,Fees & Charges Income - General,Cedar Court Care Home,-404.12, 23-Aug-2022
1110,Revenue,CAHD,Training - Adult Services,Training Expenses,Central Consultancy & Training,3100.00, 08-Aug-2022
1111,Revenue,CAHD,CSC - Care Leavers Independent Living,Adults - Family Support,Centrepeacehomes Ltd,10000.00, 18-Aug-2022
1112,Revenue,CAHD,CSC - Care Leavers Independent Living,Independent Living,Centrepeacehomes Ltd,17200.00, 08-Aug-2022
1113,Revenue,CAHD,CSC - Care Leavers Independent Living,Independent Living,Centrepeacehomes Ltd,7400.00, 08-Aug-2022
1114,Revenue,CAHD,CSC - Care Leavers Independent Living,Independent Living,Centrepeacehomes Ltd,1480.00, 19-Aug-2022
1115,Revenue,CAHD,South - Commissioned Services,Permanent Residential,Challenge House,2894.80, 23-Aug-2022
1116,Revenue,CAHD,Central - Commissioned Services,Permanent Residential,Challenge House,2452.44, 23-Aug-2022
1117,Revenue,CAHD,Central - Commissioned Services,Permanent Residential,Challenge House,2819.84, 23-Aug-2022
1118,Revenue,CAHD,Central - Commissioned Services,Fees & Charges Income - General,Challenge House,-865.72, 23-Aug-2022
1119,Revenue,CAHD,Central - Commissioned Services,Fees & Charges Income - General,Challenge House,-833.52, 23-Aug-2022
1120,Revenue,CAHD,North - Community based support,Permanent Residential,Challenge House,2314.96, 23-Aug-2022
1121,Revenue,CAHD,North - Community based support,Permanent Residential,Challenge House,2902.76, 23-Aug-2022
1122,Revenue,CAHD,North - Community based support,Fees & Charges Income - General,Challenge House,-664.56, 23-Aug-2022
1123,Revenue,CAHD,North - Community based support,Permanent Residential,Challenge House,2894.76, 23-Aug-2022
1124,Revenue,CAHD,North - Community based support,Fees & Charges Income - General,Challenge House,-1057.80, 23-Aug-2022
1125,Revenue,CAHD,North - Community based support,Permanent Nursing,Challenge House,2505.52, 23-Aug-2022
1126,Revenue,CAHD,North - Community based support,Permanent Nursing,Challenge House,3205.48, 23-Aug-2022
1127,Revenue,CAHD,North - Community based support,Fees & Charges Income - General,Challenge House,-627.80, 23-Aug-2022
1128,Revenue,CAHD,North - Community based support,Fees & Charges Income - General,Challenge House,-627.80, 23-Aug-2022
1129,Revenue,CAHD,North - S117,Permanent Nursing,Challenge House,2505.52, 23-Aug-2022
1130,Revenue,CAHD,South Glos Users in South Glos Homes,Permanent Nursing,Challenge House,836.76, 23-Aug-2022
1131,Revenue,CAHD,South Glos Users in South Glos Homes,Permanent Nursing,Challenge House,836.76, 23-Aug-2022
1132,Revenue,CAHD,South Glos Users in South Glos Homes,Permanent Nursing,Challenge House,836.76, 23-Aug-2022
1133,Revenue,CAHD,South Glos Users in South Glos Homes,Permanent Nursing,Challenge House,836.76, 23-Aug-2022
1134,Revenue,CAHD,South Glos Users in South Glos Homes,Permanent Nursing,Challenge House,836.76, 23-Aug-2022
1135,Revenue,CAHD,South Glos Users in South Glos Homes,Permanent Nursing,Challenge House,836.76, 23-Aug-2022
1136,Revenue,CAHD,South Glos Users in South Glos Homes,Permanent Nursing,Challenge House,836.76, 23-Aug-2022
1137,Revenue,CAHD,South Glos Users in South Glos Homes,Permanent Nursing,Challenge House,836.76, 23-Aug-2022
1138,Revenue,CAHD,South Glos Users in South Glos Homes,Permanent Nursing,Challenge House,836.76, 23-Aug-2022
1139,Revenue,CAHD,South Glos Users in South Glos Homes,Permanent Nursing,Challenge House,836.76, 23-Aug-2022
1140,Revenue,CAHD,South Glos Users in South Glos Homes,Permanent Nursing,Challenge House,-627.57, 23-Aug-2022
1141,Revenue,CAHD,South Glos Users in South Glos Homes,Permanent Nursing,Challenge House,836.76, 23-Aug-2022
1142,Revenue,CAHD,South Glos Users in South Glos Homes,Permanent Nursing,Challenge House,836.76, 23-Aug-2022
1143,Revenue,CAHD,South Glos Users in South Glos Homes,Permanent Nursing,Challenge House,836.76, 23-Aug-2022
1144,Revenue,CAHD,South Glos Users in South Glos Homes,Permanent Nursing,Challenge House,836.76, 23-Aug-2022
1145,Revenue,CAHD,South Glos Users in South Glos Homes,Permanent Nursing,Challenge House,836.76, 23-Aug-2022
1146,Revenue,CAHD,South Glos Users in South Glos Homes,Permanent Nursing,Challenge House,836.76, 23-Aug-2022
1147,Revenue,CAHD,Central - Commissioned Services,Permanent Residential,Challenge House,397.50, 23-Aug-2022
1148,Revenue,CAHD,Central - Commissioned Services,Permanent Residential,Challenge House,8742.86, 23-Aug-2022
1149,Revenue,CAHD,Central - Commissioned Services,Respite Planned - Residential,Challenge House,2700.00, 23-Aug-2022
1150,Revenue,CAHD,Central - Commissioned Services,Fees & Charges Income - General,Challenge House,-1795.37, 23-Aug-2022
1151,Revenue,CAHD,South - Commissioned Services,Permanent Residential,Challenge House,3604.00, 23-Aug-2022
1152,Revenue,CAHD,South - Commissioned Services,Permanent Residential,Challenge House,-2316.85, 23-Aug-2022
1153,Revenue,CAHD,South - Commissioned Services,Respite Planned - Residential,Challenge House,5400.00, 23-Aug-2022
1154,Revenue,CAHD,South - Commissioned Services,Permanent Nursing,Challenge House,-17365.71, 23-Aug-2022
1155,Revenue,CAHD,South - Commissioned Services,Permanent Nursing,Challenge House,2174.64, 23-Aug-2022
1156,Revenue,CAHD,South - Commissioned Services,Respite Planned - Nursing,Challenge House,62739.23, 23-Aug-2022
1157,Revenue,CAHD,South - Commissioned Services,Respite Planned - Nursing,Challenge House,6800.00, 23-Aug-2022
1158,Revenue,CAHD,South - Commissioned Services,Fees & Charges Income - General,Challenge House,-1993.08, 23-Aug-2022
1159,Revenue,CAHD,South - Commissioned Services,Fees & Charges Income - General,Challenge House,448.43, 23-Aug-2022
1160,Revenue,CAHD,North - Community based support,Permanent Residential,Challenge House,3384.56, 23-Aug-2022
1161,Revenue,CAHD,North - Community based support,Permanent Residential,Challenge House,3400.00, 23-Aug-2022
1162,Revenue,CAHD,North - Community based support,Permanent Residential,Challenge House,-925.00, 23-Aug-2022
1163,Revenue,CAHD,North - Community based support,Permanent Residential,Challenge House,3392.00, 23-Aug-2022
1164,Revenue,CAHD,North - Community based support,Permanent Residential,Challenge House,-2650.00, 23-Aug-2022
1165,Revenue,CAHD,North - Community based support,Permanent Residential,Challenge House,3604.00, 23-Aug-2022
1166,Revenue,CAHD,North - Community based support,Permanent Residential,Challenge House,-4128.57, 23-Aug-2022
1167,Revenue,CAHD,North - Community based support,Permanent Residential,Challenge House,3710.00, 23-Aug-2022
1168,Revenue,CAHD,North - Community based support,Permanent Residential,Challenge House,4028.00, 23-Aug-2022
1169,Revenue,CAHD,North - Community based support,Permanent Residential,Challenge House,3400.00, 23-Aug-2022
1170,Revenue,CAHD,North - Community based support,Permanent Residential,Challenge House,3604.00, 23-Aug-2022
1171,Revenue,CAHD,North - Community based support,Permanent Nursing,Challenge House,3686.88, 23-Aug-2022
1172,Revenue,CAHD,North - Community based support,Permanent Nursing,Challenge House,3548.80, 23-Aug-2022
1173,Revenue,CAHD,North - Community based support,Permanent Nursing,Challenge House,3400.00, 23-Aug-2022
1174,Revenue,CAHD,North - Community based support,Permanent Nursing,Challenge House,3604.00, 23-Aug-2022
1175,Revenue,CAHD,North - Community based support,Permanent Nursing,Challenge House,3127.44, 23-Aug-2022
1176,Revenue,CAHD,North - Community based support,Respite Planned - Nursing,Challenge House,-3035.72, 23-Aug-2022
1177,Revenue,CAHD,North - Community based support,Fees & Charges Income - General,Challenge House,-747.96, 23-Aug-2022
1178,Revenue,CAHD,North - Community based support,Fees & Charges Income - General,Challenge House,-782.40, 23-Aug-2022
1179,Revenue,CAHD,North - Community based support,Fees & Charges Income - General,Challenge House,265.13, 23-Aug-2022
1180,Revenue,CAHD,North - Community based support,Fees & Charges Income - General,Challenge House,-795.72, 23-Aug-2022
1181,Revenue,CAHD,North - Community based support,Fees & Charges Income - General,Challenge House,522.34, 23-Aug-2022
1182,Revenue,CAHD,North - Community based support,Fees & Charges Income - General,Challenge House,1015.48, 23-Aug-2022
1183,Revenue,CAHD,North - Community based support,Fees & Charges Income - General,Challenge House,-631.80, 23-Aug-2022
1184,Revenue,CAHD,North - Community based support,Fees & Charges Income - General,Challenge House,-1770.84, 23-Aug-2022
1185,Revenue,CAHD,North - Community based support,Fees & Charges Income - General,Challenge House,1060.75, 23-Aug-2022
1186,Revenue,CAHD,North - Community based support,Fees & Charges Income - General,Challenge House,-627.80, 23-Aug-2022
1187,Revenue,CAHD,North - Community based support,Fees & Charges Income - General,Challenge House,-1338.84, 23-Aug-2022
1188,Revenue,CAHD,North - Community based support,Fees & Charges Income - General,Challenge House,-1037.92, 23-Aug-2022
1189,Revenue,CAHD,North - Community based support,Fees & Charges Income - General,Challenge House,-1410.80, 23-Aug-2022
1190,Revenue,CAHD,North - Community based support,Fees & Charges Income - General,Challenge House,-883.96, 23-Aug-2022
1191,Revenue,CAHD,North - Community based support,Fees & Charges Income - General,Challenge House,-863.20, 23-Aug-2022
1192,Revenue,CAHD,North - Community based support,Fees & Charges Income - General,Challenge House,-747.68, 23-Aug-2022
1193,Revenue,CAHD,North - Community based support,Fees & Charges Income - General,Challenge House,-920.88, 23-Aug-2022
1194,Revenue,CAHD,North - Community based support,Permanent Residential,Challenge House,4028.00, 23-Aug-2022
1195,Revenue,CAHD,North - Community based support,Permanent Nursing,Challenge House,3517.28, 23-Aug-2022
1196,Revenue,CAHD,North - Community based support,Fees & Charges Income - General,Challenge House,-1140.52, 23-Aug-2022
1197,Revenue,CAHD,Central - Commissioned Services,Permanent Nursing,Challenge House,4760.00, 23-Aug-2022
1198,Revenue,CAHD,Central - Commissioned Services,Permanent Nursing,Challenge House,2490.00, 23-Aug-2022
1199,Revenue,CAHD,Central - Commissioned Services,Permanent Nursing,Challenge House,3200.00, 23-Aug-2022
1200,Revenue,CAHD,Central - Commissioned Services,Fees & Charges Income - General,Challenge House,-1461.47, 23-Aug-2022
1201,Revenue,CAHD,Central - Commissioned Services,Fees & Charges Income - General,Challenge House,-1230.56, 23-Aug-2022
1202,Revenue,CAHD,Central - Commissioned Services,Fees & Charges Income - General,Challenge House,-987.40, 23-Aug-2022
1203,Revenue,CAHD,North - Community based support,Permanent Residential,Challenge House,2600.00, 23-Aug-2022
1204,Revenue,CAHD,North - Community based support,Permanent Residential,Challenge House,3136.52, 23-Aug-2022
1205,Revenue,CAHD,North - Community based support,Fees & Charges Income - General,Challenge House,-928.88, 23-Aug-2022
1206,Revenue,CAHD,North - Community based support,Fees & Charges Income - General,Challenge House,-933.68, 23-Aug-2022
1207,Revenue,CAHD,CSC - Age Related Allowances,Foster Parent Allowances,Individual,177.00, 05-Aug-2022
1208,Revenue,CAHD,CSC - Professional Fees Foster Carers,Band 1 Foster Care,Individual,390.00, 05-Aug-2022
1209,Revenue,CAHD,CSC - Professional Fees Foster Carers,Therapeutic Fostering Fee,Individual,577.00, 05-Aug-2022
1210,Revenue,CAHD,CSC - Age Related Allowances,Foster Parent Allowances,Individual,177.00, 12-Aug-2022
1211,Revenue,CAHD,CSC - Professional Fees Foster Carers,Band 1 Foster Care,Individual,390.00, 12-Aug-2022
1212,Revenue,CAHD,CSC - Professional Fees Foster Carers,Therapeutic Fostering Fee,Individual,577.00, 12-Aug-2022
1213,Revenue,CAHD,CSC - Legal Fees,Legal Fees,Individual,600.00, 01-Aug-2022
1214,Revenue,CAHD,Social Lettings Agency,Rent,Individual,1331.64, 03-Aug-2022
1215,Revenue,CAHD,Statemented Support Academies,Other Public Bodies,Charlton Wood Primary Academy,1202.67, 22-Aug-2022
1216,Revenue,CAHD,Statemented Support Academies,Other Public Bodies,Charlton Wood Primary Academy,1202.67, 22-Aug-2022
1217,Revenue,CAHD,Statemented Support Academies,Other Public Bodies,Charlton Wood Primary Academy,702.17, 22-Aug-2022
1218,Revenue,CAHD,North - Community based support,Other Small Contracts,Cherish Able Care Limited,686.06, 09-Aug-2022
1219,Revenue,CAHD,South - Commissioned Services,Other Small Contracts,Cherish Able Care Limited,9494.18, 09-Aug-2022
1220,Revenue,CAHD,Central - Commissioned Services,Other Small Contracts,Cherish Able Care Limited,675.21, 09-Aug-2022
1221,Revenue,CAHD,North - Community based support,Other Small Contracts,Cherish Able Care Limited,686.06, 09-Aug-2022
1222,Revenue,CAHD,South - Commissioned Services,Other Small Contracts,Cherish Able Care Limited,9494.18, 09-Aug-2022
1223,Revenue,CAHD,Central - Commissioned Services,Other Small Contracts,Cherish Able Care Limited,675.21, 09-Aug-2022
1224,Revenue,CAHD,Central - Commissioned Services,Other Small Contracts,Cherish Able Care Limited,3729.70, 30-Aug-2022
1225,Revenue,CAHD,South - Commissioned Services,Other Small Contracts,Cherish Able Care Limited,1753.70, 30-Aug-2022
1226,Revenue,CAHD,South - Commissioned Services,Other Small Contracts,Cherish Able Care Limited,4574.44, 30-Aug-2022
1227,Revenue,CAHD,South - Commissioned Services,Other Small Contracts,Cherish Able Care Limited,11060.30, 30-Aug-2022
1228,Revenue,CAHD,South - Commissioned Services,Other Small Contracts,Cherish Able Care Limited,2193.36, 30-Aug-2022
1229,Revenue,CAHD,South - Commissioned Services,Other Small Contracts,Cherish Able Care Limited,1452.36, 30-Aug-2022
1230,Revenue,CAHD,South - Commissioned Services,Other Small Contracts,Cherish Able Care Limited,9286.82, 30-Aug-2022
1231,Revenue,CAHD,South - Commissioned Services,Other Small Contracts,Cherish Able Care Limited,3625.96, 30-Aug-2022
1232,Revenue,CAHD,South - Commissioned Services,Other Small Contracts,Cherish Able Care Limited,2524.34, 30-Aug-2022
1233,Revenue,CAHD,South - Commissioned Services,Other Small Contracts,Cherish Able Care Limited,3724.76, 30-Aug-2022
1234,Revenue,CAHD,South - Commissioned Services,Other Small Contracts,Cherish Able Care Limited,14390.88, 30-Aug-2022
1235,Revenue,CAHD,North - Community based support,Other Small Contracts,Cherish Able Care Limited,4110.08, 30-Aug-2022
1236,Revenue,CAHD,CSC - Age Related Allowances,Children - Family Support,Individual,453.00, 05-Aug-2022
1237,Revenue,CAHD,CSC - Professional Fees Foster Carers,Children - Family Support,Individual,510.00, 05-Aug-2022
1238,Revenue,CAHD,CSC - Age Related Allowances,Children - Family Support,Individual,453.00, 12-Aug-2022
1239,Revenue,CAHD,CSC - Fostering Carer Support,Payments to Carers,Individual,480.00, 12-Aug-2022
1240,Revenue,CAHD,CSC - Professional Fees Foster Carers,Children - Family Support,Individual,510.00, 12-Aug-2022
1241,Revenue,CAHD,CSC - Age Related Allowances,Children - Family Support,Individual,453.00, 19-Aug-2022
1242,Revenue,CAHD,CSC - Professional Fees Foster Carers,Children - Family Support,Individual,510.00, 19-Aug-2022
1243,Revenue,CAHD,CSC - Age Related Allowances,Children - Family Support,Individual,453.00, 26-Aug-2022
1244,Revenue,CAHD,CSC - Professional Fees Foster Carers,Children - Family Support,Individual,510.00, 26-Aug-2022
1245,Revenue,CAHD,Central - Commissioned Services,Supported Living,Cherry Orchards,2190.32, 23-Aug-2022
1246,Revenue,CAHD,Central - Commissioned Services,Supported Living,Cherry Orchards,796.48, 23-Aug-2022
1247,Revenue,CAHD,South - Commissioned Services,Supported Living,Cherry Orchards,2022.64, 23-Aug-2022
1248,Revenue,CAHD,North - Community based support,Other Small Contracts,Cherry Orchards,7042.56, 23-Aug-2022
1249,Revenue,CAHD,18-25 Year Olds,Respite Care,Cherry Orchards,0.00, 23-Aug-2022
1250,Revenue,CAHD,Central - Commissioned Services,Respite Care,Cherry Orchards,0.00, 23-Aug-2022
1251,Revenue,CAHD,Central - Commissioned Services,Supported Living,Cherry Orchards,2016.88, 23-Aug-2022
1252,Revenue,CAHD,South - Commissioned Services,Respite Care,Cherry Orchards,0.00, 23-Aug-2022
1253,Revenue,CAHD,South - Commissioned Services,Respite Care,Cherry Orchards,0.00, 23-Aug-2022
1254,Revenue,CAHD,South - Commissioned Services,Supported Living,Cherry Orchards,1098.96, 23-Aug-2022
1255,Revenue,CAHD,South - Commissioned Services,Supported Living,Cherry Orchards,1996.68, 23-Aug-2022
1256,Revenue,CAHD,South - Commissioned Services,Supported Living,Cherry Orchards,2139.56, 23-Aug-2022
1257,Revenue,CAHD,North - Community based support,Respite Care,Cherry Orchards,0.00, 23-Aug-2022
1258,Revenue,CAHD,North - Community based support,Respite Care,Cherry Orchards,0.00, 23-Aug-2022
1259,Revenue,CAHD,North - Community based support,Supported Living,Cherry Orchards,1080.56, 23-Aug-2022
1260,Revenue,CAHD,North - Community based support,Supported Living,Cherry Orchards,1996.68, 23-Aug-2022
1261,Revenue,CAHD,South - S117,Supported Living,Cherry Orchards,2438.96, 23-Aug-2022
1262,Revenue,CAHD,Younger MH non-res purchasing,Respite Care,Cherry Orchards,0.00, 23-Aug-2022
1263,Revenue,CAHD,Central - Commissioned Services,Supported Living,Cherry Orchards,786.00, 01-Aug-2022
1264,Revenue,CAHD,South - Commissioned Services,Supported Living,Cherry Orchards,1519.60, 01-Aug-2022
1265,Revenue,CAHD,North - Community based support,Supported Living,Cherry Orchards,2033.12, 01-Aug-2022
1266,Revenue,CAHD,Central - Commissioned Services,Permanent Residential,Chescombe Trust Ltd,9445.12, 23-Aug-2022
1267,Revenue,CAHD,Central - Commissioned Services,Fees & Charges Income - General,Chescombe Trust Ltd,-438.80, 23-Aug-2022
1268,Revenue,CAHD,S28A cases,Permanent Residential,Chescombe Trust Ltd,10494.48, 23-Aug-2022
1269,Revenue,CAHD,S28A cases,Fees & Charges Income - General,Chescombe Trust Ltd,-438.80, 23-Aug-2022
1270,Revenue,CAHD,Community Support - South,Preventative Assistance,Childrens Contact Services Ltd,543.57, 23-Aug-2022
1271,Revenue,CAHD,CSC - Emergency Duty Team,Preventative Assistance,Childrens Contact Services Ltd,1815.00, 15-Aug-2022
1272,Revenue,CAHD,CSC - Child Arrangement Orders (prev RO),Residence Order Allowances,Individual,510.30, 05-Aug-2022
1273,Revenue,CAHD,CSC - Child Arrangement Orders (prev RO),Residence Order Allowances,Individual,556.78, 12-Aug-2022
1274,Revenue,CAHD,CSC - Child Arrangement Orders (prev RO),Residence Order Allowances,Individual,510.30, 19-Aug-2022
1275,Revenue,CAHD,CSC - Child Arrangement Orders (prev RO),Residence Order Allowances,Individual,510.30, 26-Aug-2022
1276,Revenue,CAHD,CSC - Special Guardianship Orders,Special Payments,Individual,134.20, 12-Aug-2022
1277,Revenue,CAHD,CSC - Special Guardianship Orders,Band 1 Foster Care,Individual,1675.71, 12-Aug-2022
1278,Revenue,CAHD,Statemented Support Payments to OLAs,Other L.A.s - General,Churchill Academy,1085.75, 19-Aug-2022
1279,Revenue,CAHD,South - Commissioned Services,Other Small Contracts,Cintre,1268.71, 09-Aug-2022
1280,Revenue,CAHD,Younger MH non-res purchasing,Other Small Contracts,Cintre,972.90, 09-Aug-2022
1281,Revenue,CAHD,South - Commissioned Services,Other Small Contracts,Cintre,1268.71, 09-Aug-2022
1282,Revenue,CAHD,Younger MH non-res purchasing,Other Small Contracts,Cintre,972.90, 09-Aug-2022
1283,Revenue,CAHD,18-25 Year Olds,Permanent Residential,Cintre,6188.60, 23-Aug-2022
1284,Revenue,CAHD,18-25 Year Olds,Fees & Charges Income - General,Cintre,-53.96, 23-Aug-2022
1285,Revenue,CAHD,Post 16 High Needs Placements,Other Private Contractors,City of Bath College,56223.98, 26-Aug-2022
1286,Revenue,CAHD,Placements OLA Special Schools and RB,Other L.A.s - General,Claremont School,1981.43, 19-Aug-2022
1287,Revenue,CAHD,Placements OLA Special Schools and RB,Other L.A.s - General,Claremont School,646.00, 19-Aug-2022
1288,Revenue,CAHD,Placements OLA Special Schools and RB,Other L.A.s - General,Claremont School,2774.72, 19-Aug-2022
1289,Revenue,CAHD,Placements OLA Special Schools and RB,Other L.A.s - General,Claremont School,646.00, 19-Aug-2022
1290,Revenue,CAHD,Placements OLA Special Schools and RB,Other L.A.s - General,Claremont School,1981.43, 19-Aug-2022
1291,Revenue,CAHD,Placements OLA Special Schools and RB,Other L.A.s - General,Claremont School,646.00, 19-Aug-2022
1292,Revenue,CAHD,Placements OLA Special Schools and RB,Other L.A.s - General,Claremont School,1981.43, 19-Aug-2022
1293,Revenue,CAHD,Placements OLA Special Schools and RB,Other L.A.s - General,Claremont School,646.00, 19-Aug-2022
1294,Revenue,CAHD,Placements OLA Special Schools and RB,Other L.A.s - General,Claremont School,792.58, 19-Aug-2022
1295,Revenue,CAHD,Placements OLA Special Schools and RB,Other L.A.s - General,Claremont School,2774.72, 19-Aug-2022
1296,Revenue,CAHD,Placements OLA Special Schools and RB,Other L.A.s - General,Claremont School,1981.43, 19-Aug-2022
1297,Revenue,CAHD,Placements OLA Special Schools and RB,Other L.A.s - General,Claremont School,646.00, 19-Aug-2022
1298,Revenue,CAHD,Placements OLA Special Schools and RB,Other L.A.s - General,Claremont School,2774.72, 19-Aug-2022
1299,Revenue,CAHD,Placements OLA Special Schools and RB,Other L.A.s - General,Claremont School,646.00, 19-Aug-2022
1300,Revenue,CAHD,Placements OLA Special Schools and RB,Other L.A.s - General,Claremont School,1585.16, 19-Aug-2022
1301,Revenue,CAHD,Placements OLA Special Schools and RB,Other L.A.s - General,Claremont School,516.77, 19-Aug-2022
1302,Revenue,CAHD,Placements OLA Special Schools and RB,Other L.A.s - General,Claremont School,1981.43, 19-Aug-2022
1303,Revenue,CAHD,Placements OLA Special Schools and RB,Other L.A.s - General,Claremont School,646.00, 19-Aug-2022
1304,Revenue,CAHD,Central - Commissioned Services,Permanent Residential,Cleeve Lodge,3470.00, 23-Aug-2022
1305,Revenue,CAHD,Central - Commissioned Services,Fees & Charges Income - General,Cleeve Lodge,-1063.72, 23-Aug-2022
1306,Revenue,CAHD,South - Commissioned Services,Permanent Residential,Cleeve Lodge,4740.32, 23-Aug-2022
1307,Revenue,CAHD,South - Commissioned Services,Permanent Residential,Cleeve Lodge,5057.72, 23-Aug-2022
1308,Revenue,CAHD,South - Commissioned Services,Permanent Residential,Cleeve Lodge,3964.16, 23-Aug-2022
1309,Revenue,CAHD,South - Commissioned Services,Permanent Residential,Cleeve Lodge,4771.28, 23-Aug-2022
1310,Revenue,CAHD,South - Commissioned Services,Permanent Residential,Cleeve Lodge,3199.88, 23-Aug-2022
1311,Revenue,CAHD,South - Commissioned Services,Respite Planned - Residential,Cleeve Lodge,2500.00, 23-Aug-2022
1312,Revenue,CAHD,South - Commissioned Services,Permanent Nursing,Cleeve Lodge,3470.00, 23-Aug-2022
1313,Revenue,CAHD,South - Commissioned Services,Fees & Charges Income - General,Cleeve Lodge,-751.88, 23-Aug-2022
1314,Revenue,CAHD,South - Commissioned Services,Fees & Charges Income - General,Cleeve Lodge,-875.20, 23-Aug-2022
1315,Revenue,CAHD,South - Commissioned Services,Fees & Charges Income - General,Cleeve Lodge,-632.52, 23-Aug-2022
1316,Revenue,CAHD,South - Commissioned Services,Fees & Charges Income - General,Cleeve Lodge,-808.84, 23-Aug-2022
1317,Revenue,CAHD,South - Commissioned Services,Fees & Charges Income - General,Cleeve Lodge,-929.16, 23-Aug-2022
1318,Revenue,CAHD,South - Commissioned Services,Fees & Charges Income - General,Cleeve Lodge,-659.60, 23-Aug-2022
1319,Revenue,CAHD,North - S117,Permanent Residential,Cleeve Lodge,3470.00, 23-Aug-2022
1320,Revenue,CAHD,Cardio Vascular Disease - Risks,Other Small Contracts,Cleeve Wood Pharmacy,534.90, 03-Aug-2022
1321,Revenue,CAHD,North - Community based support,Permanent Nursing,Clevedon Court Nursing Home,3448.16, 23-Aug-2022
1322,Revenue,CAHD,North - Community based support,Fees & Charges Income - General,Clevedon Court Nursing Home,-1043.00, 23-Aug-2022
1323,Revenue,CAHD,Cardio Vascular Disease - Risks,Other Small Contracts,Close Farm Surgery,644.00, 22-Aug-2022
1324,Revenue,CAHD,Central - Commissioned Services,Other Small Contracts,Clover Health and Home Care Ltd,1045.12, 01-Aug-2022
1325,Revenue,CAHD,Central - Commissioned Services,Other Small Contracts,Clover Health and Home Care Ltd,834.96, 01-Aug-2022
1326,Revenue,CAHD,Central - Commissioned Services,Other Small Contracts,Clover Health and Home Care Ltd,1056.48, 23-Aug-2022
1327,Revenue,CAHD,Central - Commissioned Services,Other Small Contracts,Clover Health and Home Care Ltd,903.12, 17-Aug-2022
1328,Revenue,CAHD,Central - Commissioned Services,Other Small Contracts,Clover Health and Home Care Ltd,272.64, 17-Aug-2022
1329,Revenue,CAHD,Central - Commissioned Services,Other Small Contracts,Clover Health and Home Care Ltd,2741.03, 23-Aug-2022
1330,Revenue,CAHD,Ukranian Refugees,Other Small Contracts,Individual,1068.13, 12-Aug-2022
1331,Revenue,CAHD,Adult & Community Learning Growth Funding 21/22,Consultants Fees,Individual,5000.00, 01-Aug-2022
1332,Revenue,CAHD,Adult & Community Learning Employability 21/22,Consultants Fees,Individual,5000.00, 01-Aug-2022
1333,Revenue,CAHD,South - Commissioned Services,Permanent Residential,Collingwood Care Home,3710.00, 23-Aug-2022
1334,Revenue,CAHD,South - Commissioned Services,Permanent Residential,Collingwood Care Home,3392.00, 23-Aug-2022
1335,Revenue,CAHD,South - Commissioned Services,Permanent Residential,Collingwood Care Home,3540.00, 23-Aug-2022
1336,Revenue,CAHD,South - Commissioned Services,Permanent Residential,Collingwood Care Home,3794.80, 23-Aug-2022
1337,Revenue,CAHD,South - Commissioned Services,Fees & Charges Income - General,Collingwood Care Home,-1114.40, 23-Aug-2022
1338,Revenue,CAHD,South - Commissioned Services,Fees & Charges Income - General,Collingwood Care Home,-862.72, 23-Aug-2022
1339,Revenue,CAHD,South - Commissioned Services,Fees & Charges Income - General,Collingwood Care Home,-674.76, 23-Aug-2022
1340,Revenue,CAHD,South - Commissioned Services,Fees & Charges Income - General,Collingwood Care Home,-710.36, 23-Aug-2022
1341,Revenue,CAHD,North - Community based support,Permanent Residential,Collingwood Care Home,3253.12, 23-Aug-2022
1342,Revenue,CAHD,North - Community based support,Fees & Charges Income - General,Collingwood Care Home,-1000.36, 23-Aug-2022
1343,Revenue,CAHD,Statemented Support Payments to OLAs,Other L.A.s - General,Colston`s Girls School Trust,1582.50, 19-Aug-2022
1344,Revenue,CAHD,South - Commissioned Services,Permanent Residential,Community Theraputic Services,7776.36, 23-Aug-2022
1345,Revenue,CAHD,South - Commissioned Services,Fees & Charges Income - General,Community Theraputic Services,-438.80, 23-Aug-2022
1346,Revenue,CAHD,North - Community based support,Permanent Residential,Community Theraputic Services,8071.08, 23-Aug-2022
1347,Revenue,CAHD,North - Community based support,Fees & Charges Income - General,Community Theraputic Services,-627.80, 23-Aug-2022
1348,Revenue,CAHD,Jointly Funded H&SC Packages,Permanent Residential,Community Theraputic Services,4992.88, 23-Aug-2022
1349,Revenue,CAHD,Jointly Funded H&SC Packages,Permanent Residential,Community Theraputic Services,2076.20, 23-Aug-2022
1350,Revenue,CAHD,CSC - Agency Fostering,Foster Parent Allowances,Compass Fostering West Ltd,3675.90, 23-Aug-2022
1351,Revenue,CAHD,CSC - Agency Fostering,Foster Parent Allowances,Compass Fostering West Ltd,3600.89, 16-Aug-2022
1352,Revenue,CAHD,CSC - Agency Fostering,Foster Parent Allowances,Compass Fostering West Ltd,819.98, 24-Aug-2022
1353,Revenue,CAHD,CSC - Agency Fostering,Foster Parent Allowances,Compass Fostering West Ltd,3514.20, 24-Aug-2022
1354,Revenue,CAHD,CSC - Agency Fostering,Foster Parent Allowances,Compass Fostering West Ltd,3631.34, 24-Aug-2022
1355,Revenue,CAHD,CSC - Agency Fostering,Foster Parent Allowances,Compass Fostering West Ltd,3540.82, 23-Aug-2022
1356,Revenue,CAHD,CSC - Agency Fostering,Foster Parent Allowances,Compass Fostering West Ltd,3631.34, 24-Aug-2022
1357,Revenue,CAHD,CSC - Fostering Carer Support,DBS Check Fees,Complete Background Screening Ltd,816.00, 09-Aug-2022
1358,Revenue,CAHD,Cardio Vascular Disease - Risks,Other Small Contracts,Concord Medical Centre,575.00, 22-Aug-2022
1359,Revenue,CAHD,"Drugs, Alcohol and Sexual Health",Other Small Contracts,Concord Pharmarcy,600.00, 03-Aug-2022
1360,Revenue,CAHD,Cardio Vascular Disease - Risks,Other Small Contracts,Coniston Medical Practice,851.00, 22-Aug-2022
1361,Revenue,CAHD,Statemented Support Equipment,Educational Supplies & Equipment,Connevans Limited,2705.45, 18-Aug-2022
1362,Revenue,CAHD,Statemented Support Equipment,Educational Supplies & Equipment,Connevans Limited,1040.00, 18-Aug-2022
1363,Revenue,CAHD,Statemented Support Equipment,Educational Supplies & Equipment,Connevans Limited,1135.71, 05-Aug-2022
1364,Revenue,CAHD,Statemented Support Equipment,Educational Supplies & Equipment,Connevans Limited,1135.71, 05-Aug-2022
1365,Revenue,CAHD,CSC - Care Leavers Independent Living,Adults - Family Support,Connolly & Callaghan Limited,436.80, 15-Aug-2022
1366,Revenue,CAHD,CSC - Care Leavers Independent Living,Adults - Family Support,Connolly & Callaghan Limited,436.80, 15-Aug-2022
1367,Revenue,CAHD,CSC - Care Leavers Independent Living,Adults - Family Support,Connolly & Callaghan Limited,436.80, 15-Aug-2022
1368,Revenue,CAHD,CSC - Care Leavers Independent Living,Adults - Family Support,Connolly & Callaghan Limited,436.80, 15-Aug-2022
1369,Revenue,CAHD,CSC - Care Leavers Independent Living,Adults - Family Support,Connolly & Callaghan Limited,436.80, 15-Aug-2022
1370,Revenue,CAHD,Bed and Breakfast,Bed & Breakfast,Connolly & Callaghan Limited,508.20, 02-Aug-2022
1371,Revenue,CAHD,CSC - Care Leavers Independent Living,Adults - Family Support,Connolly & Callaghan Limited,436.80, 15-Aug-2022
1372,Revenue,CAHD,CSC - Care Leavers Independent Living,Adults - Family Support,Connolly & Callaghan Limited,436.80, 15-Aug-2022
1373,Revenue,CAHD,CSC - Care Leavers Independent Living,Adults - Family Support,Connolly & Callaghan Limited,436.80, 15-Aug-2022
1374,Revenue,CAHD,Bed and Breakfast,Bed & Breakfast,Connolly & Callaghan Limited,833.70, 02-Aug-2022
1375,Revenue,CAHD,CSC - Care Leavers Independent Living,Adults - Family Support,Connolly & Callaghan Limited,436.80, 15-Aug-2022
1376,Revenue,CAHD,Bed and Breakfast,Bed & Breakfast,Connolly & Callaghan Limited,833.70, 02-Aug-2022
1377,Revenue,CAHD,CSC - Care Leavers Independent Living,Adults - Family Support,Connolly & Callaghan Limited,436.80, 15-Aug-2022
1378,Revenue,CAHD,Bed and Breakfast,Bed & Breakfast,Connolly & Callaghan Limited,597.80, 02-Aug-2022
1379,Revenue,CAHD,CSC - Care Leavers Independent Living,Adults - Family Support,Connolly & Callaghan Limited,436.80, 15-Aug-2022
1380,Revenue,CAHD,Bed and Breakfast,Bed & Breakfast,Connolly & Callaghan Limited,597.80, 05-Aug-2022
1381,Revenue,CAHD,Bed and Breakfast,Other Supplies & Services,Connolly & Callaghan Limited,546.70, 02-Aug-2022
1382,Revenue,CAHD,Bed and Breakfast,Bed & Breakfast,Connolly & Callaghan Limited,597.80, 05-Aug-2022
1383,Revenue,CAHD,Bed and Breakfast,Bed & Breakfast,Connolly & Callaghan Limited,833.70, 05-Aug-2022
1384,Revenue,CAHD,Bed and Breakfast,Bed & Breakfast,Connolly & Callaghan Limited,422.80, 24-Aug-2022
1385,Revenue,CAHD,Bed and Breakfast,Bed & Breakfast,Connolly & Callaghan Limited,548.80, 23-Aug-2022
1386,Revenue,CAHD,Bed and Breakfast,Bed & Breakfast,Connolly & Callaghan Limited,443.80, 23-Aug-2022
1387,Revenue,CAHD,Bed and Breakfast,Bed & Breakfast,Connolly & Callaghan Limited,422.80, 23-Aug-2022
1388,Revenue,CAHD,Bed and Breakfast,Bed & Breakfast,Connolly & Callaghan Limited,546.70, 23-Aug-2022
1389,Revenue,CAHD,Bed and Breakfast,Bed & Breakfast,Connolly & Callaghan Limited,733.60, 23-Aug-2022
1390,Revenue,CAHD,Bed and Breakfast,Bed & Breakfast,Connolly & Callaghan Limited,597.80, 23-Aug-2022
1391,Revenue,CAHD,Bed and Breakfast,Bed & Breakfast,Connolly & Callaghan Limited,733.60, 24-Aug-2022
1392,Revenue,CAHD,Bed and Breakfast,Bed & Breakfast,Connolly & Callaghan Limited,641.90, 24-Aug-2022
1393,Revenue,CAHD,Bed and Breakfast,Bed & Breakfast,Connolly & Callaghan Limited,562.80, 23-Aug-2022
1394,Revenue,CAHD,Bed and Breakfast,Bed & Breakfast,Connolly & Callaghan Limited,733.60, 24-Aug-2022
1395,Revenue,CAHD,Bed and Breakfast,Bed & Breakfast,Connolly & Callaghan Limited,833.70, 23-Aug-2022
1396,Revenue,CAHD,Bed and Breakfast,Bed & Breakfast,Connolly & Callaghan Limited,539.40, 23-Aug-2022
1397,Revenue,CAHD,Bed and Breakfast,Bed & Breakfast,Connolly & Callaghan Limited,529.20, 23-Aug-2022
1398,Revenue,CAHD,Bed and Breakfast,Bed & Breakfast,Connolly & Callaghan Limited,443.80, 24-Aug-2022
1399,Revenue,CAHD,Bed and Breakfast,Bed & Breakfast,Connolly & Callaghan Limited,756.70, 26-Aug-2022
1400,Revenue,CAHD,CSC - Care Leavers Independent Living,Adults - Family Support,Connolly & Callaghan Limited,436.80, 15-Aug-2022
1401,Revenue,CAHD,CSC - Care Leavers Independent Living,Adults - Family Support,Connolly & Callaghan Limited,436.80, 15-Aug-2022
1402,Revenue,CAHD,Bed and Breakfast,Bed & Breakfast,Connolly & Callaghan Limited,422.80, 03-Aug-2022
1403,Revenue,CAHD,Bed and Breakfast,Bed & Breakfast,Connolly & Callaghan Limited,548.80, 03-Aug-2022
1404,Revenue,CAHD,Bed and Breakfast,Bed & Breakfast,Connolly & Callaghan Limited,443.80, 03-Aug-2022
1405,Revenue,CAHD,Bed and Breakfast,Bed & Breakfast,Connolly & Callaghan Limited,546.70, 02-Aug-2022
1406,Revenue,CAHD,Bed and Breakfast,Bed & Breakfast,Connolly & Callaghan Limited,733.60, 03-Aug-2022
1407,Revenue,CAHD,Bed and Breakfast,Bed & Breakfast,Connolly & Callaghan Limited,597.80, 05-Aug-2022
1408,Revenue,CAHD,Bed and Breakfast,Bed & Breakfast,Connolly & Callaghan Limited,733.60, 03-Aug-2022
1409,Revenue,CAHD,Bed and Breakfast,Bed & Breakfast,Connolly & Callaghan Limited,641.90, 03-Aug-2022
1410,Revenue,CAHD,Bed and Breakfast,Bed & Breakfast,Connolly & Callaghan Limited,562.80, 23-Aug-2022
1411,Revenue,CAHD,Bed and Breakfast,Bed & Breakfast,Connolly & Callaghan Limited,733.60, 01-Aug-2022
1412,Revenue,CAHD,Bed and Breakfast,Bed & Breakfast,Connolly & Callaghan Limited,443.80, 03-Aug-2022
1413,Revenue,CAHD,Bed and Breakfast,Bed & Breakfast,Connolly & Callaghan Limited,629.30, 01-Aug-2022
1414,Revenue,CAHD,Bed and Breakfast,Bed & Breakfast,Connolly & Callaghan Limited,629.30, 03-Aug-2022
1415,Revenue,CAHD,Bed and Breakfast,Bed & Breakfast,Connolly & Callaghan Limited,529.20, 03-Aug-2022
1416,Revenue,CAHD,Bed and Breakfast,Bed & Breakfast,Connolly & Callaghan Limited,443.80, 02-Aug-2022
1417,Revenue,CAHD,Bed and Breakfast,Bed & Breakfast,Connolly & Callaghan Limited,756.70, 05-Aug-2022
1418,Revenue,CAHD,CSC - Care Leavers Independent Living,Adults - Family Support,Connolly & Callaghan Limited,436.80, 15-Aug-2022
1419,Revenue,CAHD,Bed and Breakfast,Bed & Breakfast,Connolly & Callaghan Limited,422.80, 05-Aug-2022
1420,Revenue,CAHD,Bed and Breakfast,Bed & Breakfast,Connolly & Callaghan Limited,548.80, 05-Aug-2022
1421,Revenue,CAHD,Bed and Breakfast,Bed & Breakfast,Connolly & Callaghan Limited,443.80, 05-Aug-2022
1422,Revenue,CAHD,Bed and Breakfast,Bed & Breakfast,Connolly & Callaghan Limited,733.60, 05-Aug-2022
1423,Revenue,CAHD,Bed and Breakfast,Bed & Breakfast,Connolly & Callaghan Limited,597.80, 08-Aug-2022
1424,Revenue,CAHD,Bed and Breakfast,Bed & Breakfast,Connolly & Callaghan Limited,733.60, 08-Aug-2022
1425,Revenue,CAHD,Bed and Breakfast,Bed & Breakfast,Connolly & Callaghan Limited,641.90, 05-Aug-2022
1426,Revenue,CAHD,Bed and Breakfast,Bed & Breakfast,Connolly & Callaghan Limited,562.80, 23-Aug-2022
1427,Revenue,CAHD,Bed and Breakfast,Bed & Breakfast,Connolly & Callaghan Limited,443.80, 05-Aug-2022
1428,Revenue,CAHD,Bed and Breakfast,Bed & Breakfast,Connolly & Callaghan Limited,629.30, 05-Aug-2022
1429,Revenue,CAHD,Bed and Breakfast,Bed & Breakfast,Connolly & Callaghan Limited,629.30, 05-Aug-2022
1430,Revenue,CAHD,Bed and Breakfast,Bed & Breakfast,Connolly & Callaghan Limited,529.20, 05-Aug-2022
1431,Revenue,CAHD,Bed and Breakfast,Bed & Breakfast,Connolly & Callaghan Limited,443.80, 05-Aug-2022
1432,Revenue,CAHD,Bed and Breakfast,Bed & Breakfast,Connolly & Callaghan Limited,756.70, 05-Aug-2022
1433,Revenue,CAHD,CSC - Care Leavers Independent Living,Adults - Family Support,Connolly & Callaghan Limited,436.80, 15-Aug-2022
1434,Revenue,CAHD,Bed and Breakfast,Bed & Breakfast,Connolly & Callaghan Limited,422.80, 11-Aug-2022
1435,Revenue,CAHD,Bed and Breakfast,Bed & Breakfast,Connolly & Callaghan Limited,548.80, 11-Aug-2022
1436,Revenue,CAHD,Bed and Breakfast,Bed & Breakfast,Connolly & Callaghan Limited,443.80, 11-Aug-2022
1437,Revenue,CAHD,Bed and Breakfast,Bed & Breakfast,Connolly & Callaghan Limited,733.60, 23-Aug-2022
1438,Revenue,CAHD,Bed and Breakfast,Bed & Breakfast,Connolly & Callaghan Limited,597.80, 11-Aug-2022
1439,Revenue,CAHD,Bed and Breakfast,Bed & Breakfast,Connolly & Callaghan Limited,733.60, 11-Aug-2022
1440,Revenue,CAHD,Bed and Breakfast,Bed & Breakfast,Connolly & Callaghan Limited,641.90, 23-Aug-2022
1441,Revenue,CAHD,Bed and Breakfast,Bed & Breakfast,Connolly & Callaghan Limited,562.80, 11-Aug-2022
1442,Revenue,CAHD,Bed and Breakfast,Bed & Breakfast,Connolly & Callaghan Limited,733.60, 11-Aug-2022
1443,Revenue,CAHD,Bed and Breakfast,Bed & Breakfast,Connolly & Callaghan Limited,629.30, 11-Aug-2022
1444,Revenue,CAHD,Bed and Breakfast,Bed & Breakfast,Connolly & Callaghan Limited,629.30, 11-Aug-2022
1445,Revenue,CAHD,Bed and Breakfast,Bed & Breakfast,Connolly & Callaghan Limited,427.00, 11-Aug-2022
1446,Revenue,CAHD,Bed and Breakfast,Bed & Breakfast,Connolly & Callaghan Limited,529.20, 11-Aug-2022
1447,Revenue,CAHD,Bed and Breakfast,Bed & Breakfast,Connolly & Callaghan Limited,443.80, 11-Aug-2022
1448,Revenue,CAHD,Bed and Breakfast,Bed & Breakfast,Connolly & Callaghan Limited,756.70, 11-Aug-2022
1449,Revenue,CAHD,Bed and Breakfast,Bed & Breakfast,Connolly & Callaghan Limited,422.80, 22-Aug-2022
1450,Revenue,CAHD,Bed and Breakfast,Bed & Breakfast,Connolly & Callaghan Limited,548.80, 23-Aug-2022
1451,Revenue,CAHD,Bed and Breakfast,Bed & Breakfast,Connolly & Callaghan Limited,443.80, 19-Aug-2022
1452,Revenue,CAHD,Bed and Breakfast,Bed & Breakfast,Connolly & Callaghan Limited,733.60, 22-Aug-2022
1453,Revenue,CAHD,Bed and Breakfast,Bed & Breakfast,Connolly & Callaghan Limited,597.80, 19-Aug-2022
1454,Revenue,CAHD,Bed and Breakfast,Bed & Breakfast,Connolly & Callaghan Limited,733.60, 22-Aug-2022
1455,Revenue,CAHD,Bed and Breakfast,Bed & Breakfast,Connolly & Callaghan Limited,641.90, 22-Aug-2022
1456,Revenue,CAHD,Bed and Breakfast,Bed & Breakfast,Connolly & Callaghan Limited,562.80, 23-Aug-2022
1457,Revenue,CAHD,Bed and Breakfast,Bed & Breakfast,Connolly & Callaghan Limited,733.60, 19-Aug-2022
1458,Revenue,CAHD,Bed and Breakfast,Bed & Breakfast,Connolly & Callaghan Limited,629.30, 19-Aug-2022
1459,Revenue,CAHD,Bed and Breakfast,Bed & Breakfast,Connolly & Callaghan Limited,629.30, 19-Aug-2022
1460,Revenue,CAHD,Bed and Breakfast,Bed & Breakfast,Connolly & Callaghan Limited,529.20, 19-Aug-2022
1461,Revenue,CAHD,Bed and Breakfast,Bed & Breakfast,Connolly & Callaghan Limited,443.80, 22-Aug-2022
1462,Revenue,CAHD,Bed and Breakfast,Bed & Breakfast,Connolly & Callaghan Limited,756.70, 19-Aug-2022
1463,Revenue,CAHD,CSC - Asylum Seekers - Unaccompanied,Adults - Family Support,Connolly & Callaghan Limited,436.80, 19-Aug-2022
1464,Revenue,CAHD,Bed and Breakfast,Bed & Breakfast,Connolly & Callaghan Limited,422.80, 30-Aug-2022
1465,Revenue,CAHD,Bed and Breakfast,Bed & Breakfast,Connolly & Callaghan Limited,548.80, 30-Aug-2022
1466,Revenue,CAHD,Bed and Breakfast,Bed & Breakfast,Connolly & Callaghan Limited,733.60, 30-Aug-2022
1467,Revenue,CAHD,Bed and Breakfast,Bed & Breakfast,Connolly & Callaghan Limited,597.80, 30-Aug-2022
1468,Revenue,CAHD,Bed and Breakfast,Bed & Breakfast,Connolly & Callaghan Limited,733.60, 30-Aug-2022
1469,Revenue,CAHD,Bed and Breakfast,Bed & Breakfast,Connolly & Callaghan Limited,562.80, 30-Aug-2022
1470,Revenue,CAHD,Bed and Breakfast,Bed & Breakfast,Connolly & Callaghan Limited,733.60, 30-Aug-2022
1471,Revenue,CAHD,Bed and Breakfast,Bed & Breakfast,Connolly & Callaghan Limited,629.30, 30-Aug-2022
1472,Revenue,CAHD,Bed and Breakfast,Bed & Breakfast,Connolly & Callaghan Limited,629.30, 30-Aug-2022
1473,Revenue,CAHD,Bed and Breakfast,Bed & Breakfast,Connolly & Callaghan Limited,529.20, 30-Aug-2022
1474,Revenue,CAHD,Bed and Breakfast,Bed & Breakfast,Connolly & Callaghan Limited,443.80, 30-Aug-2022
1475,Revenue,CAHD,Bed and Breakfast,Bed & Breakfast,Connolly & Callaghan Limited,529.20, 30-Aug-2022
1476,Revenue,CAHD,Bed and Breakfast,Bed & Breakfast,Connolly & Callaghan Limited,427.00, 31-Aug-2022
1477,Revenue,CAHD,Bed and Breakfast,Bed & Breakfast,Connolly & Callaghan Limited,443.80, 30-Aug-2022
1478,Revenue,CAHD,Bed and Breakfast,Bed & Breakfast,Connolly & Callaghan Limited,756.70, 30-Aug-2022
1479,Revenue,CAHD,CSC - Asylum Seekers - Unaccompanied,Adults - Family Support,Connolly & Callaghan Limited,436.80, 30-Aug-2022
1480,Revenue,CAHD,North - Community based support,Non Residential Care Income,Individual,-234.90, 05-Aug-2022
1481,Revenue,CAHD,North - Community based support,Non Residential Care Income,Individual,-234.90, 19-Aug-2022
1482,Revenue,CAHD,Independent Special Placements - Pre 16,Other Private Contractors,Cotswold Chine School,27553.76, 17-Aug-2022
1483,Revenue,CAHD,Alexandra Way,Cleaning & Domestic Services,Countrywide Healthcare Supplies Ltd,1132.34, 26-Aug-2022
1484,Revenue,CAHD,North - Community based support,Permanent Residential,Court House Residential C.H.,3604.00, 23-Aug-2022
1485,Revenue,CAHD,North - Community based support,Fees & Charges Income - General,Court House Residential C.H.,-677.72, 23-Aug-2022
1486,Revenue,CAHD,North - Community based support,Permanent Residential,Court House Retirement Home,3600.00, 23-Aug-2022
1487,Revenue,CAHD,North - Community based support,Fees & Charges Income - General,Court House Retirement Home,-875.20, 23-Aug-2022
1488,Revenue,CAHD,Central - Commissioned Services,Other Small Contracts,Courtfield Healthcare Ltd,20924.73, 23-Aug-2022
1489,Revenue,CAHD,Central - Commissioned Services,Other Small Contracts,Courtfield Healthcare Ltd,5809.73, 23-Aug-2022
1490,Revenue,CAHD,Central - Commissioned Services,Other Small Contracts,Courtfield Healthcare Ltd,17437.28, 23-Aug-2022
1491,Revenue,CAHD,Central - Commissioned Services,Other Small Contracts,Courtfield Healthcare Ltd,9350.02, 23-Aug-2022
1492,Revenue,CAHD,South - Commissioned Services,Other Small Contracts,Courtfield Healthcare Ltd,15693.55, 23-Aug-2022
1493,Revenue,CAHD,South - Commissioned Services,Other Small Contracts,Courtfield Healthcare Ltd,13949.83, 23-Aug-2022
1494,Revenue,CAHD,North - Community based support,Other Small Contracts,Courtfield Healthcare Ltd,3924.96, 23-Aug-2022
1495,Revenue,CAHD,Schools Specific Grant Income,Other Public Bodies,Craig Y Parc School,500.00, 01-Aug-2022
1496,Revenue,CAHD,S28A cases,Permanent Residential,Creedy Court,10597.96, 23-Aug-2022
1497,Revenue,CAHD,S28A cases,Fees & Charges Income - General,Creedy Court,-627.80, 23-Aug-2022
1498,Revenue,CAHD,North - Community based support,Permanent Residential,Creedy Court,14054.00, 23-Aug-2022
1499,Revenue,CAHD,North - Community based support,Fees & Charges Income - General,Creedy Court,-438.80, 23-Aug-2022
1500,Revenue,CAHD,CSC - Legal Fees,Legal Fees,Cristina Alfred,550.00, 03-Aug-2022
1501,Revenue,CAHD,Supporting People Programme,Grants to Voluntary Bodies,Curo Housing Group,501.42, 01-Aug-2022
1502,Revenue,CAHD,CSC - Vinney Green Secure Unit,R & M by Departments,Dale Power Solutions Ltd,1755.00, 09-Aug-2022
1503,Revenue,CAHD,South - Commissioned Services,Permanent Residential,Daneswood,13142.36, 23-Aug-2022
1504,Revenue,CAHD,South - Commissioned Services,Fees & Charges Income - General,Daneswood,-438.80, 23-Aug-2022
1505,Revenue,CAHD,North - Community based support,Permanent Residential,Daneswood,13987.08, 23-Aug-2022
1506,Revenue,CAHD,North - Community based support,Fees & Charges Income - General,Daneswood,-438.80, 23-Aug-2022
1507,Revenue,CAHD,Learning Difficulties PSL,Rent,Individual,2650.00, 22-Aug-2022
1508,Revenue,CAHD,Learning Difficulties PSL,Rent,Individual,2000.00, 15-Aug-2022
1509,Revenue,CAHD,CSC - Age Related Allowances,Foster Parent Allowances,Individual,282.00, 05-Aug-2022
1510,Revenue,CAHD,CSC - Professional Fees Foster Carers,Children - Family Support,Individual,340.00, 05-Aug-2022
1511,Revenue,CAHD,CSC - Age Related Allowances,Foster Parent Allowances,Individual,282.00, 12-Aug-2022
1512,Revenue,CAHD,CSC - Professional Fees Foster Carers,Children - Family Support,Individual,340.00, 12-Aug-2022
1513,Revenue,CAHD,CSC - Age Related Allowances,Foster Parent Allowances,Individual,282.00, 19-Aug-2022
1514,Revenue,CAHD,CSC - Professional Fees Foster Carers,Children - Family Support,Individual,340.00, 19-Aug-2022
1515,Revenue,CAHD,CSC - Age Related Allowances,Foster Parent Allowances,Individual,282.00, 26-Aug-2022
1516,Revenue,CAHD,CSC - Age Related Allowances,Xmas / Birthday Allowances,Individual,141.00, 26-Aug-2022
1517,Revenue,CAHD,CSC - Professional Fees Foster Carers,Children - Family Support,Individual,340.00, 26-Aug-2022
1518,Revenue,CAHD,Central - Commissioned Services,Permanent Residential,Debt Recovery,4786.48, 23-Aug-2022
1519,Revenue,CAHD,Central - Commissioned Services,Permanent Residential,Debt Recovery,4326.88, 23-Aug-2022
1520,Revenue,CAHD,Central - Commissioned Services,Fees & Charges Income - General,Debt Recovery,-438.80, 23-Aug-2022
1521,Revenue,CAHD,Central - Commissioned Services,Fees & Charges Income - General,Debt Recovery,-627.80, 23-Aug-2022
1522,Revenue,CAHD,South - Commissioned Services,Permanent Residential,Debt Recovery,4422.88, 23-Aug-2022
1523,Revenue,CAHD,South - Commissioned Services,Fees & Charges Income - General,Debt Recovery,-438.80, 23-Aug-2022
1524,Revenue,CAHD,North - Community based support,Permanent Nursing,Debt Recovery,3822.52, 23-Aug-2022
1525,Revenue,CAHD,North - Community based support,Permanent Nursing,Debt Recovery,4642.48, 23-Aug-2022
1526,Revenue,CAHD,North - Community based support,Fees & Charges Income - General,Debt Recovery,-367.80, 23-Aug-2022
1527,Revenue,CAHD,North - Community based support,Fees & Charges Income - General,Debt Recovery,-438.80, 23-Aug-2022
1528,Revenue,CAHD,North - Community based support,Permanent Residential,Debt Recovery,3702.24, 23-Aug-2022
1529,Revenue,CAHD,North - Community based support,Permanent Nursing,Debt Recovery,4187.16, 23-Aug-2022
1530,Revenue,CAHD,North - Community based support,Permanent Nursing,Debt Recovery,3643.52, 23-Aug-2022
1531,Revenue,CAHD,North - Community based support,Permanent Nursing,Debt Recovery,5735.40, 23-Aug-2022
1532,Revenue,CAHD,North - Community based support,Fees & Charges Income - General,Debt Recovery,-511.92, 23-Aug-2022
1533,Revenue,CAHD,North - Community based support,Fees & Charges Income - General,Debt Recovery,-438.80, 23-Aug-2022
1534,Revenue,CAHD,North - Community based support,Fees & Charges Income - General,Debt Recovery,-462.88, 23-Aug-2022
1535,Revenue,CAHD,North - Community based support,Fees & Charges Income - General,Debt Recovery,-438.80, 23-Aug-2022
1536,Revenue,CAHD,North - Community based support,Permanent Nursing,Debt Recovery,5723.32, 23-Aug-2022
1537,Revenue,CAHD,North - Community based support,Fees & Charges Income - General,Debt Recovery,-858.12, 23-Aug-2022
1538,Revenue,CAHD,Jointly Funded H&SC Packages,Permanent Nursing,Debt Recovery,393.48, 23-Aug-2022
1539,Revenue,CAHD,South Glos Users in South Glos Homes,Permanent Nursing,Deerhurst Nursing Home,836.76, 23-Aug-2022
1540,Revenue,CAHD,South Glos Users in South Glos Homes,Permanent Nursing,Deerhurst Nursing Home,836.76, 23-Aug-2022
1541,Revenue,CAHD,South Glos Users in South Glos Homes,Permanent Nursing,Deerhurst Nursing Home,836.76, 23-Aug-2022
1542,Revenue,CAHD,South Glos Users in South Glos Homes,Permanent Nursing,Deerhurst Nursing Home,836.76, 23-Aug-2022
1543,Revenue,CAHD,South Glos Users in South Glos Homes,Permanent Nursing,Deerhurst Nursing Home,836.76, 23-Aug-2022
1544,Revenue,CAHD,South Glos Users in South Glos Homes,Permanent Nursing,Deerhurst Nursing Home,836.76, 23-Aug-2022
1545,Revenue,CAHD,South Glos Users in South Glos Homes,Permanent Nursing,Deerhurst Nursing Home,836.76, 23-Aug-2022
1546,Revenue,CAHD,South Glos Users in South Glos Homes,Permanent Nursing,Deerhurst Nursing Home,836.76, 23-Aug-2022
1547,Revenue,CAHD,South Glos Users in South Glos Homes,Permanent Nursing,Deerhurst Nursing Home,836.76, 23-Aug-2022
1548,Revenue,CAHD,South Glos Users in South Glos Homes,Permanent Nursing,Deerhurst Nursing Home,836.76, 23-Aug-2022
1549,Revenue,CAHD,South Glos Users in South Glos Homes,Permanent Nursing,Deerhurst Nursing Home,836.76, 23-Aug-2022
1550,Revenue,CAHD,South Glos Users in South Glos Homes,Permanent Nursing,Deerhurst Nursing Home,239.07, 23-Aug-2022
1551,Revenue,CAHD,South Glos Users in South Glos Homes,Permanent Nursing,Deerhurst Nursing Home,836.76, 23-Aug-2022
1552,Revenue,CAHD,South Glos Users in South Glos Homes,Permanent Nursing,Deerhurst Nursing Home,836.76, 23-Aug-2022
1553,Revenue,CAHD,South Glos Users in South Glos Homes,Permanent Nursing,Deerhurst Nursing Home,836.76, 23-Aug-2022
1554,Revenue,CAHD,South Glos Users in South Glos Homes,Permanent Nursing,Deerhurst Nursing Home,836.76, 23-Aug-2022
1555,Revenue,CAHD,South Glos Users in South Glos Homes,Permanent Nursing,Deerhurst Nursing Home,836.76, 23-Aug-2022
1556,Revenue,CAHD,South Glos Users in South Glos Homes,Permanent Nursing,Deerhurst Nursing Home,836.76, 23-Aug-2022
1557,Revenue,CAHD,South Glos Users in South Glos Homes,Permanent Nursing,Deerhurst Nursing Home,836.76, 23-Aug-2022
1558,Revenue,CAHD,South Glos Users in South Glos Homes,Permanent Nursing,Deerhurst Nursing Home,836.76, 23-Aug-2022
1559,Revenue,CAHD,South Glos Users in South Glos Homes,Permanent Nursing,Deerhurst Nursing Home,836.76, 23-Aug-2022
1560,Revenue,CAHD,South Glos Users in South Glos Homes,Permanent Nursing,Deerhurst Nursing Home,836.76, 23-Aug-2022
1561,Revenue,CAHD,South Glos Users in South Glos Homes,Permanent Nursing,Deerhurst Nursing Home,836.76, 23-Aug-2022
1562,Revenue,CAHD,South Glos Users in South Glos Homes,Permanent Nursing,Deerhurst Nursing Home,836.76, 23-Aug-2022
1563,Revenue,CAHD,South Glos Users in South Glos Homes,Permanent Nursing,Deerhurst Nursing Home,836.76, 23-Aug-2022
1564,Revenue,CAHD,South Glos Users in South Glos Homes,Permanent Nursing,Deerhurst Nursing Home,836.76, 23-Aug-2022
1565,Revenue,CAHD,South Glos Users in South Glos Homes,Permanent Nursing,Deerhurst Nursing Home,836.76, 23-Aug-2022
1566,Revenue,CAHD,South Glos Users in South Glos Homes,Permanent Nursing,Deerhurst Nursing Home,836.76, 23-Aug-2022
1567,Revenue,CAHD,South Glos Users in South Glos Homes,Permanent Nursing,Deerhurst Nursing Home,836.76, 23-Aug-2022
1568,Revenue,CAHD,South Glos Users in South Glos Homes,Permanent Nursing,Deerhurst Nursing Home,836.76, 23-Aug-2022
1569,Revenue,CAHD,South Glos Users in South Glos Homes,Permanent Nursing,Deerhurst Nursing Home,836.76, 23-Aug-2022
1570,Revenue,CAHD,South Glos Users in South Glos Homes,Permanent Nursing,Deerhurst Nursing Home,836.76, 23-Aug-2022
1571,Revenue,CAHD,South Glos Users in South Glos Homes,Permanent Nursing,Deerhurst Nursing Home,836.76, 23-Aug-2022
1572,Revenue,CAHD,South Glos Users in South Glos Homes,Permanent Nursing,Deerhurst Nursing Home,836.76, 23-Aug-2022
1573,Revenue,CAHD,South Glos Users in South Glos Homes,Permanent Nursing,Deerhurst Nursing Home,836.76, 23-Aug-2022
1574,Revenue,CAHD,South Glos Users in South Glos Homes,Permanent Nursing,Deerhurst Nursing Home,836.76, 23-Aug-2022
1575,Revenue,CAHD,South Glos Users in South Glos Homes,Permanent Nursing,Deerhurst Nursing Home,836.76, 23-Aug-2022
1576,Revenue,CAHD,South Glos Users in South Glos Homes,Permanent Nursing,Deerhurst Nursing Home,836.76, 23-Aug-2022
1577,Revenue,CAHD,South Glos Users in South Glos Homes,Permanent Nursing,Deerhurst Nursing Home,836.76, 23-Aug-2022
1578,Revenue,CAHD,South Glos Users in South Glos Homes,Permanent Nursing,Deerhurst Nursing Home,836.76, 23-Aug-2022
1579,Revenue,CAHD,South Glos Users in South Glos Homes,Permanent Nursing,Deerhurst Nursing Home,836.76, 23-Aug-2022
1580,Revenue,CAHD,South Glos Users in South Glos Homes,Permanent Nursing,Deerhurst Nursing Home,836.76, 23-Aug-2022
1581,Revenue,CAHD,Central - Commissioned Services,Permanent Nursing,Deerhurst Nursing Home,5049.84, 23-Aug-2022
1582,Revenue,CAHD,Central - Commissioned Services,Permanent Nursing,Deerhurst Nursing Home,3665.52, 23-Aug-2022
1583,Revenue,CAHD,Central - Commissioned Services,Fees & Charges Income - General,Deerhurst Nursing Home,-968.40, 23-Aug-2022
1584,Revenue,CAHD,Central - Commissioned Services,Fees & Charges Income - General,Deerhurst Nursing Home,-4796.21, 23-Aug-2022
1585,Revenue,CAHD,South - Commissioned Services,Permanent Nursing,Deerhurst Nursing Home,4208.92, 23-Aug-2022
1586,Revenue,CAHD,South - Commissioned Services,Permanent Nursing,Deerhurst Nursing Home,3665.52, 23-Aug-2022
1587,Revenue,CAHD,South - Commissioned Services,Permanent Nursing,Deerhurst Nursing Home,4771.28, 23-Aug-2022
1588,Revenue,CAHD,South - Commissioned Services,Permanent Nursing,Deerhurst Nursing Home,-33193.28, 23-Aug-2022
1589,Revenue,CAHD,South - Commissioned Services,Permanent Nursing,Deerhurst Nursing Home,1266.58, 23-Aug-2022
1590,Revenue,CAHD,South - Commissioned Services,Permanent Nursing,Deerhurst Nursing Home,4430.84, 23-Aug-2022
1591,Revenue,CAHD,South - Commissioned Services,Permanent Nursing,Deerhurst Nursing Home,4303.92, 23-Aug-2022
1592,Revenue,CAHD,South - Commissioned Services,Permanent Nursing,Deerhurst Nursing Home,5045.60, 23-Aug-2022
1593,Revenue,CAHD,South - Commissioned Services,Permanent Nursing,Deerhurst Nursing Home,5045.60, 23-Aug-2022
1594,Revenue,CAHD,South - Commissioned Services,Permanent Nursing,Deerhurst Nursing Home,5048.56, 23-Aug-2022
1595,Revenue,CAHD,South - Commissioned Services,Fees & Charges Income - General,Deerhurst Nursing Home,-674.84, 23-Aug-2022
1596,Revenue,CAHD,South - Commissioned Services,Fees & Charges Income - General,Deerhurst Nursing Home,-641.24, 23-Aug-2022
1597,Revenue,CAHD,South - Commissioned Services,Fees & Charges Income - General,Deerhurst Nursing Home,4168.41, 23-Aug-2022
1598,Revenue,CAHD,South - Commissioned Services,Fees & Charges Income - General,Deerhurst Nursing Home,-16798.79, 23-Aug-2022
1599,Revenue,CAHD,South - Commissioned Services,Fees & Charges Income - General,Deerhurst Nursing Home,-226.02, 23-Aug-2022
1600,Revenue,CAHD,South - Commissioned Services,Fees & Charges Income - General,Deerhurst Nursing Home,-1413.04, 23-Aug-2022
1601,Revenue,CAHD,South - Commissioned Services,Fees & Charges Income - General,Deerhurst Nursing Home,-8698.41, 23-Aug-2022
1602,Revenue,CAHD,South - Commissioned Services,Fees & Charges Income - General,Deerhurst Nursing Home,-627.80, 23-Aug-2022
1603,Revenue,CAHD,South - Commissioned Services,Fees & Charges Income - General,Deerhurst Nursing Home,-627.80, 23-Aug-2022
1604,Revenue,CAHD,South - Commissioned Services,Fees & Charges Income - General,Deerhurst Nursing Home,-1085.44, 23-Aug-2022
1605,Revenue,CAHD,North - Community based support,Permanent Nursing,Deerhurst Nursing Home,3458.04, 23-Aug-2022
1606,Revenue,CAHD,South - Commissioned Services,Day Care / Social Activities,Deerhurst Nursing Home,598.72, 23-Aug-2022
1607,Revenue,CAHD,North - Community based support,Day Care / Social Activities,Deerhurst Nursing Home,449.04, 23-Aug-2022
1608,Revenue,CAHD,South - Commissioned Services,Permanent Residential,Deerhurst Nursing Home,4129.00, 23-Aug-2022
1609,Revenue,CAHD,South - Commissioned Services,Permanent Residential,Deerhurst Nursing Home,3891.20, 23-Aug-2022
1610,Revenue,CAHD,South - Commissioned Services,Permanent Nursing,Deerhurst Nursing Home,4006.00, 23-Aug-2022
1611,Revenue,CAHD,South - Commissioned Services,Permanent Nursing,Deerhurst Nursing Home,4129.40, 23-Aug-2022
1612,Revenue,CAHD,South - Commissioned Services,Permanent Nursing,Deerhurst Nursing Home,4596.36, 23-Aug-2022
1613,Revenue,CAHD,South - Commissioned Services,Permanent Nursing,Deerhurst Nursing Home,4006.00, 23-Aug-2022
1614,Revenue,CAHD,South - Commissioned Services,Fees & Charges Income - General,Deerhurst Nursing Home,-1344.60, 23-Aug-2022
1615,Revenue,CAHD,South - Commissioned Services,Fees & Charges Income - General,Deerhurst Nursing Home,-603.48, 23-Aug-2022
1616,Revenue,CAHD,South - Commissioned Services,Fees & Charges Income - General,Deerhurst Nursing Home,-857.92, 23-Aug-2022
1617,Revenue,CAHD,South - Commissioned Services,Fees & Charges Income - General,Deerhurst Nursing Home,-627.80, 23-Aug-2022
1618,Revenue,CAHD,South - Commissioned Services,Fees & Charges Income - General,Deerhurst Nursing Home,-945.24, 23-Aug-2022
1619,Revenue,CAHD,North - Community based support,Permanent Nursing,Deerhurst Nursing Home,4140.00, 23-Aug-2022
1620,Revenue,CAHD,North - Community based support,Fees & Charges Income - General,Deerhurst Nursing Home,-643.80, 23-Aug-2022
1621,Revenue,CAHD,South - Commissioned Services,Permanent Nursing,Deerhurst Nursing Home,3965.12, 23-Aug-2022
1622,Revenue,CAHD,South - Commissioned Services,Fees & Charges Income - General,Deerhurst Nursing Home,-116.64, 23-Aug-2022
1623,Revenue,CAHD,North - Community based support,Permanent Nursing,Deerhurst Nursing Home,3891.20, 23-Aug-2022
1624,Revenue,CAHD,North - Community based support,Fees & Charges Income - General,Deerhurst Nursing Home,-1067.12, 23-Aug-2022
1625,Revenue,CAHD,North - Community based support,Permanent Residential,Deerhurst Nursing Home,9221.16, 23-Aug-2022
1626,Revenue,CAHD,North - Community based support,Fees & Charges Income - General,Deerhurst Nursing Home,-438.80, 23-Aug-2022
1627,Revenue,CAHD,18-25 Year Olds,Respite Care,Design House,0.00, 23-Aug-2022
1628,Revenue,CAHD,18-25 Year Olds,Respite Care,Design House,0.00, 23-Aug-2022
1629,Revenue,CAHD,18-25 Year Olds,Respite Care,Design House,0.00, 23-Aug-2022
1630,Revenue,CAHD,18-25 Year Olds,Respite Care,Design House,0.00, 23-Aug-2022
1631,Revenue,CAHD,South - Commissioned Services,Respite Care,Design House,0.00, 23-Aug-2022
1632,Revenue,CAHD,South - Commissioned Services,Respite Care,Design House,0.00, 23-Aug-2022
1633,Revenue,CAHD,South - Commissioned Services,Respite Care,Design House,0.00, 23-Aug-2022
1634,Revenue,CAHD,South - Commissioned Services,Respite Care,Design House,0.00, 23-Aug-2022
1635,Revenue,CAHD,South - Commissioned Services,Respite Care,Design House,0.00, 23-Aug-2022
1636,Revenue,CAHD,South - Commissioned Services,Respite Care,Design House,0.00, 23-Aug-2022
1637,Revenue,CAHD,South - Commissioned Services,Respite Care,Design House,0.00, 23-Aug-2022
1638,Revenue,CAHD,South - Commissioned Services,Respite Care,Design House,0.00, 23-Aug-2022
1639,Revenue,CAHD,South - Commissioned Services,Respite Care,Design House,0.00, 23-Aug-2022
1640,Revenue,CAHD,South - Commissioned Services,Respite Care,Design House,0.00, 23-Aug-2022
1641,Revenue,CAHD,South - Commissioned Services,Respite Care,Design House,0.00, 23-Aug-2022
1642,Revenue,CAHD,South - Commissioned Services,Respite Care,Design House,0.00, 23-Aug-2022
1643,Revenue,CAHD,South - Commissioned Services,Respite Care,Design House,0.00, 23-Aug-2022
1644,Revenue,CAHD,South - Commissioned Services,Supported Living,Design House,2835.88, 23-Aug-2022
1645,Revenue,CAHD,South - Commissioned Services,Supported Living,Design House,4217.60, 23-Aug-2022
1646,Revenue,CAHD,South - Commissioned Services,Supported Living,Design House,2732.88, 23-Aug-2022
1647,Revenue,CAHD,South - Commissioned Services,Supported Living,Design House,2426.28, 23-Aug-2022
1648,Revenue,CAHD,South - Commissioned Services,Supported Living,Design House,2835.88, 23-Aug-2022
1649,Revenue,CAHD,South - Commissioned Services,Supported Living,Design House,3292.00, 23-Aug-2022
1650,Revenue,CAHD,South - Commissioned Services,Supported Living,Design House,4217.60, 23-Aug-2022
1651,Revenue,CAHD,South - Commissioned Services,Supported Living,Design House,2730.84, 23-Aug-2022
1652,Revenue,CAHD,South - Commissioned Services,Supported Living,Design House,3175.72, 23-Aug-2022
1653,Revenue,CAHD,South - Commissioned Services,Supported Living,Design House,2860.20, 23-Aug-2022
1654,Revenue,CAHD,South - Commissioned Services,Supported Living,Design House,3143.32, 23-Aug-2022
1655,Revenue,CAHD,South - Commissioned Services,Supported Living,Design House,2038.28, 23-Aug-2022
1656,Revenue,CAHD,South - Commissioned Services,Supported Living,Design House,4629.16, 23-Aug-2022
1657,Revenue,CAHD,South - Commissioned Services,Supported Living,Design House,3537.04, 23-Aug-2022
1658,Revenue,CAHD,South - Commissioned Services,Supported Living,Design House,3200.24, 23-Aug-2022
1659,Revenue,CAHD,South - Commissioned Services,Supported Living,Design House,2426.28, 23-Aug-2022
1660,Revenue,CAHD,South - Commissioned Services,Supported Living,Design House,2704.72, 23-Aug-2022
1661,Revenue,CAHD,North - Community based support,Respite Care,Design House,0.00, 23-Aug-2022
1662,Revenue,CAHD,North - Community based support,Supported Living,Design House,2310.04, 23-Aug-2022
1663,Revenue,CAHD,Bed and Breakfast,Bed & Breakfast,Designz Limited,882.00, 23-Aug-2022
1664,Revenue,CAHD,Bed and Breakfast,Bed & Breakfast,Designz Limited,1248.00, 08-Aug-2022
1665,Revenue,CAHD,Bed and Breakfast,Bed & Breakfast,Designz Limited,1190.00, 11-Aug-2022
1666,Revenue,CAHD,Bed and Breakfast,Bed & Breakfast,Designz Limited,882.00, 02-Aug-2022
1667,Revenue,CAHD,Bed and Breakfast,Bed & Breakfast,Designz Limited,1344.00, 02-Aug-2022
1668,Revenue,CAHD,Bed and Breakfast,Bed & Breakfast,Designz Limited,560.00, 02-Aug-2022
1669,Revenue,CAHD,Bed and Breakfast,Bed & Breakfast,Designz Limited,1190.00, 02-Aug-2022
1670,Revenue,CAHD,Bed and Breakfast,Bed & Breakfast,Designz Limited,882.00, 16-Aug-2022
1671,Revenue,CAHD,Bed and Breakfast,Bed & Breakfast,Designz Limited,882.00, 23-Aug-2022
1672,Revenue,CAHD,Bed and Breakfast,Bed & Breakfast,Designz Limited,784.00, 16-Aug-2022
1673,Revenue,CAHD,Bed and Breakfast,Bed & Breakfast,Designz Limited,1344.00, 16-Aug-2022
1674,Revenue,CAHD,Bed and Breakfast,Bed & Breakfast,Designz Limited,504.00, 30-Aug-2022
1675,Revenue,CAHD,Bed and Breakfast,Bed & Breakfast,Designz Limited,882.00, 30-Aug-2022
1676,Revenue,CAHD,Bed and Breakfast,Bed & Breakfast,Designz Limited,784.00, 30-Aug-2022
1677,Revenue,CAHD,Bed and Breakfast,Bed & Breakfast,Designz Limited,1344.00, 30-Aug-2022
1678,Revenue,CAHD,CSC - Fostering Carer Support,Catering,DJ Bridgee`o`s Entertainments,520.00, 22-Aug-2022
1679,Revenue,CAHD,North - Community based support,Permanent Nursing,Douglas House,3599.80, 23-Aug-2022
1680,Revenue,CAHD,North - Community based support,Fees & Charges Income - General,Douglas House,-367.92, 23-Aug-2022
1681,Revenue,CAHD,Planning and Partnerships Team,Legal Fees,Individual,450.00, 01-Aug-2022
1682,Revenue,CAHD,Cardio Vascular Disease - Risks,Other Small Contracts,Downend Health Group,1403.00, 22-Aug-2022
1683,Revenue,CAHD,Statemented Support Academies,Other Public Bodies,Downend School,1544.42, 22-Aug-2022
1684,Revenue,CAHD,Statemented Support Academies,Other Public Bodies,Downend School,660.24, 22-Aug-2022
1685,Revenue,CAHD,Statemented Support Academies,Other Public Bodies,Downend School,1025.73, 22-Aug-2022
1686,Revenue,CAHD,Statemented Support Academies,Other Public Bodies,Downend School,1108.26, 22-Aug-2022
1687,Revenue,CAHD,Statemented Support Academies,Other Public Bodies,Downend School,554.13, 22-Aug-2022
1688,Revenue,CAHD,Statemented Support Academies,Other Public Bodies,Downend School,666.00, 22-Aug-2022
1689,Revenue,CAHD,Statemented Support Academies,Other Public Bodies,Downend School,822.83, 22-Aug-2022
1690,Revenue,CAHD,Statemented Support Academies,Other Public Bodies,Downend School,1079.67, 22-Aug-2022
1691,Revenue,CAHD,Statemented Support Academies,Other Public Bodies,Downend School,1438.38, 22-Aug-2022
1692,Revenue,CAHD,Statemented Support Academies,Other Public Bodies,Downend School,1709.55, 22-Aug-2022
1693,Revenue,CAHD,Statemented Support Academies,Other Public Bodies,Downend School,1192.50, 22-Aug-2022
1694,Revenue,CAHD,Statemented Support Academies,Other Public Bodies,Downend School,1544.49, 22-Aug-2022
1695,Revenue,CAHD,Statemented Support Academies,Other Public Bodies,Downend School,966.92, 22-Aug-2022
1696,Revenue,CAHD,Homes For Ukraine School Support,Other Public Bodies,Downend School,1850.00, 30-Aug-2022
1697,Revenue,CAHD,Care Management Team - North,Other Employee Expenses,Individual,904.65, 11-Aug-2022
1698,Revenue,CAHD,Social Lettings Agency,Rent,Individual,822.73, 22-Aug-2022
1699,Revenue,CAHD,Social Lettings Agency,Fees & Charges Income - General,Individual,-65.82, 22-Aug-2022
1700,Revenue,CAHD,Adult & Community Learning Growth Funding 21/22,Computer Equipment - Purchase,DSG Retail Limited,4765.44, 19-Aug-2022
1701,Revenue,CAHD,Adult & Community Learning Growth Funding 21/22,Computer Equipment - Purchase,DSG Retail Limited,2786.56, 19-Aug-2022
1702,Revenue,CAHD,Independent Special Placements - Travel,Client Transport,Durham County Council,2900.00, 26-Aug-2022
1703,Revenue,CAHD,CSC - Care Leavers Independent Living,Adults - Family Support,Dynamic Youth Support Services,15128.70, 04-Aug-2022
1704,Revenue,CAHD,CSC - Care Leavers Independent Living,Adults - Family Support,Dynamic Youth Support Services,12710.00, 18-Aug-2022
1705,Revenue,CAHD,CSC - Age Related Allowances,Foster Parent Allowances,Individual,101.15, 05-Aug-2022
1706,Revenue,CAHD,CSC - Professional Fees Foster Carers,Fostering Plus Enhanced Fee,Individual,758.28, 05-Aug-2022
1707,Revenue,CAHD,CSC - Asylum Seekers - Unaccompanied,Foster Parent Allowances,Individual,177.00, 05-Aug-2022
1708,Revenue,CAHD,CSC - Asylum Seekers - Unaccompanied,Band 3 Foster Care,Individual,243.00, 05-Aug-2022
1709,Revenue,CAHD,CSC - Asylum Seekers - Unaccompanied,Foster Parent Allowances,Individual,177.00, 26-Aug-2022
1710,Revenue,CAHD,CSC - Asylum Seekers - Unaccompanied,Xmas / Birthday Allowances,Individual,177.00, 26-Aug-2022
1711,Revenue,CAHD,CSC - Asylum Seekers - Unaccompanied,Band 3 Foster Care,Individual,243.00, 26-Aug-2022
1712,Revenue,CAHD,North - Community based support,Permanent Residential,East Court,3532.58, 23-Aug-2022
1713,Revenue,CAHD,North - Community based support,Fees & Charges Income - General,East Court,-438.80, 23-Aug-2022
1714,Revenue,CAHD,CSC - Asylum Seekers - Unaccompanied,Independent Living,Eclipse Properties Limited,4667.14, 04-Aug-2022
1715,Revenue,CAHD,CSC - Asylum Seekers - Unaccompanied,Independent Living,Eclipse Properties Limited,3820.00, 04-Aug-2022
1716,Revenue,CAHD,CSC - Asylum Seekers - Unaccompanied,Independent Living,Eclipse Properties Limited,3820.00, 26-Aug-2022
1717,Revenue,CAHD,CSC - Asylum Seekers - Unaccompanied,Independent Living,Eclipse Properties Limited,4667.14, 04-Aug-2022
1718,Revenue,CAHD,Rapid Response Service,Long Service Awards,Edenred (UK Group) Limited,670.00, 26-Aug-2022
1719,Revenue,CAHD,Care Management Team - South,Long Service Awards,Edenred (UK Group) Limited,800.00, 26-Aug-2022
1720,Revenue,CAHD,Central - Commissioned Services,Permanent Residential,Edgemont House Ltd,3392.00, 23-Aug-2022
1721,Revenue,CAHD,Central - Commissioned Services,Fees & Charges Income - General,Edgemont House Ltd,-864.16, 23-Aug-2022
1722,Revenue,CAHD,South - Commissioned Services,Permanent Residential,Edgemont House Ltd,3470.00, 23-Aug-2022
1723,Revenue,CAHD,South - Commissioned Services,Permanent Residential,Edgemont House Ltd,3539.44, 23-Aug-2022
1724,Revenue,CAHD,South - Commissioned Services,Permanent Residential,Edgemont House Ltd,3318.24, 23-Aug-2022
1725,Revenue,CAHD,South - Commissioned Services,Permanent Residential,Edgemont House Ltd,3392.00, 23-Aug-2022
1726,Revenue,CAHD,South - Commissioned Services,Fees & Charges Income - General,Edgemont House Ltd,-1715.20, 23-Aug-2022
1727,Revenue,CAHD,South - Commissioned Services,Fees & Charges Income - General,Edgemont House Ltd,-637.52, 23-Aug-2022
1728,Revenue,CAHD,South - Commissioned Services,Fees & Charges Income - General,Edgemont House Ltd,4014.56, 23-Aug-2022
1729,Revenue,CAHD,North - Community based support,Respite Planned - Residential,Edgemont House Ltd,4704.00, 23-Aug-2022
1730,Revenue,CAHD,South Glos Users in South Glos Homes,Permanent Nursing,Edgemont View Ltd,836.76, 23-Aug-2022
1731,Revenue,CAHD,South Glos Users in South Glos Homes,Permanent Nursing,Edgemont View Ltd,836.76, 23-Aug-2022
1732,Revenue,CAHD,South Glos Users in South Glos Homes,Permanent Nursing,Edgemont View Ltd,1447.20, 23-Aug-2022
1733,Revenue,CAHD,South Glos Users in South Glos Homes,Permanent Nursing,Edgemont View Ltd,836.76, 23-Aug-2022
1734,Revenue,CAHD,South Glos Users in South Glos Homes,Permanent Nursing,Edgemont View Ltd,836.76, 23-Aug-2022
1735,Revenue,CAHD,South Glos Users in South Glos Homes,Permanent Nursing,Edgemont View Ltd,-388.50, 23-Aug-2022
1736,Revenue,CAHD,South Glos Users in South Glos Homes,Permanent Nursing,Edgemont View Ltd,836.76, 23-Aug-2022
1737,Revenue,CAHD,South Glos Users in South Glos Homes,Permanent Nursing,Edgemont View Ltd,836.76, 23-Aug-2022
1738,Revenue,CAHD,South Glos Users in South Glos Homes,Permanent Nursing,Edgemont View Ltd,836.76, 23-Aug-2022
1739,Revenue,CAHD,South Glos Users in South Glos Homes,Permanent Nursing,Edgemont View Ltd,836.76, 23-Aug-2022
1740,Revenue,CAHD,South Glos Users in South Glos Homes,Permanent Nursing,Edgemont View Ltd,836.76, 23-Aug-2022
1741,Revenue,CAHD,South Glos Users in South Glos Homes,Permanent Nursing,Edgemont View Ltd,836.76, 23-Aug-2022
1742,Revenue,CAHD,South Glos Users in South Glos Homes,Permanent Nursing,Edgemont View Ltd,836.76, 23-Aug-2022
1743,Revenue,CAHD,Central - Commissioned Services,Respite Planned - Nursing,Edgemont View Ltd,2400.00, 23-Aug-2022
1744,Revenue,CAHD,Central - Commissioned Services,Respite Planned - Nursing,Edgemont View Ltd,-462.17, 23-Aug-2022
1745,Revenue,CAHD,South - Commissioned Services,Permanent Nursing,Edgemont View Ltd,3964.16, 23-Aug-2022
1746,Revenue,CAHD,South - Commissioned Services,Permanent Nursing,Edgemont View Ltd,3795.36, 23-Aug-2022
1747,Revenue,CAHD,South - Commissioned Services,Permanent Nursing,Edgemont View Ltd,3686.88, 23-Aug-2022
1748,Revenue,CAHD,South - Commissioned Services,Permanent Nursing,Edgemont View Ltd,3760.64, 23-Aug-2022
1749,Revenue,CAHD,South - Commissioned Services,Permanent Nursing,Edgemont View Ltd,3760.64, 23-Aug-2022
1750,Revenue,CAHD,South - Commissioned Services,Fees & Charges Income - General,Edgemont View Ltd,-743.28, 23-Aug-2022
1751,Revenue,CAHD,South - Commissioned Services,Fees & Charges Income - General,Edgemont View Ltd,-690.16, 23-Aug-2022
1752,Revenue,CAHD,South - Commissioned Services,Fees & Charges Income - General,Edgemont View Ltd,-702.16, 23-Aug-2022
1753,Revenue,CAHD,South - Commissioned Services,Fees & Charges Income - General,Edgemont View Ltd,-847.24, 23-Aug-2022
1754,Revenue,CAHD,South - Commissioned Services,Fees & Charges Income - General,Edgemont View Ltd,-627.80, 23-Aug-2022
1755,Revenue,CAHD,South - Commissioned Services,Fees & Charges Income - General,Edgemont View Ltd,-12335.21, 23-Aug-2022
1756,Revenue,CAHD,South - Commissioned Services,Non Residential Care Income,Individual,-94.92, 19-Aug-2022
1757,Revenue,CAHD,Planning and Partnerships Procurement,Other Supplies & Services,Eldercare,2675.75, 05-Aug-2022
1758,Revenue,CAHD,CSC - Post Ofsted Implementation,Other Supplies & Services,Elia International Ltd,5840.00, 17-Aug-2022
1759,Revenue,CAHD,Supporting People Programme,Grants to Voluntary Bodies,Elim Housing Association Limited,5522.83, 01-Aug-2022
1760,Revenue,CAHD,Social Lettings Agency,Rent,Individual,1321.36, 12-Aug-2022
